Workbook

Sheet INGRESO DE DATOS
O2: 24 years | P2: FALSE
O4: Descuento 24 años (por edad)
O5: age | P5: Discount (%) | Q5: Parameter | S5: Type | T5: Nuevo Negocio | V5: Región | W5: 2
O6: 24 | P6: 35 | Q6: =1-P6/100 -> 0.65 | T6: Renovación | W6: 3
O7: 25 | P7: 30 | Q7: =1-P7/100 -> 0.7 | W7: 4
O8: 26 | P8: 25 | Q8: 0.75 | W8: 5
O9: 27 | P9: 20 | Q9: 0.8 | W9: 6
O10: 28 | P10: 15 | Q10: 0.85 | W10: 8
O11: 29 | P11: 6 | Q11: 0.94 | W11: 9
O12: All ages | P12: 0 | Q12: 1 | W12: Perú (Pólizas: 2020)
S13: Type selected | T13: 1 | V13: Selección | W13: 4
V14: Región | W14: =IF(W13=1,2,IF(W13=2,3,IF(W13=3,4,IF(W13=4,5,IF(W13=4,5,IF(W13=5,6,IF(W13=6,8,IF(W13=7,9,IF(W13=8,"PERU2020"))))))))) -> 5
W15: =IF(W14=5,"Venezuela","") -> Venezuela
O19: Descuento de 24 años: | P19: =IF(P2,_xlfn.SWITCH(C42,O6,Q6,O7,Q7,O8,Q8,O9,Q9,O10,Q10,O11,Q11,Q12),Q12) -> 1
O24: Descuento por variante de coaseguro | P24: N/A
O30: Descuento si es nuevo negocio (ENTRADA MANUAL)
O32: NEW BUSINESS DISCOUNT
O33: Critical | P33: Exclusive | Q33: Privilege | R33: Advantage | S33: Secure | T33: Essential
O34: 0 | P34: 0.3 | Q34: 0.3 | R34: 0.3 | S34: 0.3 | T34: 0.1
A36: Nombre del Asegurado principal: | C36: John Doe
O37: Descuento combinado 24 años + Nuevo Negocio o Roneovaciones
A38: Número de adultos en la póliza: | C38: 2
A40: Número de hijos en la póliza: | C40: 3 | O40: TOTAL DISCOUNT
O41: Critical | P41: Exclusive | Q41: Privilege | R41: Advantage | S41: Secure | T41: Essential
A42: Edad del titular: | C42: 24 | O42: =1*$P$19 -> 1 | P42: =IF($T$13=1,IF($W$14="PERU2020", (1-O51)*$P$19,(1-P34)*$P$19),1*$P$19) -> 0.7 | Q42: =IF($T$13=1,IF($W$14="PERU2020", (1-O54)*$P$19,(1-Q34)*$P$19),1*$P$19) -> 0.7 | R42: =IF($T$13=1,IF($W$14="PERU2020", (1-O57)*$P$19,(1-R34)*$P$19),1*$P$19) -> 0.7 | S42: =IF($T$13=1,IF($W$14="PERU2020", (1-O60)*$P$19,(1-S34)*$P$19),1*$P$19) -> 0.7 | T42: =IF($T$13=1,IF($W$14="PERU2020", (1-O63)*$P$19,(1-T34)*$P$19),1*$P$19) -> 0.9
A44: Edad de cónyuge: | C44: 41
A47: Nombre de la Agencia : | C47: Agencia
O48: DISCOUNT PERU 2020
O50: EXCLUSIVE CARE
O51: 0.51
O53: PRIVILEGE CARE
O54: 0.51
O56: ADVANTAGE CARE
O57: 0.47
O59: SECURE CARE
O60: 0.54
O62: ESSENTIAL CARE
O63: 0.54

Sheet Bupa Exclusive Care
N1: RESUMEN DE BENEFICIOS | AB1: RESUMEN DE BENEFICIOS
G2: FALSE | H2: FALSE
A5: Cotización de Seguro Médico Internacional Bupa Exclusive Care Tarifas en US$ | Validas: 1 de enero de 2025 | L5: REGIÓN
L7: ='INGRESO DE DATOS'!W15 -> Venezuela
A13: Nombre del asegurado principal: | G13: =+'INGRESO DE DATOS'!$C$36 -> John Doe
A15: Broker/Agente | G15: =+'INGRESO DE DATOS'!$C$47 -> Agencia
B17: Número de Adultos en la Póliza | G17: =+'INGRESO DE DATOS'!$C$38 -> 2 | J17: Dependientes (menores de 24 años) | L17: =+'INGRESO DE DATOS'!$C$40 -> 3
J18: =IF('INGRESO DE DATOS'!$P$2=TRUE, "Cotización para dependiente de 24 años","") -> 
B19: Edad del Titular | G19: =+'INGRESO DE DATOS'!$C$42 -> 24 | J19: Edad del Cónyuge | L19: =+'INGRESO DE DATOS'!$C$44 -> 41
J21: Fecha de Cotización: | K21: =NOW() -> 2024-11-13T12:19:52.560
F29: DEDUCIBLES | G29: PLAN 1 | H29: PLAN 2 | I29: PLAN 3 | J29: PLAN 4 | K29: PLAN 5 | L29: PLAN 6
F30: Dentro del pais de residencia | G30: n/a | H30: 1000 | I30: 2000 | J30: 5000 | K30: 10000 | L30: 20000
F31: Fuera del pais de residencia | G31: n/a | H31: 2000 | I31: 3000 | J31: 5000 | K31: 10000 | L31: 20000
F34: TARIFAS ANUALES
F35: Prima de Titular | G35: n/a | H35: =VLOOKUP($G$19,Tablas!$A$9:$H$32,4,TRUE) -> 10452.7 | I35: =VLOOKUP($G$19,Tablas!$A$9:$H$32,5,TRUE) -> 6921.2 | J35: =VLOOKUP($G$19,Tablas!$A$9:$H$32,6,TRUE) -> 4820.5 | K35: =VLOOKUP($G$19,Tablas!$A$9:$H$32,7,TRUE) -> 3186.7 | L35: =VLOOKUP($G$19,Tablas!$A$9:$H$32,8,TRUE) -> 2508.4
F36: Prima de Cónyuge | G36: n/a | H36: =IF($G$17=1,0,(VLOOKUP($L$19,Tablas!$A$9:$H$32,4,TRUE))) -> 14796.2 | I36: =IF($G$17=1,0,(VLOOKUP($L$19,Tablas!$A$9:$H$32,5,TRUE))) -> 10021.5 | J36: =IF($G$17=1,0,(VLOOKUP($L$19,Tablas!$A$9:$H$32,6,TRUE))) -> 7420.3 | K36: =IF($G$17=1,0,(VLOOKUP($L$19,Tablas!$A$9:$H$32,7,TRUE))) -> 5181.7 | L36: =IF($G$17=1,0,(VLOOKUP($L$19,Tablas!$A$9:$H$32,8,TRUE))) -> 4089.7
F37: Primas Hijos | G37: n/a | H37: =IF($L$17=0,0,(VLOOKUP($L$17,Tablas!$A$33:$H$35,4,TRUE))) -> 8446.9 | I37: =IF($L$17=0,0,(VLOOKUP($L$17,Tablas!$A$33:$H$35,5,TRUE))) -> 6216.7 | J37: =IF($L$17=0,0,(VLOOKUP($L$17,Tablas!$A$33:$H$35,6,TRUE))) -> 4986.1 | K37: =IF($L$17=0,0,(VLOOKUP($L$17,Tablas!$A$33:$H$35,7,TRUE))) -> 3889.9 | L37: =IF($L$17=0,0,(VLOOKUP($L$17,Tablas!$A$33:$H$35,8,TRUE))) -> 3031
F38: Rider: Complicación de Maternidad | G38: n/a | H38: =+IF($G$2=FALSE,0,Tablas!D$36) -> 0 | I38: =+IF($G$2=FALSE,0,Tablas!E$36) -> 0 | J38: =+IF($G$2=FALSE,0,Tablas!F$36) -> 0 | K38: =+IF($G$2=FALSE,0,Tablas!G$36) -> 0 | L38: =+IF($G$2=FALSE,0,Tablas!H$36) -> 0
F39: TOTAL PRIMA NETA | G39: n/a | H39: =SUM(H35:H38) -> 33695.8 | I39: =SUM(I35:I38) -> 23159.4 | J39: =SUM(J35:J38) -> 17226.9 | K39: =SUM(K35:K38) -> 12258.3 | L39: =SUM(L35:L38) -> 9629.1
F40: Costo Administrativo Anual | G40: n/a | H40: 75 | I40: 75 | J40: 75 | K40: 75 | L40: 75
F41: GRAN TOTAL: | G41: n/a | H41: =SUM(H39:H40) -> 33770.8 | I41: =SUM(I39:I40) -> 23234.4 | J41: =SUM(J39:J40) -> 17301.9 | K41: =SUM(K39:K40) -> 12333.3 | L41: =SUM(L39:L40) -> 9704.1
F44: TARIFAS SEMESTRALES
F45: Prima de Titular | G45: n/a | H45: =VLOOKUP($G$19,Tablas!$A$44:$H$67,4,TRUE) -> 5539.931 | I45: =VLOOKUP($G$19,Tablas!$A$44:$H$67,5,TRUE) -> 3668.236 | J45: =VLOOKUP($G$19,Tablas!$A$44:$H$67,6,TRUE) -> 2554.865 | K45: =VLOOKUP($G$19,Tablas!$A$44:$H$67,7,TRUE) -> 1688.951 | L45: =VLOOKUP($G$19,Tablas!$A$44:$H$67,8,TRUE) -> 1329.452
F46: Prima de Cónyuge | G46: n/a | H46: =IF($G$17=1,0,(VLOOKUP($L$19,Tablas!$A$44:$H$67,4,TRUE))) -> 7841.986 | I46: =IF($G$17=1,0,(VLOOKUP($L$19,Tablas!$A$44:$H$67,5,TRUE))) -> 5311.395 | J46: =IF($G$17=1,0,(VLOOKUP($L$19,Tablas!$A$44:$H$67,6,TRUE))) -> 3932.759 | K46: =IF($G$17=1,0,(VLOOKUP($L$19,Tablas!$A$44:$H$67,7,TRUE))) -> 2746.301 | L46: =IF($G$17=1,0,(VLOOKUP($L$19,Tablas!$A$44:$H$67,8,TRUE))) -> 2167.541
F47: Primas Hijos | G47: n/a | H47: =IF($L$17=0,0,(VLOOKUP($L$17,Tablas!$A$68:$H$70,4,TRUE))) -> 4476.857 | I47: =IF($L$17=0,0,(VLOOKUP($L$17,Tablas!$A$68:$H$70,5,TRUE))) -> 3294.851 | J47: =IF($L$17=0,0,(VLOOKUP($L$17,Tablas!$A$68:$H$70,6,TRUE))) -> 2642.633 | K47: =IF($L$17=0,0,(VLOOKUP($L$17,Tablas!$A$68:$H$70,7,TRUE))) -> 2061.647 | L47: =IF($L$17=0,0,(VLOOKUP($L$17,Tablas!$A$68:$H$70,8,TRUE))) -> 1606.43
F48: Rider: Complicación de Maternidad | G48: n/a | H48: =+IF($G$2=FALSE,0,Tablas!D$71) -> 0 | I48: =+IF($G$2=FALSE,0,Tablas!E$71) -> 0 | J48: =+IF($G$2=FALSE,0,Tablas!F$71) -> 0 | K48: =+IF($G$2=FALSE,0,Tablas!G$71) -> 0 | L48: =+IF($G$2=FALSE,0,Tablas!H$71) -> 0
F49: TOTAL PRIMA NETA | G49: n/a | H49: =SUM(H45:H48) -> 17858.774 | I49: =SUM(I45:I48) -> 12274.482 | J49: =SUM(J45:J48) -> 9130.257 | K49: =SUM(K45:K48) -> 6496.899 | L49: =SUM(L45:L48) -> 5103.423
F50: Costo Administrativo Anual | G50: n/a | H50: 75 | I50: 75 | J50: 75 | K50: 75 | L50: 75
F51: TOTAL (1ra Cuota) | G51: n/a | H51: =SUM(H49:H50) -> 17933.774 | I51: =SUM(I49:I50) -> 12349.482 | J51: =SUM(J49:J50) -> 9205.257 | K51: =SUM(K49:K50) -> 6571.899 | L51: =SUM(L49:L50) -> 5178.423
F52: TOTAL (2da Cuota) | G52: n/a | H52: =H49 -> 17858.774 | I52: =I49 -> 12274.482 | J52: 9130.257 | K52: 6496.899 | L52: 5103.423
F53: GRAN TOTAL | G53: n/a | H53: =SUM(H51:H52) -> 35792.548 | I53: =SUM(I51:I52) -> 24623.964 | J53: 18335.514 | K53: 13068.798 | L53: 10281.846
F55: Este presupuesto solamente tiene carácter informativo y en ningún momento expresa compromiso legal para suministrarle cobertura de seguro. La emisión de una póliza de seguro Bupa está sujeta a todas las evaluaciones de riesgo por parte de Bupa y a la recepción de todos los pagos de prima requeridos.

Sheet Bupa Privilege Care
N1: RESUMEN DE BENEFICIOS | AB1: RESUMEN DE BENEFICIOS
G2: FALSE
F5: Cotización de Seguro Médico Internacional Bupa Privilege Care Tarifas en US$ | Validas: 1 de enero de 2025 | L5: REGIÓN
L7: ='INGRESO DE DATOS'!W15 -> Venezuela
F13: Nombre del asegurado principal | G13: =+'INGRESO DE DATOS'!$C$36 -> John Doe
F15: Broker/Agente | G15: =+'INGRESO DE DATOS'!$C$47 -> Agencia
F17: Número de Adultos en la Póliza | G17: =+'INGRESO DE DATOS'!$C$38 -> 2 | I17: Dependientes (menores de 24 años) | L17: =+'INGRESO DE DATOS'!$C$40 -> 3
I18: =IF('INGRESO DE DATOS'!$P$2=TRUE, "Cotización para dependiente de 24 años","") -> 
F19: Edad del Titular | G19: =+'INGRESO DE DATOS'!$C$42 -> 24 | I19: Edad del Cónyuge | L19: =+'INGRESO DE DATOS'!$C$44 -> 41
I21: Fecha de Cotización: | K21: =NOW() -> 2024-11-13T12:19:52.560
F25: DEDUCIBLES | G25: PLAN 1 | H25: PLAN 2 | I25: PLAN 3 | J25: PLAN 4 | K25: PLAN 5 | L25: PLAN 6
F26: Dentro del pais de residencia | G26: n/a | H26: 1000 | I26: 2000 | J26: 5000 | K26: 10000 | L26: 20000
F27: Fuera del pais de residencia | G27: n/a | H27: 2000 | I27: 3000 | J27: 5000 | K27: 10000 | L27: 20000
F30: TARIFAS ANUALES
F31: Prima de Titular | G31: n/a | H31: =VLOOKUP($G$19,Tablas!$A$152:$H$175,4,TRUE) -> 8795.1 | I31: =VLOOKUP($G$19,Tablas!$A$152:$H$175,5,TRUE) -> 6052.5 | J31: =VLOOKUP($G$19,Tablas!$A$152:$H$175,6,TRUE) -> 4187 | K31: =VLOOKUP($G$19,Tablas!$A$152:$H$175,7,TRUE) -> 2753.4 | L31: =VLOOKUP($G$19,Tablas!$A$152:$H$175,8,TRUE) -> 2101
F32: Prima de Cónyuge | G32: n/a | H32: =IF($G$17=1,0,(VLOOKUP($L$19,Tablas!$A$152:$H$175,4,TRUE))) -> 12490.4 | I32: =IF($G$17=1,0,(VLOOKUP($L$19,Tablas!$A$152:$H$175,5,TRUE))) -> 8783.9 | J32: =IF($G$17=1,0,(VLOOKUP($L$19,Tablas!$A$152:$H$175,6,TRUE))) -> 6464.8 | K32: =IF($G$17=1,0,(VLOOKUP($L$19,Tablas!$A$152:$H$175,7,TRUE))) -> 4553.8 | L32: =IF($G$17=1,0,(VLOOKUP($L$19,Tablas!$A$152:$H$175,8,TRUE))) -> 3479.3
F33: Primas Hijos | G33: n/a | H33: =IF($L$17=0,0,(VLOOKUP($L$17,Tablas!$A$176:$H$178,4,TRUE))) -> 7098.7 | I33: =IF($L$17=0,0,(VLOOKUP($L$17,Tablas!$A$176:$H$178,5,TRUE))) -> 5193.3 | J33: =IF($L$17=0,0,(VLOOKUP($L$17,Tablas!$A$176:$H$178,6,TRUE))) -> 3952.2 | K33: =IF($L$17=0,0,(VLOOKUP($L$17,Tablas!$A$176:$H$178,7,TRUE))) -> 3088.4 | L33: =IF($L$17=0,0,(VLOOKUP($L$17,Tablas!$A$176:$H$178,8,TRUE))) -> 2287.6
F34: Rider: Complicaciónes de Maternidad | G34: n/a | H34: =+IF($G$2=FALSE,0,Tablas!D$179) -> 0 | I34: =+IF($G$2=FALSE,0,Tablas!E$179) -> 0 | J34: =+IF($G$2=FALSE,0,Tablas!F$179) -> 0 | K34: =+IF($G$2=FALSE,0,Tablas!G$179) -> 0 | L34: =+IF($G$2=FALSE,0,Tablas!H$179) -> 0
F35: TOTAL PRIMA NETA | G35: n/a | H35: =SUM(H31:H34) -> 28384.2 | I35: =SUM(I31:I34) -> 20029.7 | J35: =SUM(J31:J34) -> 14604 | K35: =SUM(K31:K34) -> 10395.6 | L35: =SUM(L31:L34) -> 7867.9
F36: Costo Administrativo Anual | G36: n/a | H36: 75 | I36: 75 | J36: 75 | K36: 75 | L36: 75
F37: GRAN TOTAL | G37: n/a | H37: =SUM(H35:H36) -> 28459.2 | I37: =SUM(I35:I36) -> 20104.7 | J37: =SUM(J35:J36) -> 14679 | K37: =SUM(K35:K36) -> 10470.6 | L37: =SUM(L35:L36) -> 7942.9
F40: TARIFAS SEMESTRALES
F41: Prima de Titular | G41: n/a | H41: =VLOOKUP($G$19,Tablas!$A$187:$H$210,4,TRUE) -> 4661.403 | I41: =VLOOKUP($G$19,Tablas!$A$187:$H$210,5,TRUE) -> 3207.825 | J41: =VLOOKUP($G$19,Tablas!$A$187:$H$210,6,TRUE) -> 2219.11 | K41: =VLOOKUP($G$19,Tablas!$A$187:$H$210,7,TRUE) -> 1459.302 | L41: =VLOOKUP($G$19,Tablas!$A$187:$H$210,8,TRUE) -> 1113.53
F42: Prima de Cónyuge | G42: n/a | H42: =IF($G$17=1,0,(VLOOKUP($L$19,Tablas!$A$187:$H$210,4,TRUE))) -> 6619.912 | I42: =IF($G$17=1,0,(VLOOKUP($L$19,Tablas!$A$187:$H$210,5,TRUE))) -> 4655.467 | J42: =IF($G$17=1,0,(VLOOKUP($L$19,Tablas!$A$187:$H$210,6,TRUE))) -> 3426.344 | K42: =IF($G$17=1,0,(VLOOKUP($L$19,Tablas!$A$187:$H$210,7,TRUE))) -> 2413.514 | L42: =IF($G$17=1,0,(VLOOKUP($L$19,Tablas!$A$187:$H$210,8,TRUE))) -> 1844.029
F43: Primas Hijos | G43: n/a | H43: =IF($L$17=0,0,(VLOOKUP($L$17,Tablas!$A$211:$H$213,4,TRUE))) -> 3762.311 | I43: =IF($L$17=0,0,(VLOOKUP($L$17,Tablas!$A$211:$H$213,5,TRUE))) -> 2752.449 | J43: =IF($L$17=0,0,(VLOOKUP($L$17,Tablas!$A$211:$H$213,6,TRUE))) -> 2094.666 | K43: =IF($L$17=0,0,(VLOOKUP($L$17,Tablas!$A$211:$H$213,7,TRUE))) -> 1636.852 | L43: =IF($L$17=0,0,(VLOOKUP($L$17,Tablas!$A$211:$H$213,8,TRUE))) -> 1212.428
F44: Prima Rider Complic. Maternidad | G44: n/a | H44: =+IF($G$2=FALSE,0,Tablas!D$214) -> 0 | I44: =+IF($G$2=FALSE,0,Tablas!E$214) -> 0 | J44: =+IF($G$2=FALSE,0,Tablas!F$214) -> 0 | K44: =+IF($G$2=FALSE,0,Tablas!G$214) -> 0 | L44: =+IF($G$2=FALSE,0,Tablas!H$214) -> 0
F45: TOTAL PRIMA NETA | G45: n/a | H45: =SUM(H41:H44) -> 15043.626 | I45: =SUM(I41:I44) -> 10615.741 | J45: =SUM(J41:J44) -> 7740.12 | K45: =SUM(K41:K44) -> 5509.668 | L45: =SUM(L41:L44) -> 4169.987
F46: Costo Administrativo Anual | G46: n/a | H46: 75 | I46: 75 | J46: 75 | K46: 75 | L46: 75
F47: TOTAL (1ra Cuota) : | G47: n/a | H47: =SUM(H45:H46) -> 15118.626 | I47: =SUM(I45:I46) -> 10690.741 | J47: =SUM(J45:J46) -> 7815.12 | K47: =SUM(K45:K46) -> 5584.668 | L47: =SUM(L45:L46) -> 4244.987
F48: TOTAL (2da Cuota) : | G48: n/a | H48: =H45 -> 15043.626 | I48: =I45 -> 10615.741 | J48: 7740.12 | K48: 5509.668 | L48: 4169.987
F49: GRAN TOTAL | G49: n/a | H49: =SUM(H47:H48) -> 30162.252 | I49: =SUM(I47:I48) -> 21306.482 | J49: 15555.24 | K49: 11094.336 | L49: 8414.974
F51: Este presupuesto solamente tiene carácter informativo y en ningún momento expresa compromiso legal para suministrarle cobertura de seguro. La emisión de una póliza de seguro Bupa está sujeta a todas las evaluaciones de riesgo por parte de Bupa y a la recepción de todos los pagos de prima requeridos.

Sheet Bupa Advantage Care (Mundial)
C1: FALSE | D1: FALSE | I1: RESUMEN DE BENEFICIOS | W1: RESUMEN DE BENEFICIOS
A5: Cotización de Seguro Médico Internacional Bupa Advantage Care (Mundial) Tarifas en US$ | Validas: 1 de enero de 2025 | G5: REGIÓN
G7: ='INGRESO DE DATOS'!W15 -> Venezuela
A13: Nombre del asegurado principal | B13: =+'INGRESO DE DATOS'!$C$36 -> John Doe
A15: Broker/Agente | B15: =+'INGRESO DE DATOS'!$C$47 -> Agencia
A17: Número de Adultos en la Póliza | B17: =+'INGRESO DE DATOS'!$C$38 -> 2 | D17: Dependientes (menores de 24 años) | G17: =+'INGRESO DE DATOS'!$C$40 -> 3
D18: =IF('INGRESO DE DATOS'!$P$2=TRUE, "Cotización para dependiente de 24 años","") -> 
A19: Edad del Titular | B19: =+'INGRESO DE DATOS'!$C$42 -> 24 | D19: Edad del Cónyuge | G19: =+'INGRESO DE DATOS'!$C$44 -> 41
D21: Fecha de Cotización: | F21: =NOW() -> 2024-11-13T12:19:52.560
A25: DEDUCIBLES | B25: PLAN 1 | C25: PLAN 2 | D25: PLAN 3 | E25: PLAN 4 | F25: PLAN 5 | G25: PLAN 6
A26: Dentro del pais de residencia | B26: n/a | C26: 1000 | D26: 2000 | E26: 5000 | F26: 10000 | G26: 20000
A27: Fuera del pais de residencia | B27: n/a | C27: 2000 | D27: 3000 | E27: 5000 | F27: 10000 | G27: 20000
A30: TARIFAS ANUALES
A31: Prima de Titular | B31: n/a | C31: =VLOOKUP($B$19,Tablas!$A$297:$H$320,4,TRUE) -> 5711.6 | D31: =VLOOKUP($B$19,Tablas!$A$297:$H$320,5,TRUE) -> 4297.6 | E31: =VLOOKUP($B$19,Tablas!$A$297:$H$320,6,TRUE) -> 3210.5 | F31: =VLOOKUP($B$19,Tablas!$A$297:$H$320,7,TRUE) -> 2267.6 | G31: =VLOOKUP($B$19,Tablas!$A$297:$H$320,8,TRUE) -> 1801.4
A32: Prima de Cónyuge | B32: n/a | C32: =IF($B$17=1,0,(VLOOKUP($G$19,Tablas!$A$297:$H$320,4,TRUE))) -> 9189.9 | D32: =IF($B$17=1,0,(VLOOKUP($G$19,Tablas!$A$297:$H$320,5,TRUE))) -> 7099.7 | E32: =IF($B$17=1,0,(VLOOKUP($G$19,Tablas!$A$297:$H$320,6,TRUE))) -> 5344.8 | F32: =IF($B$17=1,0,(VLOOKUP($G$19,Tablas!$A$297:$H$320,7,TRUE))) -> 3806.9 | G32: =IF($B$17=1,0,(VLOOKUP($G$19,Tablas!$A$297:$H$320,8,TRUE))) -> 2895.5
A33: Primas Hijos | B33: n/a | C33: =IF($G$17=0,0,(VLOOKUP($G$17,Tablas!$A$321:$H$323,4,TRUE))) -> 6043.1 | D33: =IF($G$17=0,0,(VLOOKUP($G$17,Tablas!$A$321:$H$323,5,TRUE))) -> 4155.9 | E33: =IF($G$17=0,0,(VLOOKUP($G$17,Tablas!$A$321:$H$323,6,TRUE))) -> 3201.8 | F33: =IF($G$17=0,0,(VLOOKUP($G$17,Tablas!$A$321:$H$323,7,TRUE))) -> 2600.5 | G33: =IF($G$17=0,0,(VLOOKUP($G$17,Tablas!$A$321:$H$323,8,TRUE))) -> 1827
A34: Rider: Complicaciones de Maternidad | B34: n/a | C34: =+IF($C$1=FALSE,0,Tablas!D$324) -> 0 | D34: =+IF($C$1=FALSE,0,Tablas!E$324) -> 0 | E34: =+IF($C$1=FALSE,0,Tablas!F$324) -> 0 | F34: =+IF($C$1=FALSE,0,Tablas!G$324) -> 0 | G34: =+IF($C$1=FALSE,0,Tablas!H$324) -> 0
A35: Rider: Trasplante Organos | B35: n/a | C35: =IF($D$1=FALSE,0,Tablas!D$325) -> 0 | D35: =IF($D$1=FALSE,0,Tablas!E$325) -> 0 | E35: =IF($D$1=FALSE,0,Tablas!F$325) -> 0 | F35: =IF($D$1=FALSE,0,Tablas!G$325) -> 0 | G35: =IF($D$1=FALSE,0,Tablas!H$325) -> 0
A36: TOTAL PRIMA NETA | B36: n/a | C36: =SUM(C31:C35) -> 20944.6 | D36: 15553.2 | E36: 11757.1 | F36: 8675 | G36: 6523.9
A37: Costo Administrativo Annual | B37: n/a | C37: 75 | D37: 75 | E37: 75 | F37: 75 | G37: 75
A38: GRAN TOTAL : | B38: n/a | C38: =SUM(C36:C37) -> 21019.6 | D38: =SUM(D36:D37) -> 15628.2 | E38: =SUM(E36:E37) -> 11832.1 | F38: =SUM(F36:F37) -> 8750 | G38: =SUM(G36:G37) -> 6598.9
A41: TARIFAS SEMESTRALES
A42: Prima de Titular | B42: n/a | C42: =VLOOKUP($B$19,Tablas!$A$332:$H$355,4,TRUE) -> 3027.148 | D42: =VLOOKUP($B$19,Tablas!$A$332:$H$355,5,TRUE) -> 2277.728 | E42: =VLOOKUP($B$19,Tablas!$A$332:$H$355,6,TRUE) -> 1701.565 | F42: =VLOOKUP($B$19,Tablas!$A$332:$H$355,7,TRUE) -> 1201.828 | G42: =VLOOKUP($B$19,Tablas!$A$332:$H$355,8,TRUE) -> 954.742
A43: Prima de Cónyuge | B43: n/a | C43: =IF($B$17=1,0,(VLOOKUP($G$19,Tablas!$A$332:$H$355,4,TRUE))) -> 4870.647 | D43: =IF($B$17=1,0,(VLOOKUP($G$19,Tablas!$A$332:$H$355,5,TRUE))) -> 3762.841 | E43: =IF($B$17=1,0,(VLOOKUP($G$19,Tablas!$A$332:$H$355,6,TRUE))) -> 2832.744 | F43: =IF($B$17=1,0,(VLOOKUP($G$19,Tablas!$A$332:$H$355,7,TRUE))) -> 2017.657 | G43: =IF($B$17=1,0,(VLOOKUP($G$19,Tablas!$A$332:$H$355,8,TRUE))) -> 1534.615
A44: Primas Hijos | B44: n/a | C44: =IF($G$17=0,0,(VLOOKUP($G$17,Tablas!$A$356:$H$358,4,TRUE))) -> 3202.843 | D44: =IF($G$17=0,0,(VLOOKUP($G$17,Tablas!$A$356:$H$358,5,TRUE))) -> 2202.627 | E44: =IF($G$17=0,0,(VLOOKUP($G$17,Tablas!$A$356:$H$358,6,TRUE))) -> 1696.954 | F44: =IF($G$17=0,0,(VLOOKUP($G$17,Tablas!$A$356:$H$358,7,TRUE))) -> 1378.265 | G44: =IF($G$17=0,0,(VLOOKUP($G$17,Tablas!$A$356:$H$358,8,TRUE))) -> 968.31
A45: Rider: Complicaciones de Maternidad | B45: n/a | C45: =+IF($C$1=FALSE,0,Tablas!D$359) -> 0 | D45: =+IF($C$1=FALSE,0,Tablas!E$359) -> 0 | E45: =+IF($C$1=FALSE,0,Tablas!F$359) -> 0 | F45: =+IF($C$1=FALSE,0,Tablas!G$359) -> 0 | G45: =+IF($C$1=FALSE,0,Tablas!H$359) -> 0
A46: Rider: Trasplante Organos | B46: n/a | C46: =IF($D$1=FALSE,0,Tablas!D$360) -> 0 | D46: =IF($D$1=FALSE,0,Tablas!E$360) -> 0 | E46: =IF($D$1=FALSE,0,Tablas!F$360) -> 0 | F46: =IF($D$1=FALSE,0,Tablas!G$360) -> 0 | G46: =IF($D$1=FALSE,0,Tablas!H$360) -> 0
A47: TOTAL PRIMA NETA | B47: n/a | C47: =SUM(C42:C46) -> 11100.638 | D47: 8243.196 | E47: 6231.263 | F47: 4597.75 | G47: 3457.667
A48: Costo Administrativo Anual | B48: n/a | C48: 75 | D48: 75 | E48: 75 | F48: 75 | G48: 75
A49: TOTAL (1ra Cuota) | B49: n/a | C49: =SUM(C47:C48) -> 11175.638 | D49: =SUM(D47:D48) -> 8318.196 | E49: =SUM(E47:E48) -> 6306.263 | F49: =SUM(F47:F48) -> 4672.75 | G49: =SUM(G47:G48) -> 3532.667
A50: TOTAL (2da Cuota) | B50: n/a | C50: =C47 -> 11100.638 | D50: =D47 -> 8243.196 | E50: 6231.263 | F50: 4597.75 | G50: 3457.667
A51: GRAN TOTAL | B51: n/a | C51: =SUM(C49:C50) -> 22276.276 | D51: =SUM(D49:D50) -> 16561.392 | E51: 12537.526 | F51: 9270.5 | G51: 6990.334
A54: Este presupuesto solamente tiene carácter informativo y en ningún momento expresa compromiso legal para suministrarle cobertura de seguro. La emisión de una póliza de seguro Bupa está sujeta a todas las evaluaciones de riesgo por parte de Bupa y a la recepción de todos los pagos de prima requeridos.

Sheet Bupa Secure Care
B1: FALSE | C1: FALSE | I1: RESUMEN DE BENEFICIOS | W1: RESUMEN DE BENEFICIOS
A5: Cotización de Seguro Médico Internacional Bupa Secure Care Tarifas en US$ | Validas: 1 de enero de 2025 | G5: REGIÓN
G7: ='INGRESO DE DATOS'!W15 -> Venezuela
A13: Nombre del asegurado principal | B13: =+'INGRESO DE DATOS'!$C$36 -> John Doe
A15: Broker/Agente | B15: =+'INGRESO DE DATOS'!$C$47 -> Agencia
A17: Número de Adultos en la Póliza | B17: =+'INGRESO DE DATOS'!$C$38 -> 2 | D17: Dependientes (menores de 24 años) | G17: =+'INGRESO DE DATOS'!$C$40 -> 3
D18: =IF('INGRESO DE DATOS'!$P$2=TRUE, "Cotización para dependiente de 24 años","") -> 
A19: Edad del Titular | B19: =+'INGRESO DE DATOS'!$C$42 -> 24 | D19: Edad del Cónyuge | G19: =+'INGRESO DE DATOS'!$C$44 -> 41
D21: Fecha de Cotización: | F21: =NOW() -> 2024-11-13T12:19:52.560
A25: DEDUCIBLES | B25: PLAN 1 | C25: PLAN 2 | D25: PLAN 3 | E25: PLAN 4 | F25: PLAN 5 | G25: PLAN 6
A26: Dentro del pais de residencia | B26: n/a | C26: 1000 | D26: 2000 | E26: 5000 | F26: 10000 | G26: 20000
A27: Fuera del pais de residencia | B27: n/a | C27: 2000 | D27: 3000 | E27: 5000 | F27: 10000 | G27: 20000
A30: TARIFAS ANUALES
A31: Prima de Titular | B31: n/a | C31: =VLOOKUP($B$19,Tablas!$A$440:$H$463,4,TRUE) -> 4161.1 | D31: =VLOOKUP($B$19,Tablas!$A$440:$H$463,5,TRUE) -> 3266.5 | E31: =VLOOKUP($B$19,Tablas!$A$440:$H$463,6,TRUE) -> 2432.8 | F31: =VLOOKUP($B$19,Tablas!$A$440:$H$463,7,TRUE) -> 1968.7 | G31: =VLOOKUP($B$19,Tablas!$A$440:$H$463,8,TRUE) -> 1505.3
A32: Prima de Cónyuge | B32: n/a | C32: =IF($B$17=1,0,(VLOOKUP($G$19,Tablas!$A$440:$H$463,4,TRUE))) -> 6482.3 | D32: =IF($B$17=1,0,(VLOOKUP($G$19,Tablas!$A$440:$H$463,5,TRUE))) -> 5512.8 | E32: =IF($B$17=1,0,(VLOOKUP($G$19,Tablas!$A$440:$H$463,6,TRUE))) -> 3942.7 | F32: =IF($B$17=1,0,(VLOOKUP($G$19,Tablas!$A$440:$H$463,7,TRUE))) -> 3193 | G32: =IF($B$17=1,0,(VLOOKUP($G$19,Tablas!$A$440:$H$463,8,TRUE))) -> 2402
A33: Primas Hijos | B33: n/a | C33: =IF($G$17=0,0,(VLOOKUP($G$17,Tablas!$A$464:$H$466,4,TRUE))) -> 4964.7 | D33: =IF($G$17=0,0,(VLOOKUP($G$17,Tablas!$A$464:$H$466,5,TRUE))) -> 2535.7 | E33: =IF($G$17=0,0,(VLOOKUP($G$17,Tablas!$A$464:$H$466,6,TRUE))) -> 2241 | F33: =IF($G$17=0,0,(VLOOKUP($G$17,Tablas!$A$464:$H$466,7,TRUE))) -> 1811.9 | G33: =IF($G$17=0,0,(VLOOKUP($G$17,Tablas!$A$464:$H$466,8,TRUE))) -> 1340.8
A34: Rider: Complicaciones de Maternidad | B34: n/a | C34: =+IF($B$1=FALSE,0,Tablas!D$467) -> 0 | D34: =+IF($B$1=FALSE,0,Tablas!E$467) -> 0 | E34: =+IF($B$1=FALSE,0,Tablas!F$467) -> 0 | F34: =+IF($B$1=FALSE,0,Tablas!G$467) -> 0 | G34: =+IF($B$1=FALSE,0,Tablas!H$467) -> 0
A35: Rider: Trasplante Organos | B35: n/a | C35: =IF($C$1=FALSE,0,Tablas!D$468) -> 0 | D35: =IF($C$1=FALSE,0,Tablas!E$468) -> 0 | E35: =IF($C$1=FALSE,0,Tablas!F$468) -> 0 | F35: =IF($C$1=FALSE,0,Tablas!G$468) -> 0 | G35: =IF($C$1=FALSE,0,Tablas!H$468) -> 0
A36: TOTAL PRIMA NETA | B36: n/a | C36: =SUM(C31:C35) -> 15608.1 | D36: 11315 | E36: 8616.5 | F36: 6973.6 | G36: 5248.1
A37: Costo Administrativo Annual | B37: n/a | C37: 75 | D37: 75 | E37: 75 | F37: 75 | G37: 75
A38: GRAN TOTAL : | B38: n/a | C38: =SUM(C36:C37) -> 15683.1 | D38: =SUM(D36:D37) -> 11390 | E38: =SUM(E36:E37) -> 8691.5 | F38: =SUM(F36:F37) -> 7048.6 | G38: =SUM(G36:G37) -> 5323.1
A40: TARIFAS SEMESTRALES
A41: Prima de Titular | B41: n/a | C41: =VLOOKUP($B$19,Tablas!$A$476:$H$499,4,TRUE) -> 2205.383 | D41: =VLOOKUP($B$19,Tablas!$A$476:$H$499,5,TRUE) -> 1731.245 | E41: =VLOOKUP($B$19,Tablas!$A$476:$H$499,6,TRUE) -> 1289.384 | F41: =VLOOKUP($B$19,Tablas!$A$476:$H$499,7,TRUE) -> 1043.411 | G41: =VLOOKUP($B$19,Tablas!$A$476:$H$499,8,TRUE) -> 797.809
A42: Prima de Cónyuge | B42: n/a | C42: =IF($B$17=1,0,(VLOOKUP($G$19,Tablas!$A$476:$H$499,4,TRUE))) -> 3435.619 | D42: =IF($B$17=1,0,(VLOOKUP($G$19,Tablas!$A$476:$H$499,5,TRUE))) -> 2921.784 | E42: =IF($B$17=1,0,(VLOOKUP($G$19,Tablas!$A$476:$H$499,6,TRUE))) -> 2089.631 | F42: =IF($B$17=1,0,(VLOOKUP($G$19,Tablas!$A$476:$H$499,7,TRUE))) -> 1692.29 | G42: =IF($B$17=1,0,(VLOOKUP($G$19,Tablas!$A$476:$H$499,8,TRUE))) -> 1273.06
A43: Primas Hijos | B43: n/a | C43: =IF($G$17=0,0,(VLOOKUP($G$17,Tablas!$A$500:$H$502,4,TRUE))) -> 2631.291 | D43: =IF($G$17=0,0,(VLOOKUP($G$17,Tablas!$A$500:$H$502,5,TRUE))) -> 1343.921 | E43: =IF($G$17=0,0,(VLOOKUP($G$17,Tablas!$A$500:$H$502,6,TRUE))) -> 1187.73 | F43: =IF($G$17=0,0,(VLOOKUP($G$17,Tablas!$A$500:$H$502,7,TRUE))) -> 960.307 | G43: =IF($G$17=0,0,(VLOOKUP($G$17,Tablas!$A$500:$H$502,8,TRUE))) -> 710.624
A44: Rider: Complicaciones de Maternidad | B44: n/a | C44: =+IF($B$1=FALSE,0,Tablas!D$503) -> 0 | D44: =+IF($B$1=FALSE,0,Tablas!E$503) -> 0 | E44: =+IF($B$1=FALSE,0,Tablas!F$503) -> 0 | F44: =+IF($B$1=FALSE,0,Tablas!G$503) -> 0 | G44: =+IF($B$1=FALSE,0,Tablas!H$503) -> 0
A45: Rider: Trasplante Organos | B45: n/a | C45: =IF($C$1=FALSE,0,Tablas!D$504) -> 0 | D45: =IF($C$1=FALSE,0,Tablas!E$504) -> 0 | E45: =IF($C$1=FALSE,0,Tablas!F$504) -> 0 | F45: =IF($C$1=FALSE,0,Tablas!G$504) -> 0 | G45: =IF($C$1=FALSE,0,Tablas!H$504) -> 0
A46: TOTAL PRIMA NETA | B46: n/a | C46: =SUM(C41:C45) -> 8272.293 | D46: 5996.95 | E46: 4566.745 | F46: 3696.008 | G46: 2781.493
A47: Costo Administrativo Anual | B47: n/a | C47: 75 | D47: 75 | E47: 75 | F47: 75 | G47: 75
A48: TOTAL (1ra Cuota) | B48: n/a | C48: =SUM(C46:C47) -> 8347.293 | D48: =SUM(D46:D47) -> 6071.95 | E48: =SUM(E46:E47) -> 4641.745 | F48: =SUM(F46:F47) -> 3771.008 | G48: =SUM(G46:G47) -> 2856.493
A49: TOTAL (2da Cuota) | B49: n/a | C49: =C46 -> 8272.293 | D49: =D46 -> 5996.95 | E49: 4566.745 | F49: 3696.008 | G49: 2781.493
A50: GRAN TOTAL | B50: n/a | C50: =SUM(C48:C49) -> 16619.586 | D50: =SUM(D48:D49) -> 12068.9 | E50: 9208.49 | F50: 7467.016 | G50: 5637.986
A52: Este presupuesto solamente tiene carácter informativo y en ningún momento expresa compromiso legal para suministrarle cobertura de seguro. La emisión de una póliza de seguro Bupa está sujeta a todas las evaluaciones de riesgo por parte de Bupa y a la recepción de todos los pagos de prima requeridos.

Sheet Bupa Essential Care
B1: FALSE | C1: FALSE | I1: RESUMEN DE BENEFICIOS | W1: RESUMEN DE BENEFICIOS
A5: Cotización de Seguro Médico Internacional Bupa Essential Care Tarifas en US$ | Validas: 1 de enero de 2025 | G5: REGIÓN
G7: ='INGRESO DE DATOS'!W15 -> Venezuela
A13: Nombre del asegurado principal | B13: =+'INGRESO DE DATOS'!$C$36 -> John Doe
A15: Broker/Agente | B15: =+'INGRESO DE DATOS'!$C$47 -> Agencia
A17: Número de Adultos en la Póliza | B17: =+'INGRESO DE DATOS'!$C$38 -> 2 | D17: Dependientes (menores de 24 años) | G17: =+'INGRESO DE DATOS'!$C$40 -> 3
D18: =IF('INGRESO DE DATOS'!$P$2=TRUE, "Cotización para dependiente de 24 años","") -> 
A19: Edad del Titular | B19: =+'INGRESO DE DATOS'!$C$42 -> 24 | D19: Edad del Cónyuge | G19: =+'INGRESO DE DATOS'!$C$44 -> 41
D21: Fecha de Cotización: | F21: =NOW() -> 2024-11-13T12:19:52.560
A25: DEdUCIBLES | B25: PLAN 1 | C25: PLAN 2 | D25: PLAN 3 | E25: PLAN 4 | F25: PLAN 5 | G25: PLAN 6
A26: Dentro del pais de residencia | B26: n/a | C26: 1000 | D26: 2000 | E26: 5000 | F26: 10000 | G26: 20000
A27: Fuera del pais de residencia | B27: n/a | C27: 2000 | D27: 3000 | E27: 5000 | F27: 10000 | G27: 20000
A30: TARIFAS ANUALES
A31: Prima de Titular | B31: n/a | C31: =VLOOKUP($B$19,Tablas!$A$513:$H$536,4,TRUE) -> 3736.4 | D31: =VLOOKUP($B$19,Tablas!$A$513:$H$536,5,TRUE) -> 2926.4 | E31: =VLOOKUP($B$19,Tablas!$A$513:$H$536,6,TRUE) -> 2179.4 | F31: =VLOOKUP($B$19,Tablas!$A$513:$H$536,7,TRUE) -> 1764.5 | G31: =VLOOKUP($B$19,Tablas!$A$513:$H$536,8,TRUE) -> 1337.9
A32: Prima de Cónyuge | B32: n/a | C32: =IF($B$17=1,0,(VLOOKUP($G$19,Tablas!$A$513:$H$536,4,TRUE))) -> 5833.4 | D32: =IF($B$17=1,0,(VLOOKUP($G$19,Tablas!$A$513:$H$536,5,TRUE))) -> 4959.5 | E32: =IF($B$17=1,0,(VLOOKUP($G$19,Tablas!$A$513:$H$536,6,TRUE))) -> 3540.2 | F32: =IF($B$17=1,0,(VLOOKUP($G$19,Tablas!$A$513:$H$536,7,TRUE))) -> 2875.1 | G32: =IF($B$17=1,0,(VLOOKUP($G$19,Tablas!$A$513:$H$536,8,TRUE))) -> 2156
A33: Primas Hijos | B33: n/a | C33: =IF($G$17=0,0,(VLOOKUP($G$17,Tablas!$A$537:$H$539,4,TRUE))) -> 4479.3 | D33: =IF($G$17=0,0,(VLOOKUP($G$17,Tablas!$A$537:$H$539,5,TRUE))) -> 2283.3 | E33: =IF($G$17=0,0,(VLOOKUP($G$17,Tablas!$A$537:$H$539,6,TRUE))) -> 2010.6 | F33: =IF($G$17=0,0,(VLOOKUP($G$17,Tablas!$A$537:$H$539,7,TRUE))) -> 1631.7 | G33: =IF($G$17=0,0,(VLOOKUP($G$17,Tablas!$A$537:$H$539,8,TRUE))) -> 1205.1
A34: Rider: Complicaciones de Maternidad | B34: n/a | C34: =+IF($B$1=FALSE,0,Tablas!D$540) -> 0 | D34: =+IF($B$1=FALSE,0,Tablas!E$540) -> 0 | E34: =+IF($B$1=FALSE,0,Tablas!F$540) -> 0 | F34: =+IF($B$1=FALSE,0,Tablas!G$540) -> 0 | G34: =+IF($B$1=FALSE,0,Tablas!H$540) -> 0
A35: Rider: Trasplante Organos | B35: n/a | C35: =IF($C$1=FALSE,0,Tablas!D$541) -> 0 | D35: =IF($C$1=FALSE,0,Tablas!E$541) -> 0 | E35: =IF($C$1=FALSE,0,Tablas!F$541) -> 0 | F35: =IF($C$1=FALSE,0,Tablas!G$541) -> 0 | G35: =IF($C$1=FALSE,0,Tablas!H$541) -> 0
A36: TOTAL PRIMA NETA | B36: n/a | C36: =SUM(C31:C35) -> 14049.1 | D36: 10169.2 | E36: 7730.2 | F36: 6271.3 | G36: 4699
A37: Costo Administrativo Annual | B37: n/a | C37: 75 | D37: 75 | E37: 75 | F37: 75 | G37: 75
A38: GRAN TOTAL : | B38: n/a | C38: =SUM(C36:C37) -> 14124.1 | D38: =SUM(D36:D37) -> 10244.2 | E38: =SUM(E36:E37) -> 7805.2 | F38: =SUM(F36:F37) -> 6346.3 | G38: =SUM(G36:G37) -> 4774
A41: TARIFAS SEMESTRALES
A42: Prima de Titular | B42: n/a | C42: =VLOOKUP($B$19,Tablas!$A$548:$H$571,4,TRUE) -> 1980.292 | D42: =VLOOKUP($B$19,Tablas!$A$548:$H$571,5,TRUE) -> 1550.992 | E42: =VLOOKUP($B$19,Tablas!$A$548:$H$571,6,TRUE) -> 1155.082 | F42: =VLOOKUP($B$19,Tablas!$A$548:$H$571,7,TRUE) -> 935.185 | G42: =VLOOKUP($B$19,Tablas!$A$548:$H$571,8,TRUE) -> 709.087
A43: Prima de Cónyuge | B43: n/a | C43: =IF($B$17=1,0,(VLOOKUP($G$19,Tablas!$A$548:$H$571,4,TRUE))) -> 3091.702 | D43: =IF($B$17=1,0,(VLOOKUP($G$19,Tablas!$A$548:$H$571,5,TRUE))) -> 2628.535 | E43: =IF($B$17=1,0,(VLOOKUP($G$19,Tablas!$A$548:$H$571,6,TRUE))) -> 1876.306 | F43: =IF($B$17=1,0,(VLOOKUP($G$19,Tablas!$A$548:$H$571,7,TRUE))) -> 1523.803 | G43: =IF($B$17=1,0,(VLOOKUP($G$19,Tablas!$A$548:$H$571,8,TRUE))) -> 1142.68
A44: Primas Hijos | B44: n/a | C44: =IF($G$17=0,0,(VLOOKUP($G$17,Tablas!$A$572:$H$574,4,TRUE))) -> 2374.029 | D44: =IF($G$17=0,0,(VLOOKUP($G$17,Tablas!$A$572:$H$574,5,TRUE))) -> 1210.149 | E44: =IF($G$17=0,0,(VLOOKUP($G$17,Tablas!$A$572:$H$574,6,TRUE))) -> 1065.618 | F44: =IF($G$17=0,0,(VLOOKUP($G$17,Tablas!$A$572:$H$574,7,TRUE))) -> 864.801 | G44: =IF($G$17=0,0,(VLOOKUP($G$17,Tablas!$A$572:$H$574,8,TRUE))) -> 638.703
A45: Rider: Complicaciones de Maternidad | B45: n/a | C45: =+IF($B$1=FALSE,0,Tablas!D$575) -> 0 | D45: =+IF($B$1=FALSE,0,Tablas!E$575) -> 0 | E45: =+IF($B$1=FALSE,0,Tablas!F$575) -> 0 | F45: =+IF($B$1=FALSE,0,Tablas!G$575) -> 0 | G45: =+IF($B$1=FALSE,0,Tablas!H$575) -> 0
A46: Rider: Trasplante Organos | B46: n/a | C46: =IF($C$1=FALSE,0,Tablas!D$576) -> 0 | D46: =IF($C$1=FALSE,0,Tablas!E$576) -> 0 | E46: =IF($C$1=FALSE,0,Tablas!F$576) -> 0 | F46: =IF($C$1=FALSE,0,Tablas!G$576) -> 0 | G46: =IF($C$1=FALSE,0,Tablas!H$576) -> 0
A47: TOTAL PRIMA NETA | B47: n/a | C47: =SUM(C42:C46) -> 7446.023 | D47: 5389.676 | E47: 4097.006 | F47: 3323.789 | G47: 2490.47
A48: Costo Administrativo Anual | B48: n/a | C48: 75 | D48: 75 | E48: 75 | F48: 75 | G48: 75
A49: TOTAL (1ra Cuota) | B49: n/a | C49: =SUM(C47:C48) -> 7521.023 | D49: =SUM(D47:D48) -> 5464.676 | E49: =SUM(E47:E48) -> 4172.006 | F49: =SUM(F47:F48) -> 3398.789 | G49: =SUM(G47:G48) -> 2565.47
A50: TOTAL (2da Cuota) | B50: n/a | C50: =C47 -> 7446.023 | D50: =D47 -> 5389.676 | E50: 4097.006 | F50: 3323.789 | G50: 2490.47
A51: GRAN TOTAL | B51: n/a | C51: =SUM(C49:C50) -> 14967.046 | D51: =SUM(D49:D50) -> 10854.352 | E51: 8269.012 | F51: 6722.578 | G51: 5055.94
A54: Este presupuesto solamente tiene carácter informativo y en ningún momento expresa compromiso legal para suministrarle cobertura de seguro. La emisión de una póliza de seguro Bupa está sujeta a todas las evaluaciones de riesgo por parte de Bupa y a la recepción de todos los pagos de prima requeridos.

Sheet Bupa Crititcal
B1: TRUE | J1: RESUMEN DE BENEFICIOS | X1: RESUMEN DE BENEFICIOS
A5: Cotización de Seguro Médico Internacional Bupa Critical Care Tarifas en US$ | Validas: 1 de enero de 2025 | H5: REGIÓN
H7: ='INGRESO DE DATOS'!W15 -> Venezuela
A13: Nombre del asegurado principal | B13: =+'INGRESO DE DATOS'!$C$36 -> John Doe
A15: Broker/Agente | B15: =+'INGRESO DE DATOS'!$C$47 -> Agencia
A17: Número de Adultos en la Póliza | B17: =+'INGRESO DE DATOS'!$C$38 -> 2 | D17: Dependientes (menores de 24 años) | H17: =+'INGRESO DE DATOS'!$C$40 -> 3
D18: =IF('INGRESO DE DATOS'!$P$2=TRUE, "Cotización para dependiente de 24 años","") -> 
A19: Edad del Titular | B19: =+'INGRESO DE DATOS'!$C$42 -> 24 | D19: Edad del Cónyuge | H19: =+'INGRESO DE DATOS'!$C$44 -> 41
D21: Edad del adulto mayor en la pareja | H21: =IF(B19>=H19,B19,H19) -> 41
A24: CONDICION CRÍTICA CUBIERTA | D24: MÁXIMO (Por asegurado, por año Póliza) | F24: TRASPLANTE DE ÓRGANOS
F26: Tipo de trasplante | H26: Máximo Vitalicio por persona
A27: Enfermedades neurológicas y accidentes cerebro-vasculares | D27: 150000
A29: Cirugías cardíacas y angioplastías | D29: 150000 | F29: Corazón | H29: 300000
F30: Corazón y Pulmón (simultáneamente) | H30: 300000
A31: Tratamiento de cáncer | D31: 200000 | F31: Pulmón | H31: 250000
F32: Pancreas | H32: 250000
A33: Trauma grave (Politraumatismos) | D33: 150000 | F33: Pancreas y Riñón (simultáneamente) | H33: 300000
F34: Riñón | H34: 200000
A35: Insuficiencia renal crónica (Diálisis) | D35: 100000 | F35: Hígado | H35: 200000
F36: Médula ósea | H36: 250000
A37: Quemaduras graves | D37: 300000 | F37: La cobertura de trasplante de órganos está limitada a la Red de Proveedores para Procedimiento de Trasplante de la Compañía y no se proporcionará cobertura en proveedores fuera de esta Red especializada.
A38: Desorden infeccioso grave (Septicemia) | D38: 150000
A41: Deducibles | C41: PLAN 1 | D41: PLAN 2 | E41: PLAN 3 | F41: PLAN 4 | G41: PLAN 5 | H41: PLAN 6
A42: Dentro del pais de residencia | C42: 2000 | D42: 3500 | E42: 5000 | F42: 10000 | G42: 20000 | H42: 50000
A43: Fuera del pais de residencia | C43: 2000 | D43: 3500 | E43: 5000 | F43: 10000 | G43: 20000 | H43: 50000
A45: TARIFAS ANUALES
A46: Prima por plan individual | C46: =IF((($B$17+$H$17)=1),(VLOOKUP($H$21,Tablas!$A$587:$T$588,3,TRUE)),0) -> 0 | D46: =IF((($B$17+$H$17)=1),(VLOOKUP($H$21,Tablas!$A$587:$T$588,6,TRUE)),0) -> 0 | E46: =IF((($B$17+$H$17)=1),(VLOOKUP($H$21,Tablas!$A$587:$T$588,9,TRUE)),0) -> 0 | F46: =IF((($B$17+$H$17)=1),(VLOOKUP($H$21,Tablas!$A$587:$T$588,12,TRUE)),0) -> 0 | G46: =IF((($B$17+$H$17)=1),(VLOOKUP($H$21,Tablas!$A$587:$T$588,15,TRUE)),0) -> 0 | H46: =IF((($B$17+$H$17)=1),(VLOOKUP($H$21,Tablas!$A$587:$T$588,18,TRUE)),0) -> 0
A47: Prima por plan para 2 personas | C47: =IF((($B$17+$H$17)=2),(VLOOKUP($H$21,Tablas!$A$587:$T$588,4,TRUE)),0) -> 0 | D47: =IF((($B$17+$H$17)=2),(VLOOKUP($H$21,Tablas!$A$587:$T$588,7,TRUE)),0) -> 0 | E47: =IF((($B$17+$H$17)=2),(VLOOKUP($H$21,Tablas!$A$587:$T$588,10,TRUE)),0) -> 0 | F47: =IF((($B$17+$H$17)=2),(VLOOKUP($H$21,Tablas!$A$587:$T$588,13,TRUE)),0) -> 0 | G47: =IF((($B$17+$H$17)=2),(VLOOKUP($H$21,Tablas!$A$587:$T$588,16,TRUE)),0) -> 0 | H47: =IF((($B$17+$H$17)=2),(VLOOKUP($H$21,Tablas!$A$587:$T$588,19,TRUE)),0) -> 0
A48: Prima por plan familiar | C48: =IF((($B$17+$H$17)>=3),(VLOOKUP($H$21,Tablas!$A$587:$T$588,5,TRUE)),0) -> 10272 | D48: =IF((($B$17+$H$17)>=3),(VLOOKUP($H$21,Tablas!$A$587:$T$588,8,TRUE)),0) -> 8674 | E48: =IF((($B$17+$H$17)>=3),(VLOOKUP($H$21,Tablas!$A$587:$T$588,11,TRUE)),0) -> 7590 | F48: =IF((($B$17+$H$17)>=3),(VLOOKUP($H$21,Tablas!$A$587:$T$588,14,TRUE)),0) -> 5511 | G48: =IF((($B$17+$H$17)>=3),(VLOOKUP($H$21,Tablas!$A$587:$T$588,17,TRUE)),0) -> 3810 | H48: =IF((($B$17+$H$17)>=3),(VLOOKUP($H$21,Tablas!$A$587:$T$588,20,TRUE)),0) -> 1994
A49: TOTAL PRIMA NETA | C49: =SUM(C46:C48) -> 10272 | D49: =SUM(D46:D48) -> 8674 | E49: 7590 | F49: 5511 | G49: 3810 | H49: 1994
A50: Costo Administrativo Anual | C50: 75 | D50: 75 | E50: 75 | F50: 75 | G50: 75 | H50: 75
A51: GRAN TOTAL | C51: =SUM(C49:C50) -> 10347 | D51: 8749 | E51: 7665 | F51: 5586 | G51: 3885 | H51: 2069
A53: Este presupuesto solamente tiene carácter informativo y en ningún momento expresa compromiso legal para suministrarle cobertura de seguro. La emisión de una póliza de seguro Bupa está sujeta a todas las evaluaciones de riesgo por parte de Bupa y a la recepción de todos los pagos de prima requeridos.

Sheet Resumen tarifas anuales
A5: Cotización de Seguro Médico Internacional Bupa Care — Resumen de Tarifas (Anuales) Tarifas en US$ | Validas: 1 de enero de 2025 | H5: REGIÓN
H7: ='INGRESO DE DATOS'!W15 -> Venezuela
A13: Nombre del asegurado principal | B13: =+'INGRESO DE DATOS'!$C$36 -> John Doe
A15: Broker/Agente | B15: =+'INGRESO DE DATOS'!$C$47 -> Agencia
A17: Número de Adultos en la Póliza | B17: =+'INGRESO DE DATOS'!$C$38 -> 2 | F17: Dependientes (menores de 24 años) | H17: =+'INGRESO DE DATOS'!$C$40 -> 3
F18: =IF('INGRESO DE DATOS'!$P$2=TRUE, "Cotización para dependiente de 24 años","") -> 
A19: Edad del Titular | B19: =+'INGRESO DE DATOS'!$C$42 -> 24 | F19: Edad del Cónyuge | H19: =+'INGRESO DE DATOS'!$C$44 -> 41
A22: DEDUCIBLES | C22: PLAN 1 | D22: PLAN 2 | E22: PLAN 3 | F22: PLAN 4 | G22: PLAN 5 | H22: PLAN 6
A23: Dentro del pais de residencia | C23: n/a | D23: 1000 | E23: 2000 | F23: 5000 | G23: 10000 | H23: 20000
A24: Fuera del pais de residencia | C24: n/a | D24: 2000 | E24: 3000 | F24: 5000 | G24: 10000 | H24: 20000
A26: PRODUCTOS | C26: TARIFAS ANUALES
A27: Bupa Exclusive Care | C27: n/a | D27: =+'Bupa Exclusive Care'!H41 -> 33770.8 | E27: =+'Bupa Exclusive Care'!I41 -> 23234.4 | F27: =+'Bupa Exclusive Care'!J41 -> 17301.9 | G27: =+'Bupa Exclusive Care'!K41 -> 12333.3 | H27: =+'Bupa Exclusive Care'!L41 -> 9704.1
A28: Bupa Privilege Care | C28: n/a | D28: =+'Bupa Privilege Care'!H37 -> 28459.2 | E28: =+'Bupa Privilege Care'!I37 -> 20104.7 | F28: =+'Bupa Privilege Care'!J37 -> 14679 | G28: =+'Bupa Privilege Care'!K37 -> 10470.6 | H28: =+'Bupa Privilege Care'!L37 -> 7942.9
A29: Bupa Advantage Care | C29: n/a | D29: =+'Bupa Advantage Care (Mundial)'!C38 -> 21019.6 | E29: =+'Bupa Advantage Care (Mundial)'!D38 -> 15628.2 | F29: =+'Bupa Advantage Care (Mundial)'!E38 -> 11832.1 | G29: =+'Bupa Advantage Care (Mundial)'!F38 -> 8750 | H29: =+'Bupa Advantage Care (Mundial)'!G38 -> 6598.9
A30: Bupa Secure Care | C30: n/a | D30: =+'Bupa Secure Care'!C38 -> 15683.1 | E30: =+'Bupa Secure Care'!D38 -> 11390 | F30: =+'Bupa Secure Care'!E38 -> 8691.5 | G30: =+'Bupa Secure Care'!F38 -> 7048.6 | H30: =+'Bupa Secure Care'!G38 -> 5323.1
A31: Bupa Essential Care | C31: n/a | D31: =+'Bupa Essential Care'!C38 -> 14124.1 | E31: =+'Bupa Essential Care'!D38 -> 10244.2 | F31: =+'Bupa Essential Care'!E38 -> 7805.2 | G31: =+'Bupa Essential Care'!F38 -> 6346.3 | H31: =+'Bupa Essential Care'!G38 -> 4774
A33: BUPA CRITICAL CARE
A34: DEDUCIBLES | C34: PLAN 1 | D34: PLAN 2 | E34: PLAN 3 | F34: PLAN 4 | G34: PLAN 5 | H34: PLAN 6
A35: Dentro del pais de residencia | C35: 2000 | D35: 3500 | E35: 5000 | F35: 10000 | G35: 20000 | H35: 50000
A36: Fuera del pais de residencia | C36: 2000 | D36: 3500 | E36: 5000 | F36: 10000 | G36: 20000 | H36: 50000
C39: TARIFAS ANUALES
A40: Bupa Critical Care | C40: =+'Bupa Crititcal'!C51 -> 10347 | D40: =+'Bupa Crititcal'!D51 -> 8749 | E40: =+'Bupa Crititcal'!E51 -> 7665 | F40: =+'Bupa Crititcal'!F51 -> 5586 | G40: =+'Bupa Crititcal'!G51 -> 3885 | H40: =+'Bupa Crititcal'!H51 -> 2069

Sheet Comparacion de Beneficios (hidden)
A1: 2023 BUPA CARE COMPARACION DE BENEFICIOS

Sheet Tablas (hidden)
K1: Critical | L1: Exclusive | M1: Privilege | N1: Advantage | O1: Secure | P1: Essential
B2: REGIÓN | C2: ='INGRESO DE DATOS'!W14 -> 5 | E2: FACTOR SEMESTRAL : | G2: 0.53 | I2: TOTAL DISCOUNT | K2: ='INGRESO DE DATOS'!O42 -> 1 | L2: ='INGRESO DE DATOS'!P42 -> 0.7 | M2: ='INGRESO DE DATOS'!Q42 -> 0.7 | N2: ='INGRESO DE DATOS'!R42 -> 0.7 | O2: ='INGRESO DE DATOS'!S42 -> 0.7 | P2: ='INGRESO DE DATOS'!T42 -> 0.9
A5: BUPA EXCLUSIVE CARE | K5: ORIGINAL RATES | Q5: DISCOUNTS APPLIED
A6: TARIFAS ANUALES
A7: EDAD
C8: DW1 | D8: DW2 | E8: DW3 | F8: DW4 | G8: DW5 | H8: DW6
A9: 18 | B9: 18-24 | D9: =Q9 -> 10452.7 | E9: =R9 -> 6921.2 | F9: 4820.5 | G9: 3186.7 | H9: 2508.4 | K9: =IF($C$2=2,'2'!D9,IF($C$2=3,'3'!D9,IF($C$2=4,'4'!D9,IF($C$2=5,'5'!D9,IF($C$2=6,'6'!D9,IF($C$2=8,'8'!D9,IF($C$2=9,'9'!D9,IF($C$2="PERU2020",PERU2020!D9)))))))) -> 14911 | L9: =IF($C$2=2,'2'!E9,IF($C$2=3,'3'!E9,IF($C$2=4,'4'!E9,IF($C$2=5,'5'!E9,IF($C$2=6,'6'!E9,IF($C$2=8,'8'!E9,IF($C$2=9,'9'!E9,IF($C$2="PERU2020",PERU2020!E9)))))))) -> 9866 | M9: =IF($C$2=2,'2'!F9,IF($C$2=3,'3'!F9,IF($C$2=4,'4'!F9,IF($C$2=5,'5'!F9,IF($C$2=6,'6'!F9,IF($C$2=8,'8'!F9,IF($C$2=9,'9'!F9,IF($C$2="PERU2020",PERU2020!F9)))))))) -> 6865 | N9: =IF($C$2=2,'2'!G9,IF($C$2=3,'3'!G9,IF($C$2=4,'4'!G9,IF($C$2=5,'5'!G9,IF($C$2=6,'6'!G9,IF($C$2=8,'8'!G9,IF($C$2=9,'9'!G9,IF($C$2="PERU2020",PERU2020!G9)))))))) -> 4531 | O9: =IF($C$2=2,'2'!H9,IF($C$2=3,'3'!H9,IF($C$2=4,'4'!H9,IF($C$2=5,'5'!H9,IF($C$2=6,'6'!H9,IF($C$2=8,'8'!H9,IF($C$2=9,'9'!H9,IF($C$2="PERU2020",PERU2020!H9)))))))) -> 3562 | Q9: =(K9-50)*$L$2+50 -> 10452.7 | R9: =(L9-50)*$L$2+50 -> 6921.2 | S9: 4820.5 | T9: 3186.7 | U9: 2508.4
A10: 25 | B10: 25-29 | D10: =Q10 -> 10963.7 | E10: =R10 -> 7642.2 | F10: =S10 -> 5334.3 | G10: =T10 -> 3521.3 | H10: =U10 -> 2775.8 | K10: =IF($C$2=2,'2'!D10,IF($C$2=3,'3'!D10,IF($C$2=4,'4'!D10,IF($C$2=5,'5'!D10,IF($C$2=6,'6'!D10,IF($C$2=8,'8'!D10,IF($C$2=9,'9'!D10,IF($C$2="PERU2020",PERU2020!D10)))))))) -> 15641 | L10: =IF($C$2=2,'2'!E10,IF($C$2=3,'3'!E10,IF($C$2=4,'4'!E10,IF($C$2=5,'5'!E10,IF($C$2=6,'6'!E10,IF($C$2=8,'8'!E10,IF($C$2=9,'9'!E10,IF($C$2="PERU2020",PERU2020!E10)))))))) -> 10896 | M10: =IF($C$2=2,'2'!F10,IF($C$2=3,'3'!F10,IF($C$2=4,'4'!F10,IF($C$2=5,'5'!F10,IF($C$2=6,'6'!F10,IF($C$2=8,'8'!F10,IF($C$2=9,'9'!F10,IF($C$2="PERU2020",PERU2020!F10)))))))) -> 7599 | N10: =IF($C$2=2,'2'!G10,IF($C$2=3,'3'!G10,IF($C$2=4,'4'!G10,IF($C$2=5,'5'!G10,IF($C$2=6,'6'!G10,IF($C$2=8,'8'!G10,IF($C$2=9,'9'!G10,IF($C$2="PERU2020",PERU2020!G10)))))))) -> 5009 | O10: =IF($C$2=2,'2'!H10,IF($C$2=3,'3'!H10,IF($C$2=4,'4'!H10,IF($C$2=5,'5'!H10,IF($C$2=6,'6'!H10,IF($C$2=8,'8'!H10,IF($C$2=9,'9'!H10,IF($C$2="PERU2020",PERU2020!H10)))))))) -> 3944 | Q10: =(K10-50)*$L$2+50 -> 10963.7 | R10: =(L10-50)*$L$2+50 -> 7642.2 | S10: =(M10-50)*$L$2+50 -> 5334.3 | T10: =(N10-50)*$L$2+50 -> 3521.3 | U10: =(O10-50)*$L$2+50 -> 2775.8
A11: 30 | B11: 30-34 | D11: 11401.9 | E11: 8193.1 | F11: 5969.9 | G11: 4213.6 | H11: 3327.4 | K11: =IF($C$2=2,'2'!D11,IF($C$2=3,'3'!D11,IF($C$2=4,'4'!D11,IF($C$2=5,'5'!D11,IF($C$2=6,'6'!D11,IF($C$2=8,'8'!D11,IF($C$2=9,'9'!D11,IF($C$2="PERU2020",PERU2020!D11)))))))) -> 16267 | L11: =IF($C$2=2,'2'!E11,IF($C$2=3,'3'!E11,IF($C$2=4,'4'!E11,IF($C$2=5,'5'!E11,IF($C$2=6,'6'!E11,IF($C$2=8,'8'!E11,IF($C$2=9,'9'!E11,IF($C$2="PERU2020",PERU2020!E11)))))))) -> 11683 | M11: =IF($C$2=2,'2'!F11,IF($C$2=3,'3'!F11,IF($C$2=4,'4'!F11,IF($C$2=5,'5'!F11,IF($C$2=6,'6'!F11,IF($C$2=8,'8'!F11,IF($C$2=9,'9'!F11,IF($C$2="PERU2020",PERU2020!F11)))))))) -> 8507 | N11: =IF($C$2=2,'2'!G11,IF($C$2=3,'3'!G11,IF($C$2=4,'4'!G11,IF($C$2=5,'5'!G11,IF($C$2=6,'6'!G11,IF($C$2=8,'8'!G11,IF($C$2=9,'9'!G11,IF($C$2="PERU2020",PERU2020!G11)))))))) -> 5998 | O11: =IF($C$2=2,'2'!H11,IF($C$2=3,'3'!H11,IF($C$2=4,'4'!H11,IF($C$2=5,'5'!H11,IF($C$2=6,'6'!H11,IF($C$2=8,'8'!H11,IF($C$2=9,'9'!H11,IF($C$2="PERU2020",PERU2020!H11)))))))) -> 4732 | Q11: 11401.9 | R11: 8193.1 | S11: 5969.9 | T11: 4213.6 | U11: 3327.4
A12: 35 | B12: 35-39 | D12: 12771.8 | E12: 9172.4 | F12: 6686.7 | G12: 4720.4 | H12: 3723.6 | K12: =IF($C$2=2,'2'!D12,IF($C$2=3,'3'!D12,IF($C$2=4,'4'!D12,IF($C$2=5,'5'!D12,IF($C$2=6,'6'!D12,IF($C$2=8,'8'!D12,IF($C$2=9,'9'!D12,IF($C$2="PERU2020",PERU2020!D12)))))))) -> 18224 | L12: =IF($C$2=2,'2'!E12,IF($C$2=3,'3'!E12,IF($C$2=4,'4'!E12,IF($C$2=5,'5'!E12,IF($C$2=6,'6'!E12,IF($C$2=8,'8'!E12,IF($C$2=9,'9'!E12,IF($C$2="PERU2020",PERU2020!E12)))))))) -> 13082 | M12: =IF($C$2=2,'2'!F12,IF($C$2=3,'3'!F12,IF($C$2=4,'4'!F12,IF($C$2=5,'5'!F12,IF($C$2=6,'6'!F12,IF($C$2=8,'8'!F12,IF($C$2=9,'9'!F12,IF($C$2="PERU2020",PERU2020!F12)))))))) -> 9531 | N12: =IF($C$2=2,'2'!G12,IF($C$2=3,'3'!G12,IF($C$2=4,'4'!G12,IF($C$2=5,'5'!G12,IF($C$2=6,'6'!G12,IF($C$2=8,'8'!G12,IF($C$2=9,'9'!G12,IF($C$2="PERU2020",PERU2020!G12)))))))) -> 6722 | O12: =IF($C$2=2,'2'!H12,IF($C$2=3,'3'!H12,IF($C$2=4,'4'!H12,IF($C$2=5,'5'!H12,IF($C$2=6,'6'!H12,IF($C$2=8,'8'!H12,IF($C$2=9,'9'!H12,IF($C$2="PERU2020",PERU2020!H12)))))))) -> 5298 | Q12: 12771.8 | R12: 9172.4 | S12: 6686.7 | T12: 4720.4 | U12: 3723.6
A13: 40 | B13: 40-44 | D13: 14796.2 | E13: 10021.5 | F13: 7420.3 | G13: 5181.7 | H13: 4089.7 | K13: =IF($C$2=2,'2'!D13,IF($C$2=3,'3'!D13,IF($C$2=4,'4'!D13,IF($C$2=5,'5'!D13,IF($C$2=6,'6'!D13,IF($C$2=8,'8'!D13,IF($C$2=9,'9'!D13,IF($C$2="PERU2020",PERU2020!D13)))))))) -> 21116 | L13: =IF($C$2=2,'2'!E13,IF($C$2=3,'3'!E13,IF($C$2=4,'4'!E13,IF($C$2=5,'5'!E13,IF($C$2=6,'6'!E13,IF($C$2=8,'8'!E13,IF($C$2=9,'9'!E13,IF($C$2="PERU2020",PERU2020!E13)))))))) -> 14295 | M13: =IF($C$2=2,'2'!F13,IF($C$2=3,'3'!F13,IF($C$2=4,'4'!F13,IF($C$2=5,'5'!F13,IF($C$2=6,'6'!F13,IF($C$2=8,'8'!F13,IF($C$2=9,'9'!F13,IF($C$2="PERU2020",PERU2020!F13)))))))) -> 10579 | N13: =IF($C$2=2,'2'!G13,IF($C$2=3,'3'!G13,IF($C$2=4,'4'!G13,IF($C$2=5,'5'!G13,IF($C$2=6,'6'!G13,IF($C$2=8,'8'!G13,IF($C$2=9,'9'!G13,IF($C$2="PERU2020",PERU2020!G13)))))))) -> 7381 | O13: =IF($C$2=2,'2'!H13,IF($C$2=3,'3'!H13,IF($C$2=4,'4'!H13,IF($C$2=5,'5'!H13,IF($C$2=6,'6'!H13,IF($C$2=8,'8'!H13,IF($C$2=9,'9'!H13,IF($C$2="PERU2020",PERU2020!H13)))))))) -> 5821 | Q13: 14796.2 | R13: 10021.5 | S13: 7420.3 | T13: 5181.7 | U13: 4089.7
A14: 45 | B14: 45-49 | D14: 16537.8 | E14: 11208 | F14: 8282 | G14: 5792.1 | H14: 4568.5 | K14: =IF($C$2=2,'2'!D14,IF($C$2=3,'3'!D14,IF($C$2=4,'4'!D14,IF($C$2=5,'5'!D14,IF($C$2=6,'6'!D14,IF($C$2=8,'8'!D14,IF($C$2=9,'9'!D14,IF($C$2="PERU2020",PERU2020!D14)))))))) -> 23604 | L14: =IF($C$2=2,'2'!E14,IF($C$2=3,'3'!E14,IF($C$2=4,'4'!E14,IF($C$2=5,'5'!E14,IF($C$2=6,'6'!E14,IF($C$2=8,'8'!E14,IF($C$2=9,'9'!E14,IF($C$2="PERU2020",PERU2020!E14)))))))) -> 15990 | M14: =IF($C$2=2,'2'!F14,IF($C$2=3,'3'!F14,IF($C$2=4,'4'!F14,IF($C$2=5,'5'!F14,IF($C$2=6,'6'!F14,IF($C$2=8,'8'!F14,IF($C$2=9,'9'!F14,IF($C$2="PERU2020",PERU2020!F14)))))))) -> 11810 | N14: =IF($C$2=2,'2'!G14,IF($C$2=3,'3'!G14,IF($C$2=4,'4'!G14,IF($C$2=5,'5'!G14,IF($C$2=6,'6'!G14,IF($C$2=8,'8'!G14,IF($C$2=9,'9'!G14,IF($C$2="PERU2020",PERU2020!G14)))))))) -> 8253 | O14: =IF($C$2=2,'2'!H14,IF($C$2=3,'3'!H14,IF($C$2=4,'4'!H14,IF($C$2=5,'5'!H14,IF($C$2=6,'6'!H14,IF($C$2=8,'8'!H14,IF($C$2=9,'9'!H14,IF($C$2="PERU2020",PERU2020!H14)))))))) -> 6505 | Q14: 16537.8 | R14: 11208 | S14: 8282 | T14: 5792.1 | U14: 4568.5
A15: 50 | B15: 50-54 | D15: 21159.9 | E15: 14693.3 | F15: 10805.5 | G15: 8172.8 | H15: 6450.1 | K15: =IF($C$2=2,'2'!D15,IF($C$2=3,'3'!D15,IF($C$2=4,'4'!D15,IF($C$2=5,'5'!D15,IF($C$2=6,'6'!D15,IF($C$2=8,'8'!D15,IF($C$2=9,'9'!D15,IF($C$2="PERU2020",PERU2020!D15)))))))) -> 30207 | L15: =IF($C$2=2,'2'!E15,IF($C$2=3,'3'!E15,IF($C$2=4,'4'!E15,IF($C$2=5,'5'!E15,IF($C$2=6,'6'!E15,IF($C$2=8,'8'!E15,IF($C$2=9,'9'!E15,IF($C$2="PERU2020",PERU2020!E15)))))))) -> 20969 | M15: =IF($C$2=2,'2'!F15,IF($C$2=3,'3'!F15,IF($C$2=4,'4'!F15,IF($C$2=5,'5'!F15,IF($C$2=6,'6'!F15,IF($C$2=8,'8'!F15,IF($C$2=9,'9'!F15,IF($C$2="PERU2020",PERU2020!F15)))))))) -> 15415 | N15: =IF($C$2=2,'2'!G15,IF($C$2=3,'3'!G15,IF($C$2=4,'4'!G15,IF($C$2=5,'5'!G15,IF($C$2=6,'6'!G15,IF($C$2=8,'8'!G15,IF($C$2=9,'9'!G15,IF($C$2="PERU2020",PERU2020!G15)))))))) -> 11654 | O15: =IF($C$2=2,'2'!H15,IF($C$2=3,'3'!H15,IF($C$2=4,'4'!H15,IF($C$2=5,'5'!H15,IF($C$2=6,'6'!H15,IF($C$2=8,'8'!H15,IF($C$2=9,'9'!H15,IF($C$2="PERU2020",PERU2020!H15)))))))) -> 9193 | Q15: 21159.9 | R15: 14693.3 | S15: 10805.5 | T15: 8172.8 | U15: 6450.1
A16: 55 | B16: 55-59 | D16: 22506.7 | E16: 15634.1 | F16: 11494.3 | G16: 8692.9 | H16: 6863.1 | K16: =IF($C$2=2,'2'!D16,IF($C$2=3,'3'!D16,IF($C$2=4,'4'!D16,IF($C$2=5,'5'!D16,IF($C$2=6,'6'!D16,IF($C$2=8,'8'!D16,IF($C$2=9,'9'!D16,IF($C$2="PERU2020",PERU2020!D16)))))))) -> 32131 | L16: =IF($C$2=2,'2'!E16,IF($C$2=3,'3'!E16,IF($C$2=4,'4'!E16,IF($C$2=5,'5'!E16,IF($C$2=6,'6'!E16,IF($C$2=8,'8'!E16,IF($C$2=9,'9'!E16,IF($C$2="PERU2020",PERU2020!E16)))))))) -> 22313 | M16: =IF($C$2=2,'2'!F16,IF($C$2=3,'3'!F16,IF($C$2=4,'4'!F16,IF($C$2=5,'5'!F16,IF($C$2=6,'6'!F16,IF($C$2=8,'8'!F16,IF($C$2=9,'9'!F16,IF($C$2="PERU2020",PERU2020!F16)))))))) -> 16399 | N16: =IF($C$2=2,'2'!G16,IF($C$2=3,'3'!G16,IF($C$2=4,'4'!G16,IF($C$2=5,'5'!G16,IF($C$2=6,'6'!G16,IF($C$2=8,'8'!G16,IF($C$2=9,'9'!G16,IF($C$2="PERU2020",PERU2020!G16)))))))) -> 12397 | O16: =IF($C$2=2,'2'!H16,IF($C$2=3,'3'!H16,IF($C$2=4,'4'!H16,IF($C$2=5,'5'!H16,IF($C$2=6,'6'!H16,IF($C$2=8,'8'!H16,IF($C$2=9,'9'!H16,IF($C$2="PERU2020",PERU2020!H16)))))))) -> 9783 | Q16: 22506.7 | R16: 15634.1 | S16: 11494.3 | T16: 8692.9 | U16: 6863.1
A17: 60 | B17: 60 | D17: 24513.6 | E17: 17055.1 | F17: 13217 | G17: 10464.6 | H17: 8520 | K17: =IF($C$2=2,'2'!D17,IF($C$2=3,'3'!D17,IF($C$2=4,'4'!D17,IF($C$2=5,'5'!D17,IF($C$2=6,'6'!D17,IF($C$2=8,'8'!D17,IF($C$2=9,'9'!D17,IF($C$2="PERU2020",PERU2020!D17)))))))) -> 34998 | L17: =IF($C$2=2,'2'!E17,IF($C$2=3,'3'!E17,IF($C$2=4,'4'!E17,IF($C$2=5,'5'!E17,IF($C$2=6,'6'!E17,IF($C$2=8,'8'!E17,IF($C$2=9,'9'!E17,IF($C$2="PERU2020",PERU2020!E17)))))))) -> 24343 | M17: =IF($C$2=2,'2'!F17,IF($C$2=3,'3'!F17,IF($C$2=4,'4'!F17,IF($C$2=5,'5'!F17,IF($C$2=6,'6'!F17,IF($C$2=8,'8'!F17,IF($C$2=9,'9'!F17,IF($C$2="PERU2020",PERU2020!F17)))))))) -> 18860 | N17: =IF($C$2=2,'2'!G17,IF($C$2=3,'3'!G17,IF($C$2=4,'4'!G17,IF($C$2=5,'5'!G17,IF($C$2=6,'6'!G17,IF($C$2=8,'8'!G17,IF($C$2=9,'9'!G17,IF($C$2="PERU2020",PERU2020!G17)))))))) -> 14928 | O17: =IF($C$2=2,'2'!H17,IF($C$2=3,'3'!H17,IF($C$2=4,'4'!H17,IF($C$2=5,'5'!H17,IF($C$2=6,'6'!H17,IF($C$2=8,'8'!H17,IF($C$2=9,'9'!H17,IF($C$2="PERU2020",PERU2020!H17)))))))) -> 12150 | Q17: 24513.6 | R17: 17055.1 | S17: 13217 | T17: 10464.6 | U17: 8520
A18: 61 | B18: 61 | D18: 26338.5 | E18: 18323.5 | F18: 14187.9 | G18: 11245.1 | H18: 9150 | K18: =IF($C$2=2,'2'!D18,IF($C$2=3,'3'!D18,IF($C$2=4,'4'!D18,IF($C$2=5,'5'!D18,IF($C$2=6,'6'!D18,IF($C$2=8,'8'!D18,IF($C$2=9,'9'!D18,IF($C$2="PERU2020",PERU2020!D18)))))))) -> 37605 | L18: =IF($C$2=2,'2'!E18,IF($C$2=3,'3'!E18,IF($C$2=4,'4'!E18,IF($C$2=5,'5'!E18,IF($C$2=6,'6'!E18,IF($C$2=8,'8'!E18,IF($C$2=9,'9'!E18,IF($C$2="PERU2020",PERU2020!E18)))))))) -> 26155 | M18: =IF($C$2=2,'2'!F18,IF($C$2=3,'3'!F18,IF($C$2=4,'4'!F18,IF($C$2=5,'5'!F18,IF($C$2=6,'6'!F18,IF($C$2=8,'8'!F18,IF($C$2=9,'9'!F18,IF($C$2="PERU2020",PERU2020!F18)))))))) -> 20247 | N18: =IF($C$2=2,'2'!G18,IF($C$2=3,'3'!G18,IF($C$2=4,'4'!G18,IF($C$2=5,'5'!G18,IF($C$2=6,'6'!G18,IF($C$2=8,'8'!G18,IF($C$2=9,'9'!G18,IF($C$2="PERU2020",PERU2020!G18)))))))) -> 16043 | O18: =IF($C$2=2,'2'!H18,IF($C$2=3,'3'!H18,IF($C$2=4,'4'!H18,IF($C$2=5,'5'!H18,IF($C$2=6,'6'!H18,IF($C$2=8,'8'!H18,IF($C$2=9,'9'!H18,IF($C$2="PERU2020",PERU2020!H18)))))))) -> 13050 | Q18: 26338.5 | R18: 18323.5 | S18: 14187.9 | T18: 11245.1 | U18: 9150
A19: 62 | B19: 62 | D19: 28836.1 | E19: 20060.9 | F19: 15544.5 | G19: 12303.5 | H19: 10014.5 | K19: =IF($C$2=2,'2'!D19,IF($C$2=3,'3'!D19,IF($C$2=4,'4'!D19,IF($C$2=5,'5'!D19,IF($C$2=6,'6'!D19,IF($C$2=8,'8'!D19,IF($C$2=9,'9'!D19,IF($C$2="PERU2020",PERU2020!D19)))))))) -> 41173 | L19: =IF($C$2=2,'2'!E19,IF($C$2=3,'3'!E19,IF($C$2=4,'4'!E19,IF($C$2=5,'5'!E19,IF($C$2=6,'6'!E19,IF($C$2=8,'8'!E19,IF($C$2=9,'9'!E19,IF($C$2="PERU2020",PERU2020!E19)))))))) -> 28637 | M19: =IF($C$2=2,'2'!F19,IF($C$2=3,'3'!F19,IF($C$2=4,'4'!F19,IF($C$2=5,'5'!F19,IF($C$2=6,'6'!F19,IF($C$2=8,'8'!F19,IF($C$2=9,'9'!F19,IF($C$2="PERU2020",PERU2020!F19)))))))) -> 22185 | N19: =IF($C$2=2,'2'!G19,IF($C$2=3,'3'!G19,IF($C$2=4,'4'!G19,IF($C$2=5,'5'!G19,IF($C$2=6,'6'!G19,IF($C$2=8,'8'!G19,IF($C$2=9,'9'!G19,IF($C$2="PERU2020",PERU2020!G19)))))))) -> 17555 | O19: =IF($C$2=2,'2'!H19,IF($C$2=3,'3'!H19,IF($C$2=4,'4'!H19,IF($C$2=5,'5'!H19,IF($C$2=6,'6'!H19,IF($C$2=8,'8'!H19,IF($C$2=9,'9'!H19,IF($C$2="PERU2020",PERU2020!H19)))))))) -> 14285 | Q19: 28836.1 | R19: 20060.9 | S19: 15544.5 | T19: 12303.5 | U19: 10014.5
A20: 63 | B20: 63 | D20: 30654 | E20: 21327.9 | F20: 16519.6 | G20: 13089.6 | H20: 10650.1 | K20: =IF($C$2=2,'2'!D20,IF($C$2=3,'3'!D20,IF($C$2=4,'4'!D20,IF($C$2=5,'5'!D20,IF($C$2=6,'6'!D20,IF($C$2=8,'8'!D20,IF($C$2=9,'9'!D20,IF($C$2="PERU2020",PERU2020!D20)))))))) -> 43770 | L20: =IF($C$2=2,'2'!E20,IF($C$2=3,'3'!E20,IF($C$2=4,'4'!E20,IF($C$2=5,'5'!E20,IF($C$2=6,'6'!E20,IF($C$2=8,'8'!E20,IF($C$2=9,'9'!E20,IF($C$2="PERU2020",PERU2020!E20)))))))) -> 30447 | M20: =IF($C$2=2,'2'!F20,IF($C$2=3,'3'!F20,IF($C$2=4,'4'!F20,IF($C$2=5,'5'!F20,IF($C$2=6,'6'!F20,IF($C$2=8,'8'!F20,IF($C$2=9,'9'!F20,IF($C$2="PERU2020",PERU2020!F20)))))))) -> 23578 | N20: =IF($C$2=2,'2'!G20,IF($C$2=3,'3'!G20,IF($C$2=4,'4'!G20,IF($C$2=5,'5'!G20,IF($C$2=6,'6'!G20,IF($C$2=8,'8'!G20,IF($C$2=9,'9'!G20,IF($C$2="PERU2020",PERU2020!G20)))))))) -> 18678 | O20: =IF($C$2=2,'2'!H20,IF($C$2=3,'3'!H20,IF($C$2=4,'4'!H20,IF($C$2=5,'5'!H20,IF($C$2=6,'6'!H20,IF($C$2=8,'8'!H20,IF($C$2=9,'9'!H20,IF($C$2="PERU2020",PERU2020!H20)))))))) -> 15193 | Q20: 30654 | R20: 21327.9 | S20: 16519.6 | T20: 13089.6 | U20: 10650.1
A21: 64 | B21: 64 | D21: 33157.2 | E21: 23079.3 | F21: 17872.7 | G21: 14155 | H21: 11518.8 | K21: =IF($C$2=2,'2'!D21,IF($C$2=3,'3'!D21,IF($C$2=4,'4'!D21,IF($C$2=5,'5'!D21,IF($C$2=6,'6'!D21,IF($C$2=8,'8'!D21,IF($C$2=9,'9'!D21,IF($C$2="PERU2020",PERU2020!D21)))))))) -> 47346 | L21: =IF($C$2=2,'2'!E21,IF($C$2=3,'3'!E21,IF($C$2=4,'4'!E21,IF($C$2=5,'5'!E21,IF($C$2=6,'6'!E21,IF($C$2=8,'8'!E21,IF($C$2=9,'9'!E21,IF($C$2="PERU2020",PERU2020!E21)))))))) -> 32949 | M21: =IF($C$2=2,'2'!F21,IF($C$2=3,'3'!F21,IF($C$2=4,'4'!F21,IF($C$2=5,'5'!F21,IF($C$2=6,'6'!F21,IF($C$2=8,'8'!F21,IF($C$2=9,'9'!F21,IF($C$2="PERU2020",PERU2020!F21)))))))) -> 25511 | N21: =IF($C$2=2,'2'!G21,IF($C$2=3,'3'!G21,IF($C$2=4,'4'!G21,IF($C$2=5,'5'!G21,IF($C$2=6,'6'!G21,IF($C$2=8,'8'!G21,IF($C$2=9,'9'!G21,IF($C$2="PERU2020",PERU2020!G21)))))))) -> 20200 | O21: =IF($C$2=2,'2'!H21,IF($C$2=3,'3'!H21,IF($C$2=4,'4'!H21,IF($C$2=5,'5'!H21,IF($C$2=6,'6'!H21,IF($C$2=8,'8'!H21,IF($C$2=9,'9'!H21,IF($C$2="PERU2020",PERU2020!H21)))))))) -> 16434 | Q21: 33157.2 | R21: 23079.3 | S21: 17872.7 | T21: 14155 | U21: 11518.8
A22: 65 | B22: 65 | D22: 43330.3 | E22: 30092.6 | F22: 22587.9 | G22: 18866.7 | H22: 16231.9 | K22: =IF($C$2=2,'2'!D22,IF($C$2=3,'3'!D22,IF($C$2=4,'4'!D22,IF($C$2=5,'5'!D22,IF($C$2=6,'6'!D22,IF($C$2=8,'8'!D22,IF($C$2=9,'9'!D22,IF($C$2="PERU2020",PERU2020!D22)))))))) -> 61879 | L22: =IF($C$2=2,'2'!E22,IF($C$2=3,'3'!E22,IF($C$2=4,'4'!E22,IF($C$2=5,'5'!E22,IF($C$2=6,'6'!E22,IF($C$2=8,'8'!E22,IF($C$2=9,'9'!E22,IF($C$2="PERU2020",PERU2020!E22)))))))) -> 42968 | M22: =IF($C$2=2,'2'!F22,IF($C$2=3,'3'!F22,IF($C$2=4,'4'!F22,IF($C$2=5,'5'!F22,IF($C$2=6,'6'!F22,IF($C$2=8,'8'!F22,IF($C$2=9,'9'!F22,IF($C$2="PERU2020",PERU2020!F22)))))))) -> 32247 | N22: =IF($C$2=2,'2'!G22,IF($C$2=3,'3'!G22,IF($C$2=4,'4'!G22,IF($C$2=5,'5'!G22,IF($C$2=6,'6'!G22,IF($C$2=8,'8'!G22,IF($C$2=9,'9'!G22,IF($C$2="PERU2020",PERU2020!G22)))))))) -> 26931 | O22: =IF($C$2=2,'2'!H22,IF($C$2=3,'3'!H22,IF($C$2=4,'4'!H22,IF($C$2=5,'5'!H22,IF($C$2=6,'6'!H22,IF($C$2=8,'8'!H22,IF($C$2=9,'9'!H22,IF($C$2="PERU2020",PERU2020!H22)))))))) -> 23167 | Q22: 43330.3 | R22: 30092.6 | S22: 22587.9 | T22: 18866.7 | U22: 16231.9
A23: 66 | B23: 66 | D23: 50333.1 | E23: 34958.3 | F23: 26244.7 | G23: 21922.9 | H23: 18856.9 | K23: =IF($C$2=2,'2'!D23,IF($C$2=3,'3'!D23,IF($C$2=4,'4'!D23,IF($C$2=5,'5'!D23,IF($C$2=6,'6'!D23,IF($C$2=8,'8'!D23,IF($C$2=9,'9'!D23,IF($C$2="PERU2020",PERU2020!D23)))))))) -> 71883 | L23: =IF($C$2=2,'2'!E23,IF($C$2=3,'3'!E23,IF($C$2=4,'4'!E23,IF($C$2=5,'5'!E23,IF($C$2=6,'6'!E23,IF($C$2=8,'8'!E23,IF($C$2=9,'9'!E23,IF($C$2="PERU2020",PERU2020!E23)))))))) -> 49919 | M23: =IF($C$2=2,'2'!F23,IF($C$2=3,'3'!F23,IF($C$2=4,'4'!F23,IF($C$2=5,'5'!F23,IF($C$2=6,'6'!F23,IF($C$2=8,'8'!F23,IF($C$2=9,'9'!F23,IF($C$2="PERU2020",PERU2020!F23)))))))) -> 37471 | N23: =IF($C$2=2,'2'!G23,IF($C$2=3,'3'!G23,IF($C$2=4,'4'!G23,IF($C$2=5,'5'!G23,IF($C$2=6,'6'!G23,IF($C$2=8,'8'!G23,IF($C$2=9,'9'!G23,IF($C$2="PERU2020",PERU2020!G23)))))))) -> 31297 | O23: =IF($C$2=2,'2'!H23,IF($C$2=3,'3'!H23,IF($C$2=4,'4'!H23,IF($C$2=5,'5'!H23,IF($C$2=6,'6'!H23,IF($C$2=8,'8'!H23,IF($C$2=9,'9'!H23,IF($C$2="PERU2020",PERU2020!H23)))))))) -> 26917 | Q23: 50333.1 | R23: 34958.3 | S23: 26244.7 | T23: 21922.9 | U23: 18856.9
A24: 67 | B24: 67 | D24: 54979 | E24: 38176.9 | F24: 28663.9 | G24: 23941.7 | H24: 20590.1 | K24: =IF($C$2=2,'2'!D24,IF($C$2=3,'3'!D24,IF($C$2=4,'4'!D24,IF($C$2=5,'5'!D24,IF($C$2=6,'6'!D24,IF($C$2=8,'8'!D24,IF($C$2=9,'9'!D24,IF($C$2="PERU2020",PERU2020!D24)))))))) -> 78520 | L24: =IF($C$2=2,'2'!E24,IF($C$2=3,'3'!E24,IF($C$2=4,'4'!E24,IF($C$2=5,'5'!E24,IF($C$2=6,'6'!E24,IF($C$2=8,'8'!E24,IF($C$2=9,'9'!E24,IF($C$2="PERU2020",PERU2020!E24)))))))) -> 54517 | M24: =IF($C$2=2,'2'!F24,IF($C$2=3,'3'!F24,IF($C$2=4,'4'!F24,IF($C$2=5,'5'!F24,IF($C$2=6,'6'!F24,IF($C$2=8,'8'!F24,IF($C$2=9,'9'!F24,IF($C$2="PERU2020",PERU2020!F24)))))))) -> 40927 | N24: =IF($C$2=2,'2'!G24,IF($C$2=3,'3'!G24,IF($C$2=4,'4'!G24,IF($C$2=5,'5'!G24,IF($C$2=6,'6'!G24,IF($C$2=8,'8'!G24,IF($C$2=9,'9'!G24,IF($C$2="PERU2020",PERU2020!G24)))))))) -> 34181 | O24: =IF($C$2=2,'2'!H24,IF($C$2=3,'3'!H24,IF($C$2=4,'4'!H24,IF($C$2=5,'5'!H24,IF($C$2=6,'6'!H24,IF($C$2=8,'8'!H24,IF($C$2=9,'9'!H24,IF($C$2="PERU2020",PERU2020!H24)))))))) -> 29393 | Q24: 54979 | R24: 38176.9 | S24: 28663.9 | T24: 23941.7 | U24: 20590.1
A25: 68 | B25: 68 | D25: 60868.8 | E25: 42268.4 | F25: 31732 | G25: 26510.7 | H25: 22804.9 | K25: =IF($C$2=2,'2'!D25,IF($C$2=3,'3'!D25,IF($C$2=4,'4'!D25,IF($C$2=5,'5'!D25,IF($C$2=6,'6'!D25,IF($C$2=8,'8'!D25,IF($C$2=9,'9'!D25,IF($C$2="PERU2020",PERU2020!D25)))))))) -> 86934 | L25: =IF($C$2=2,'2'!E25,IF($C$2=3,'3'!E25,IF($C$2=4,'4'!E25,IF($C$2=5,'5'!E25,IF($C$2=6,'6'!E25,IF($C$2=8,'8'!E25,IF($C$2=9,'9'!E25,IF($C$2="PERU2020",PERU2020!E25)))))))) -> 60362 | M25: =IF($C$2=2,'2'!F25,IF($C$2=3,'3'!F25,IF($C$2=4,'4'!F25,IF($C$2=5,'5'!F25,IF($C$2=6,'6'!F25,IF($C$2=8,'8'!F25,IF($C$2=9,'9'!F25,IF($C$2="PERU2020",PERU2020!F25)))))))) -> 45310 | N25: =IF($C$2=2,'2'!G25,IF($C$2=3,'3'!G25,IF($C$2=4,'4'!G25,IF($C$2=5,'5'!G25,IF($C$2=6,'6'!G25,IF($C$2=8,'8'!G25,IF($C$2=9,'9'!G25,IF($C$2="PERU2020",PERU2020!G25)))))))) -> 37851 | O25: =IF($C$2=2,'2'!H25,IF($C$2=3,'3'!H25,IF($C$2=4,'4'!H25,IF($C$2=5,'5'!H25,IF($C$2=6,'6'!H25,IF($C$2=8,'8'!H25,IF($C$2=9,'9'!H25,IF($C$2="PERU2020",PERU2020!H25)))))))) -> 32557 | Q25: 60868.8 | R25: 42268.4 | S25: 31732 | T25: 26510.7 | U25: 22804.9
A26: 69 | B26: 69 | D26: 66974.9 | E26: 46511.8 | F26: 34910 | G26: 29160.9 | H26: 25085.5 | K26: =IF($C$2=2,'2'!D26,IF($C$2=3,'3'!D26,IF($C$2=4,'4'!D26,IF($C$2=5,'5'!D26,IF($C$2=6,'6'!D26,IF($C$2=8,'8'!D26,IF($C$2=9,'9'!D26,IF($C$2="PERU2020",PERU2020!D26)))))))) -> 95657 | L26: =IF($C$2=2,'2'!E26,IF($C$2=3,'3'!E26,IF($C$2=4,'4'!E26,IF($C$2=5,'5'!E26,IF($C$2=6,'6'!E26,IF($C$2=8,'8'!E26,IF($C$2=9,'9'!E26,IF($C$2="PERU2020",PERU2020!E26)))))))) -> 66424 | M26: =IF($C$2=2,'2'!F26,IF($C$2=3,'3'!F26,IF($C$2=4,'4'!F26,IF($C$2=5,'5'!F26,IF($C$2=6,'6'!F26,IF($C$2=8,'8'!F26,IF($C$2=9,'9'!F26,IF($C$2="PERU2020",PERU2020!F26)))))))) -> 49850 | N26: =IF($C$2=2,'2'!G26,IF($C$2=3,'3'!G26,IF($C$2=4,'4'!G26,IF($C$2=5,'5'!G26,IF($C$2=6,'6'!G26,IF($C$2=8,'8'!G26,IF($C$2=9,'9'!G26,IF($C$2="PERU2020",PERU2020!G26)))))))) -> 41637 | O26: =IF($C$2=2,'2'!H26,IF($C$2=3,'3'!H26,IF($C$2=4,'4'!H26,IF($C$2=5,'5'!H26,IF($C$2=6,'6'!H26,IF($C$2=8,'8'!H26,IF($C$2=9,'9'!H26,IF($C$2="PERU2020",PERU2020!H26)))))))) -> 35815 | Q26: 66974.9 | R26: 46511.8 | S26: 34910 | T26: 29160.9 | U26: 25085.5
A27: 70 | B27: 70 | D27: 82418.3 | E27: 56621.2 | F27: 41094.5 | G27: 33976.9 | H27: 29497.6 | K27: =IF($C$2=2,'2'!D27,IF($C$2=3,'3'!D27,IF($C$2=4,'4'!D27,IF($C$2=5,'5'!D27,IF($C$2=6,'6'!D27,IF($C$2=8,'8'!D27,IF($C$2=9,'9'!D27,IF($C$2="PERU2020",PERU2020!D27)))))))) -> 117719 | L27: =IF($C$2=2,'2'!E27,IF($C$2=3,'3'!E27,IF($C$2=4,'4'!E27,IF($C$2=5,'5'!E27,IF($C$2=6,'6'!E27,IF($C$2=8,'8'!E27,IF($C$2=9,'9'!E27,IF($C$2="PERU2020",PERU2020!E27)))))))) -> 80866 | M27: =IF($C$2=2,'2'!F27,IF($C$2=3,'3'!F27,IF($C$2=4,'4'!F27,IF($C$2=5,'5'!F27,IF($C$2=6,'6'!F27,IF($C$2=8,'8'!F27,IF($C$2=9,'9'!F27,IF($C$2="PERU2020",PERU2020!F27)))))))) -> 58685 | N27: =IF($C$2=2,'2'!G27,IF($C$2=3,'3'!G27,IF($C$2=4,'4'!G27,IF($C$2=5,'5'!G27,IF($C$2=6,'6'!G27,IF($C$2=8,'8'!G27,IF($C$2=9,'9'!G27,IF($C$2="PERU2020",PERU2020!G27)))))))) -> 48517 | O27: =IF($C$2=2,'2'!H27,IF($C$2=3,'3'!H27,IF($C$2=4,'4'!H27,IF($C$2=5,'5'!H27,IF($C$2=6,'6'!H27,IF($C$2=8,'8'!H27,IF($C$2=9,'9'!H27,IF($C$2="PERU2020",PERU2020!H27)))))))) -> 42118 | Q27: 82418.3 | R27: 56621.2 | S27: 41094.5 | T27: 33976.9 | U27: 29497.6
A28: 71 | B28: 71 | D28: 85652.3 | E28: 58846.5 | F28: 42705.9 | G28: 35313.9 | H28: 30655.4 | K28: =IF($C$2=2,'2'!D28,IF($C$2=3,'3'!D28,IF($C$2=4,'4'!D28,IF($C$2=5,'5'!D28,IF($C$2=6,'6'!D28,IF($C$2=8,'8'!D28,IF($C$2=9,'9'!D28,IF($C$2="PERU2020",PERU2020!D28)))))))) -> 122339 | L28: =IF($C$2=2,'2'!E28,IF($C$2=3,'3'!E28,IF($C$2=4,'4'!E28,IF($C$2=5,'5'!E28,IF($C$2=6,'6'!E28,IF($C$2=8,'8'!E28,IF($C$2=9,'9'!E28,IF($C$2="PERU2020",PERU2020!E28)))))))) -> 84045 | M28: =IF($C$2=2,'2'!F28,IF($C$2=3,'3'!F28,IF($C$2=4,'4'!F28,IF($C$2=5,'5'!F28,IF($C$2=6,'6'!F28,IF($C$2=8,'8'!F28,IF($C$2=9,'9'!F28,IF($C$2="PERU2020",PERU2020!F28)))))))) -> 60987 | N28: =IF($C$2=2,'2'!G28,IF($C$2=3,'3'!G28,IF($C$2=4,'4'!G28,IF($C$2=5,'5'!G28,IF($C$2=6,'6'!G28,IF($C$2=8,'8'!G28,IF($C$2=9,'9'!G28,IF($C$2="PERU2020",PERU2020!G28)))))))) -> 50427 | O28: =IF($C$2=2,'2'!H28,IF($C$2=3,'3'!H28,IF($C$2=4,'4'!H28,IF($C$2=5,'5'!H28,IF($C$2=6,'6'!H28,IF($C$2=8,'8'!H28,IF($C$2=9,'9'!H28,IF($C$2="PERU2020",PERU2020!H28)))))))) -> 43772 | Q28: 85652.3 | R28: 58846.5 | S28: 42705.9 | T28: 35313.9 | U28: 30655.4
A29: 72 | B29: 72 | D29: 88080.6 | E29: 60502 | F29: 43909.2 | G29: 36310.7 | H29: 31530.4 | K29: =IF($C$2=2,'2'!D29,IF($C$2=3,'3'!D29,IF($C$2=4,'4'!D29,IF($C$2=5,'5'!D29,IF($C$2=6,'6'!D29,IF($C$2=8,'8'!D29,IF($C$2=9,'9'!D29,IF($C$2="PERU2020",PERU2020!D29)))))))) -> 125808 | L29: =IF($C$2=2,'2'!E29,IF($C$2=3,'3'!E29,IF($C$2=4,'4'!E29,IF($C$2=5,'5'!E29,IF($C$2=6,'6'!E29,IF($C$2=8,'8'!E29,IF($C$2=9,'9'!E29,IF($C$2="PERU2020",PERU2020!E29)))))))) -> 86410 | M29: =IF($C$2=2,'2'!F29,IF($C$2=3,'3'!F29,IF($C$2=4,'4'!F29,IF($C$2=5,'5'!F29,IF($C$2=6,'6'!F29,IF($C$2=8,'8'!F29,IF($C$2=9,'9'!F29,IF($C$2="PERU2020",PERU2020!F29)))))))) -> 62706 | N29: =IF($C$2=2,'2'!G29,IF($C$2=3,'3'!G29,IF($C$2=4,'4'!G29,IF($C$2=5,'5'!G29,IF($C$2=6,'6'!G29,IF($C$2=8,'8'!G29,IF($C$2=9,'9'!G29,IF($C$2="PERU2020",PERU2020!G29)))))))) -> 51851 | O29: =IF($C$2=2,'2'!H29,IF($C$2=3,'3'!H29,IF($C$2=4,'4'!H29,IF($C$2=5,'5'!H29,IF($C$2=6,'6'!H29,IF($C$2=8,'8'!H29,IF($C$2=9,'9'!H29,IF($C$2="PERU2020",PERU2020!H29)))))))) -> 45022 | Q29: 88080.6 | R29: 60502 | S29: 43909.2 | T29: 36310.7 | U29: 31530.4
A30: 73 | B30: 73 | D30: 91313.2 | E30: 62725.9 | F30: 45522.7 | G30: 37648.4 | H30: 32684.7 | K30: =IF($C$2=2,'2'!D30,IF($C$2=3,'3'!D30,IF($C$2=4,'4'!D30,IF($C$2=5,'5'!D30,IF($C$2=6,'6'!D30,IF($C$2=8,'8'!D30,IF($C$2=9,'9'!D30,IF($C$2="PERU2020",PERU2020!D30)))))))) -> 130426 | L30: =IF($C$2=2,'2'!E30,IF($C$2=3,'3'!E30,IF($C$2=4,'4'!E30,IF($C$2=5,'5'!E30,IF($C$2=6,'6'!E30,IF($C$2=8,'8'!E30,IF($C$2=9,'9'!E30,IF($C$2="PERU2020",PERU2020!E30)))))))) -> 89587 | M30: =IF($C$2=2,'2'!F30,IF($C$2=3,'3'!F30,IF($C$2=4,'4'!F30,IF($C$2=5,'5'!F30,IF($C$2=6,'6'!F30,IF($C$2=8,'8'!F30,IF($C$2=9,'9'!F30,IF($C$2="PERU2020",PERU2020!F30)))))))) -> 65011 | N30: =IF($C$2=2,'2'!G30,IF($C$2=3,'3'!G30,IF($C$2=4,'4'!G30,IF($C$2=5,'5'!G30,IF($C$2=6,'6'!G30,IF($C$2=8,'8'!G30,IF($C$2=9,'9'!G30,IF($C$2="PERU2020",PERU2020!G30)))))))) -> 53762 | O30: =IF($C$2=2,'2'!H30,IF($C$2=3,'3'!H30,IF($C$2=4,'4'!H30,IF($C$2=5,'5'!H30,IF($C$2=6,'6'!H30,IF($C$2=8,'8'!H30,IF($C$2=9,'9'!H30,IF($C$2="PERU2020",PERU2020!H30)))))))) -> 46671 | Q30: 91313.2 | R30: 62725.9 | S30: 45522.7 | T30: 37648.4 | U30: 32684.7
A31: 74 | B31: 74 | D31: 92928.1 | E31: 63832.6 | F31: 46331.9 | G31: 38309.9 | H31: 33261.5 | K31: =IF($C$2=2,'2'!D31,IF($C$2=3,'3'!D31,IF($C$2=4,'4'!D31,IF($C$2=5,'5'!D31,IF($C$2=6,'6'!D31,IF($C$2=8,'8'!D31,IF($C$2=9,'9'!D31,IF($C$2="PERU2020",PERU2020!D31)))))))) -> 132733 | L31: =IF($C$2=2,'2'!E31,IF($C$2=3,'3'!E31,IF($C$2=4,'4'!E31,IF($C$2=5,'5'!E31,IF($C$2=6,'6'!E31,IF($C$2=8,'8'!E31,IF($C$2=9,'9'!E31,IF($C$2="PERU2020",PERU2020!E31)))))))) -> 91168 | M31: =IF($C$2=2,'2'!F31,IF($C$2=3,'3'!F31,IF($C$2=4,'4'!F31,IF($C$2=5,'5'!F31,IF($C$2=6,'6'!F31,IF($C$2=8,'8'!F31,IF($C$2=9,'9'!F31,IF($C$2="PERU2020",PERU2020!F31)))))))) -> 66167 | N31: =IF($C$2=2,'2'!G31,IF($C$2=3,'3'!G31,IF($C$2=4,'4'!G31,IF($C$2=5,'5'!G31,IF($C$2=6,'6'!G31,IF($C$2=8,'8'!G31,IF($C$2=9,'9'!G31,IF($C$2="PERU2020",PERU2020!G31)))))))) -> 54707 | O31: =IF($C$2=2,'2'!H31,IF($C$2=3,'3'!H31,IF($C$2=4,'4'!H31,IF($C$2=5,'5'!H31,IF($C$2=6,'6'!H31,IF($C$2=8,'8'!H31,IF($C$2=9,'9'!H31,IF($C$2="PERU2020",PERU2020!H31)))))))) -> 47495 | Q31: 92928.1 | R31: 63832.6 | S31: 46331.9 | T31: 38309.9 | U31: 33261.5
A32: 75 | B32: 75+ | D32: 96972.7 | E32: 66615.1 | F32: 48343.7 | G32: 39979.4 | H32: 34710.5 | K32: =IF($C$2=2,'2'!D32,IF($C$2=3,'3'!D32,IF($C$2=4,'4'!D32,IF($C$2=5,'5'!D32,IF($C$2=6,'6'!D32,IF($C$2=8,'8'!D32,IF($C$2=9,'9'!D32,IF($C$2="PERU2020",PERU2020!D32)))))))) -> 138511 | L32: =IF($C$2=2,'2'!E32,IF($C$2=3,'3'!E32,IF($C$2=4,'4'!E32,IF($C$2=5,'5'!E32,IF($C$2=6,'6'!E32,IF($C$2=8,'8'!E32,IF($C$2=9,'9'!E32,IF($C$2="PERU2020",PERU2020!E32)))))))) -> 95143 | M32: =IF($C$2=2,'2'!F32,IF($C$2=3,'3'!F32,IF($C$2=4,'4'!F32,IF($C$2=5,'5'!F32,IF($C$2=6,'6'!F32,IF($C$2=8,'8'!F32,IF($C$2=9,'9'!F32,IF($C$2="PERU2020",PERU2020!F32)))))))) -> 69041 | N32: =IF($C$2=2,'2'!G32,IF($C$2=3,'3'!G32,IF($C$2=4,'4'!G32,IF($C$2=5,'5'!G32,IF($C$2=6,'6'!G32,IF($C$2=8,'8'!G32,IF($C$2=9,'9'!G32,IF($C$2="PERU2020",PERU2020!G32)))))))) -> 57092 | O32: =IF($C$2=2,'2'!H32,IF($C$2=3,'3'!H32,IF($C$2=4,'4'!H32,IF($C$2=5,'5'!H32,IF($C$2=6,'6'!H32,IF($C$2=8,'8'!H32,IF($C$2=9,'9'!H32,IF($C$2="PERU2020",PERU2020!H32)))))))) -> 49565 | Q32: 96972.7 | R32: 66615.1 | S32: 48343.7 | T32: 39979.4 | U32: 34710.5
A33: 1 | B33: 1 Child | D33: 3626 | E33: 2667.7 | F33: 2142 | G33: 1670.2 | H33: 1304.8 | K33: =IF($C$2=2,'2'!D33,IF($C$2=3,'3'!D33,IF($C$2=4,'4'!D33,IF($C$2=5,'5'!D33,IF($C$2=6,'6'!D33,IF($C$2=8,'8'!D33,IF($C$2=9,'9'!D33,IF($C$2="PERU2020",PERU2020!D33)))))))) -> 5180 | L33: =IF($C$2=2,'2'!E33,IF($C$2=3,'3'!E33,IF($C$2=4,'4'!E33,IF($C$2=5,'5'!E33,IF($C$2=6,'6'!E33,IF($C$2=8,'8'!E33,IF($C$2=9,'9'!E33,IF($C$2="PERU2020",PERU2020!E33)))))))) -> 3811 | M33: =IF($C$2=2,'2'!F33,IF($C$2=3,'3'!F33,IF($C$2=4,'4'!F33,IF($C$2=5,'5'!F33,IF($C$2=6,'6'!F33,IF($C$2=8,'8'!F33,IF($C$2=9,'9'!F33,IF($C$2="PERU2020",PERU2020!F33)))))))) -> 3060 | N33: =IF($C$2=2,'2'!G33,IF($C$2=3,'3'!G33,IF($C$2=4,'4'!G33,IF($C$2=5,'5'!G33,IF($C$2=6,'6'!G33,IF($C$2=8,'8'!G33,IF($C$2=9,'9'!G33,IF($C$2="PERU2020",PERU2020!G33)))))))) -> 2386 | O33: =IF($C$2=2,'2'!H33,IF($C$2=3,'3'!H33,IF($C$2=4,'4'!H33,IF($C$2=5,'5'!H33,IF($C$2=6,'6'!H33,IF($C$2=8,'8'!H33,IF($C$2=9,'9'!H33,IF($C$2="PERU2020",PERU2020!H33)))))))) -> 1864 | Q33: =(K33)*$L$2 -> 3626 | R33: =(L33)*$L$2 -> 2667.7 | S33: 2142 | T33: 1670.2 | U33: 1304.8
A34: 2 | B34: 2 Children | D34: 5760.3 | E34: 4248.3 | F34: 3401.3 | G34: 2653.7 | H34: 2065.7 | K34: =IF($C$2=2,'2'!D34,IF($C$2=3,'3'!D34,IF($C$2=4,'4'!D34,IF($C$2=5,'5'!D34,IF($C$2=6,'6'!D34,IF($C$2=8,'8'!D34,IF($C$2=9,'9'!D34,IF($C$2="PERU2020",PERU2020!D34)))))))) -> 8229 | L34: =IF($C$2=2,'2'!E34,IF($C$2=3,'3'!E34,IF($C$2=4,'4'!E34,IF($C$2=5,'5'!E34,IF($C$2=6,'6'!E34,IF($C$2=8,'8'!E34,IF($C$2=9,'9'!E34,IF($C$2="PERU2020",PERU2020!E34)))))))) -> 6069 | M34: =IF($C$2=2,'2'!F34,IF($C$2=3,'3'!F34,IF($C$2=4,'4'!F34,IF($C$2=5,'5'!F34,IF($C$2=6,'6'!F34,IF($C$2=8,'8'!F34,IF($C$2=9,'9'!F34,IF($C$2="PERU2020",PERU2020!F34)))))))) -> 4859 | N34: =IF($C$2=2,'2'!G34,IF($C$2=3,'3'!G34,IF($C$2=4,'4'!G34,IF($C$2=5,'5'!G34,IF($C$2=6,'6'!G34,IF($C$2=8,'8'!G34,IF($C$2=9,'9'!G34,IF($C$2="PERU2020",PERU2020!G34)))))))) -> 3791 | O34: =IF($C$2=2,'2'!H34,IF($C$2=3,'3'!H34,IF($C$2=4,'4'!H34,IF($C$2=5,'5'!H34,IF($C$2=6,'6'!H34,IF($C$2=8,'8'!H34,IF($C$2=9,'9'!H34,IF($C$2="PERU2020",PERU2020!H34)))))))) -> 2951 | Q34: =(K34)*$L$2 -> 5760.3 | R34: =(L34)*$L$2 -> 4248.3 | S34: =(M34)*$L$2 -> 3401.3 | T34: =(N34)*$L$2 -> 2653.7 | U34: =(O34)*$L$2 -> 2065.7
A35: 3 | B35: 3+ Children | D35: 8446.9 | E35: 6216.7 | F35: 4986.1 | G35: 3889.9 | H35: 3031 | K35: =IF($C$2=2,'2'!D35,IF($C$2=3,'3'!D35,IF($C$2=4,'4'!D35,IF($C$2=5,'5'!D35,IF($C$2=6,'6'!D35,IF($C$2=8,'8'!D35,IF($C$2=9,'9'!D35,IF($C$2="PERU2020",PERU2020!D35)))))))) -> 12067 | L35: =IF($C$2=2,'2'!E35,IF($C$2=3,'3'!E35,IF($C$2=4,'4'!E35,IF($C$2=5,'5'!E35,IF($C$2=6,'6'!E35,IF($C$2=8,'8'!E35,IF($C$2=9,'9'!E35,IF($C$2="PERU2020",PERU2020!E35)))))))) -> 8881 | M35: =IF($C$2=2,'2'!F35,IF($C$2=3,'3'!F35,IF($C$2=4,'4'!F35,IF($C$2=5,'5'!F35,IF($C$2=6,'6'!F35,IF($C$2=8,'8'!F35,IF($C$2=9,'9'!F35,IF($C$2="PERU2020",PERU2020!F35)))))))) -> 7123 | N35: =IF($C$2=2,'2'!G35,IF($C$2=3,'3'!G35,IF($C$2=4,'4'!G35,IF($C$2=5,'5'!G35,IF($C$2=6,'6'!G35,IF($C$2=8,'8'!G35,IF($C$2=9,'9'!G35,IF($C$2="PERU2020",PERU2020!G35)))))))) -> 5557 | O35: =IF($C$2=2,'2'!H35,IF($C$2=3,'3'!H35,IF($C$2=4,'4'!H35,IF($C$2=5,'5'!H35,IF($C$2=6,'6'!H35,IF($C$2=8,'8'!H35,IF($C$2=9,'9'!H35,IF($C$2="PERU2020",PERU2020!H35)))))))) -> 4330 | Q35: 8446.9 | R35: 6216.7 | S35: 4986.1 | T35: 3889.9 | U35: 3031
A36: 1 | B36: Rider Comp. Maternidad | D36: 0 | E36: 0 | F36: 225 | G36: 225 | H36: 225
A37: 1 | B37: Transplante de organos | D37: 0 | E37: 0 | F37: 0 | G37: 0 | H37: 0
A41: TARIFAS SEMESTRALES
A42: EDAD
D43: DW2 | E43: DW3 | F43: DW4 | G43: DW5 | H43: DW6
A44: 18 | B44: 18-24 | D44: =$G$2*D9 -> 5539.931 | E44: 3668.236 | F44: 2554.865 | G44: 1688.951 | H44: 1329.452
A45: 25 | B45: 25-29 | D45: 5810.761 | E45: 4050.366 | F45: 2827.179 | G45: 1866.289 | H45: 1471.174
A46: 30 | B46: 30-34 | D46: 6043.007 | E46: 4342.343 | F46: 3164.047 | G46: 2233.208 | H46: 1763.522
A47: 35 | B47: 35-39 | D47: 6769.054 | E47: 4861.372 | F47: 3543.951 | G47: 2501.812 | H47: 1973.508
A48: 40 | B48: 40-44 | D48: 7841.986 | E48: 5311.395 | F48: 3932.759 | G48: 2746.301 | H48: 2167.541
A49: 45 | B49: 45-49 | D49: 8765.034 | E49: 5940.24 | F49: 4389.46 | G49: 3069.813 | H49: 2421.305
A50: 50 | B50: 50-54 | D50: 11214.747 | E50: 7787.449 | F50: 5726.915 | G50: 4331.584 | H50: 3418.553
A51: 55 | B51: 55-59 | D51: 11928.551 | E51: 8286.073 | F51: 6091.979 | G51: 4607.237 | H51: 3637.443
A52: 60 | B52: 60 | D52: 12992.208 | E52: 9039.203 | F52: 7005.01 | G52: 5546.238 | H52: 4515.6
A53: 61 | B53: 61 | D53: 13959.405 | E53: 9711.455 | F53: 7519.587 | G53: 5959.903 | H53: 4849.5
A54: 62 | B54: 62 | D54: =$G$2*D19 -> 15283.133 | E54: 10632.277 | F54: 8238.585 | G54: 6520.855 | H54: 5307.685
A55: 63 | B55: 63 | D55: 16246.62 | E55: 11303.787 | F55: 8755.388 | G55: 6937.488 | H55: 5644.553
A56: 64 | B56: 64 | D56: 17573.316 | E56: 12232.029 | F56: 9472.531 | G56: 7502.15 | H56: 6104.964
A57: 65 | B57: 65 | D57: 22965.059 | E57: 15949.078 | F57: 11971.587 | G57: 9999.351 | H57: 8602.907
A58: 66 | B58: 66 | D58: 26676.543 | E58: 18527.899 | F58: 13909.691 | G58: 11619.137 | H58: 9994.157
A59: 67 | B59: 67 | D59: 29138.87 | E59: 20233.757 | F59: 15191.867 | G59: 12689.101 | H59: 10912.753
A60: 68 | B60: 68 | D60: 32260.464 | E60: 22402.252 | F60: 16817.96 | G60: 14050.671 | H60: 12086.597
A61: 69 | B61: 69 | D61: 35496.697 | E61: 24651.254 | F61: 18502.3 | G61: 15455.277 | H61: 13295.315
A62: 70 | B62: 70 | D62: 43681.699 | E62: 30009.236 | F62: 21780.085 | G62: 18007.757 | H62: 15633.728
A63: 71 | B63: 71 | D63: 45395.719 | E63: 31188.645 | F63: 22634.127 | G63: 18716.367 | H63: 16247.362
A64: 72 | B64: 72 | D64: =$G$2*D29 -> 46682.718 | E64: 32066.06 | F64: 23271.876 | G64: 19244.671 | H64: 16711.112
A65: 73 | B65: 73 | D65: 48395.996 | E65: 33244.727 | F65: 24127.031 | G65: 19953.652 | H65: 17322.891
A66: 74 | B66: 74 | D66: 49251.893 | E66: 33831.278 | F66: 24555.907 | G66: 20304.247 | H66: 17628.595
A67: 75 | B67: 75+ | D67: 51395.531 | E67: 35306.003 | F67: 25622.161 | G67: 21189.082 | H67: 18396.565
A68: 1 | B68: 1 Child | D68: 1921.78 | E68: 1413.881 | F68: 1135.26 | G68: 885.206 | H68: 691.544
A69: 2 | B69: 2 Children | D69: 3052.959 | E69: 2251.599 | F69: 1802.689 | G69: 1406.461 | H69: 1094.821
A70: 3 | B70: 3+ Children | D70: 4476.857 | E70: 3294.851 | F70: 2642.633 | G70: 2061.647 | H70: 1606.43
A71: 1 | B71: Rider Comp. Maternidad | D71: =+D36*$G$2 -> 0 | E71: 0 | F71: 119.25 | G71: 119.25 | H71: 119.25
A72: 1 | B72: Transplante de organos | D72: 0 | E72: 0 | F72: 0 | G72: 0 | H72: 0
A78: DIAMOND (LATINAMERICA ONLY)
A79: TARIFAS ANUALES
A80: EDAD
C81: DL1 | D81: DL2 | E81: DL3 | F81: DL4 | G81: DL5 | H81: DL6
A82: 18 | B82: - 24
A83: 25 | B83: - 29
A84: 30 | B84: - 34
A85: 35 | B85: - 39
A86: 40 | B86: - 44
A87: 45 | B87: - 49
A88: 50 | B88: - 54
A89: 55 | B89: - 59
A90: 60
A91: 61
A92: 62
A93: 63
A94: 64
A95: 65
A96: 66
A97: 67
A98: 68
A99: 69
A100: 70
A101: 71
A102: 72
A103: 73
A104: 74
A105: 75 | B105: o más
A106: 1 | B106: Hijo
A107: 2 | B107: Hijos
A108: 3 | B108: Hijos o más
A109: 1 | B109: Rider Comp. Maternidad
A110: 1 | B110: Transplante de organos | C110: 0 | D110: 0 | E110: 0 | F110: 0 | G110: 0 | H110: 0
A112: TARIFAS SEMESTRALES
A113: EDAD
C114: DL1 | D114: DL2 | E114: DL3 | F114: DL4 | G114: DL5 | H114: DL6
A115: 18 | B115: - 24 | C115: =+C82*$G$2 -> 0 | D115: 0 | E115: 0 | F115: 0 | G115: 0 | H115: 0
A116: 25 | B116: - 29 | C116: 0 | D116: 0 | E116: 0 | F116: 0 | G116: 0 | H116: 0
A117: 30 | B117: - 34 | C117: 0 | D117: 0 | E117: 0 | F117: 0 | G117: 0 | H117: 0
A118: 35 | B118: - 39 | C118: 0 | D118: 0 | E118: 0 | F118: 0 | G118: 0 | H118: 0
A119: 40 | B119: - 44 | C119: 0 | D119: 0 | E119: 0 | F119: 0 | G119: 0 | H119: 0
A120: 45 | B120: - 49 | C120: 0 | D120: 0 | E120: 0 | F120: 0 | G120: 0 | H120: 0
A121: 50 | B121: - 54 | C121: 0 | D121: 0 | E121: 0 | F121: 0 | G121: 0 | H121: 0
A122: 55 | B122: - 59 | C122: 0 | D122: 0 | E122: 0 | F122: 0 | G122: 0 | H122: 0
A123: 60 | C123: 0 | D123: 0 | E123: 0 | F123: 0 | G123: 0 | H123: 0
A124: 61 | C124: 0 | D124: 0 | E124: 0 | F124: 0 | G124: 0 | H124: 0
A125: 62 | C125: =+C92*$G$2 -> 0 | D125: 0 | E125: 0 | F125: 0 | G125: 0 | H125: 0
A126: 63 | C126: 0 | D126: 0 | E126: 0 | F126: 0 | G126: 0 | H126: 0
A127: 64 | C127: 0 | D127: 0 | E127: 0 | F127: 0 | G127: 0 | H127: 0
A128: 65 | C128: 0 | D128: 0 | E128: 0 | F128: 0 | G128: 0 | H128: 0
A129: 66 | C129: 0 | D129: 0 | E129: 0 | F129: 0 | G129: 0 | H129: 0
A130: 67 | C130: 0 | D130: 0 | E130: 0 | F130: 0 | G130: 0 | H130: 0
A131: 68 | C131: 0 | D131: 0 | E131: 0 | F131: 0 | G131: 0 | H131: 0
A132: 69 | C132: 0 | D132: 0 | E132: 0 | F132: 0 | G132: 0 | H132: 0
A133: 70 | C133: 0 | D133: 0 | E133: 0 | F133: 0 | G133: 0 | H133: 0
A134: 71 | C134: 0 | D134: 0 | E134: 0 | F134: 0 | G134: 0 | H134: 0
A135: 72 | C135: =+C102*$G$2 -> 0 | D135: 0 | E135: 0 | F135: 0 | G135: 0 | H135: 0
A136: 73 | C136: 0 | D136: 0 | E136: 0 | F136: 0 | G136: 0 | H136: 0
A137: 74 | C137: 0 | D137: 0 | E137: 0 | F137: 0 | G137: 0 | H137: 0
A138: 75 | B138: o más | C138: 0 | D138: 0 | E138: 0 | F138: 0 | G138: 0 | H138: 0
A139: 1 | B139: Hijo | C139: 0 | D139: 0 | E139: 0 | F139: 0 | G139: 0 | H139: 0
A140: 2 | B140: Hijos | C140: 0 | D140: 0 | E140: 0 | F140: 0 | G140: 0 | H140: 0
A141: 3 | B141: Hijos o más | C141: 0 | D141: 0 | E141: 0 | F141: 0 | G141: 0 | H141: 0
A142: 1 | B142: Rider Comp. Maternidad | C142: 0 | D142: 0 | E142: 0 | F142: 0 | G142: 0 | H142: 0
A143: 1 | B143: Transplante de organos | C143: 0 | D143: 0 | E143: 0 | F143: 0 | G143: 0 | H143: 0
A148: BUPA PRIVILEGE CARE
A149: TARIFAS ANUALES
A150: EDAD
C151: CW1 | D151: CW2 | E151: CW3 | F151: CW4 | G151: CW5 | H151: CW6
A152: 18 | B152: 18-24 | D152: =Q152 -> 8795.1 | E152: =R152 -> 6052.5 | F152: 4187 | G152: 2753.4 | H152: 2101 | K152: =IF($C$2=2,'2'!D152,IF($C$2=3,'3'!D152,IF($C$2=4,'4'!D152,IF($C$2=5,'5'!D152,IF($C$2=6,'6'!D152,IF($C$2=8,'8'!D152,IF($C$2=9,'9'!D152,IF($C$2="PERU2020",PERU2020!D152)))))))) -> 12543 | L152: =IF($C$2=2,'2'!E152,IF($C$2=3,'3'!E152,IF($C$2=4,'4'!E152,IF($C$2=5,'5'!E152,IF($C$2=6,'6'!E152,IF($C$2=8,'8'!E152,IF($C$2=9,'9'!E152,IF($C$2="PERU2020",PERU2020!E152)))))))) -> 8625 | M152: =IF($C$2=2,'2'!F152,IF($C$2=3,'3'!F152,IF($C$2=4,'4'!F152,IF($C$2=5,'5'!F152,IF($C$2=6,'6'!F152,IF($C$2=8,'8'!F152,IF($C$2=9,'9'!F152,IF($C$2="PERU2020",PERU2020!F152)))))))) -> 5960 | N152: =IF($C$2=2,'2'!G152,IF($C$2=3,'3'!G152,IF($C$2=4,'4'!G152,IF($C$2=5,'5'!G152,IF($C$2=6,'6'!G152,IF($C$2=8,'8'!G152,IF($C$2=9,'9'!G152,IF($C$2="PERU2020",PERU2020!G152)))))))) -> 3912 | O152: =IF($C$2=2,'2'!H152,IF($C$2=3,'3'!H152,IF($C$2=4,'4'!H152,IF($C$2=5,'5'!H152,IF($C$2=6,'6'!H152,IF($C$2=8,'8'!H152,IF($C$2=9,'9'!H152,IF($C$2="PERU2020",PERU2020!H152)))))))) -> 2980 | Q152: =(K152-50)*$M$2+50 -> 8795.1 | R152: =(L152-50)*$M$2+50 -> 6052.5 | S152: 4187 | T152: 2753.4 | U152: 2101
A153: 25 | B153: 25-29 | D153: =Q153 -> 9227.7 | E153: =R153 -> 6689.5 | F153: =S153 -> 4637.1 | G153: =T153 -> 3050.2 | H153: =U153 -> 2332 | K153: =IF($C$2=2,'2'!D153,IF($C$2=3,'3'!D153,IF($C$2=4,'4'!D153,IF($C$2=5,'5'!D153,IF($C$2=6,'6'!D153,IF($C$2=8,'8'!D153,IF($C$2=9,'9'!D153,IF($C$2="PERU2020",PERU2020!D153)))))))) -> 13161 | L153: =IF($C$2=2,'2'!E153,IF($C$2=3,'3'!E153,IF($C$2=4,'4'!E153,IF($C$2=5,'5'!E153,IF($C$2=6,'6'!E153,IF($C$2=8,'8'!E153,IF($C$2=9,'9'!E153,IF($C$2="PERU2020",PERU2020!E153)))))))) -> 9535 | M153: =IF($C$2=2,'2'!F153,IF($C$2=3,'3'!F153,IF($C$2=4,'4'!F153,IF($C$2=5,'5'!F153,IF($C$2=6,'6'!F153,IF($C$2=8,'8'!F153,IF($C$2=9,'9'!F153,IF($C$2="PERU2020",PERU2020!F153)))))))) -> 6603 | N153: =IF($C$2=2,'2'!G153,IF($C$2=3,'3'!G153,IF($C$2=4,'4'!G153,IF($C$2=5,'5'!G153,IF($C$2=6,'6'!G153,IF($C$2=8,'8'!G153,IF($C$2=9,'9'!G153,IF($C$2="PERU2020",PERU2020!G153)))))))) -> 4336 | O153: =IF($C$2=2,'2'!H153,IF($C$2=3,'3'!H153,IF($C$2=4,'4'!H153,IF($C$2=5,'5'!H153,IF($C$2=6,'6'!H153,IF($C$2=8,'8'!H153,IF($C$2=9,'9'!H153,IF($C$2="PERU2020",PERU2020!H153)))))))) -> 3310 | Q153: =(K153-50)*$M$2+50 -> 9227.7 | R153: =(L153-50)*$M$2+50 -> 6689.5 | S153: =(M153-50)*$M$2+50 -> 4637.1 | T153: =(N153-50)*$M$2+50 -> 3050.2 | U153: =(O153-50)*$M$2+50 -> 2332
A154: 30 | B154: 30-34 | D154: 9642.1 | E154: 7168.3 | F154: 5192.9 | G154: 3691.4 | H154: 2818.5 | K154: =IF($C$2=2,'2'!D154,IF($C$2=3,'3'!D154,IF($C$2=4,'4'!D154,IF($C$2=5,'5'!D154,IF($C$2=6,'6'!D154,IF($C$2=8,'8'!D154,IF($C$2=9,'9'!D154,IF($C$2="PERU2020",PERU2020!D154)))))))) -> 13753 | L154: =IF($C$2=2,'2'!E154,IF($C$2=3,'3'!E154,IF($C$2=4,'4'!E154,IF($C$2=5,'5'!E154,IF($C$2=6,'6'!E154,IF($C$2=8,'8'!E154,IF($C$2=9,'9'!E154,IF($C$2="PERU2020",PERU2020!E154)))))))) -> 10219 | M154: =IF($C$2=2,'2'!F154,IF($C$2=3,'3'!F154,IF($C$2=4,'4'!F154,IF($C$2=5,'5'!F154,IF($C$2=6,'6'!F154,IF($C$2=8,'8'!F154,IF($C$2=9,'9'!F154,IF($C$2="PERU2020",PERU2020!F154)))))))) -> 7397 | N154: =IF($C$2=2,'2'!G154,IF($C$2=3,'3'!G154,IF($C$2=4,'4'!G154,IF($C$2=5,'5'!G154,IF($C$2=6,'6'!G154,IF($C$2=8,'8'!G154,IF($C$2=9,'9'!G154,IF($C$2="PERU2020",PERU2020!G154)))))))) -> 5252 | O154: =IF($C$2=2,'2'!H154,IF($C$2=3,'3'!H154,IF($C$2=4,'4'!H154,IF($C$2=5,'5'!H154,IF($C$2=6,'6'!H154,IF($C$2=8,'8'!H154,IF($C$2=9,'9'!H154,IF($C$2="PERU2020",PERU2020!H154)))))))) -> 4005 | Q154: 9642.1 | R154: 7168.3 | S154: 5192.9 | T154: 3691.4 | U154: 2818.5
A155: 35 | B155: 35-39 | D155: 10792.2 | E155: 8020.9 | F155: 5815.2 | G155: 4131.7 | H155: 3155.2 | K155: =IF($C$2=2,'2'!D155,IF($C$2=3,'3'!D155,IF($C$2=4,'4'!D155,IF($C$2=5,'5'!D155,IF($C$2=6,'6'!D155,IF($C$2=8,'8'!D155,IF($C$2=9,'9'!D155,IF($C$2="PERU2020",PERU2020!D155)))))))) -> 15396 | L155: =IF($C$2=2,'2'!E155,IF($C$2=3,'3'!E155,IF($C$2=4,'4'!E155,IF($C$2=5,'5'!E155,IF($C$2=6,'6'!E155,IF($C$2=8,'8'!E155,IF($C$2=9,'9'!E155,IF($C$2="PERU2020",PERU2020!E155)))))))) -> 11437 | M155: =IF($C$2=2,'2'!F155,IF($C$2=3,'3'!F155,IF($C$2=4,'4'!F155,IF($C$2=5,'5'!F155,IF($C$2=6,'6'!F155,IF($C$2=8,'8'!F155,IF($C$2=9,'9'!F155,IF($C$2="PERU2020",PERU2020!F155)))))))) -> 8286 | N155: =IF($C$2=2,'2'!G155,IF($C$2=3,'3'!G155,IF($C$2=4,'4'!G155,IF($C$2=5,'5'!G155,IF($C$2=6,'6'!G155,IF($C$2=8,'8'!G155,IF($C$2=9,'9'!G155,IF($C$2="PERU2020",PERU2020!G155)))))))) -> 5881 | O155: =IF($C$2=2,'2'!H155,IF($C$2=3,'3'!H155,IF($C$2=4,'4'!H155,IF($C$2=5,'5'!H155,IF($C$2=6,'6'!H155,IF($C$2=8,'8'!H155,IF($C$2=9,'9'!H155,IF($C$2="PERU2020",PERU2020!H155)))))))) -> 4486 | Q155: 10792.2 | R155: 8020.9 | S155: 5815.2 | T155: 4131.7 | U155: 3155.2
A156: 40 | B156: 40-44 | D156: 12490.4 | E156: 8783.9 | F156: 6464.8 | G156: 4553.8 | H156: 3479.3 | K156: =IF($C$2=2,'2'!D156,IF($C$2=3,'3'!D156,IF($C$2=4,'4'!D156,IF($C$2=5,'5'!D156,IF($C$2=6,'6'!D156,IF($C$2=8,'8'!D156,IF($C$2=9,'9'!D156,IF($C$2="PERU2020",PERU2020!D156)))))))) -> 17822 | L156: =IF($C$2=2,'2'!E156,IF($C$2=3,'3'!E156,IF($C$2=4,'4'!E156,IF($C$2=5,'5'!E156,IF($C$2=6,'6'!E156,IF($C$2=8,'8'!E156,IF($C$2=9,'9'!E156,IF($C$2="PERU2020",PERU2020!E156)))))))) -> 12527 | M156: =IF($C$2=2,'2'!F156,IF($C$2=3,'3'!F156,IF($C$2=4,'4'!F156,IF($C$2=5,'5'!F156,IF($C$2=6,'6'!F156,IF($C$2=8,'8'!F156,IF($C$2=9,'9'!F156,IF($C$2="PERU2020",PERU2020!F156)))))))) -> 9214 | N156: =IF($C$2=2,'2'!G156,IF($C$2=3,'3'!G156,IF($C$2=4,'4'!G156,IF($C$2=5,'5'!G156,IF($C$2=6,'6'!G156,IF($C$2=8,'8'!G156,IF($C$2=9,'9'!G156,IF($C$2="PERU2020",PERU2020!G156)))))))) -> 6484 | O156: =IF($C$2=2,'2'!H156,IF($C$2=3,'3'!H156,IF($C$2=4,'4'!H156,IF($C$2=5,'5'!H156,IF($C$2=6,'6'!H156,IF($C$2=8,'8'!H156,IF($C$2=9,'9'!H156,IF($C$2="PERU2020",PERU2020!H156)))))))) -> 4949 | Q156: 12490.4 | R156: 8783.9 | S156: 6464.8 | T156: 4553.8 | U156: 3479.3
A157: 45 | B157: 45-49 | D157: 13945.7 | E157: 9817.1 | F157: 7231.3 | G157: 5084.4 | H157: 3889.5 | K157: =IF($C$2=2,'2'!D157,IF($C$2=3,'3'!D157,IF($C$2=4,'4'!D157,IF($C$2=5,'5'!D157,IF($C$2=6,'6'!D157,IF($C$2=8,'8'!D157,IF($C$2=9,'9'!D157,IF($C$2="PERU2020",PERU2020!D157)))))))) -> 19901 | L157: =IF($C$2=2,'2'!E157,IF($C$2=3,'3'!E157,IF($C$2=4,'4'!E157,IF($C$2=5,'5'!E157,IF($C$2=6,'6'!E157,IF($C$2=8,'8'!E157,IF($C$2=9,'9'!E157,IF($C$2="PERU2020",PERU2020!E157)))))))) -> 14003 | M157: =IF($C$2=2,'2'!F157,IF($C$2=3,'3'!F157,IF($C$2=4,'4'!F157,IF($C$2=5,'5'!F157,IF($C$2=6,'6'!F157,IF($C$2=8,'8'!F157,IF($C$2=9,'9'!F157,IF($C$2="PERU2020",PERU2020!F157)))))))) -> 10309 | N157: =IF($C$2=2,'2'!G157,IF($C$2=3,'3'!G157,IF($C$2=4,'4'!G157,IF($C$2=5,'5'!G157,IF($C$2=6,'6'!G157,IF($C$2=8,'8'!G157,IF($C$2=9,'9'!G157,IF($C$2="PERU2020",PERU2020!G157)))))))) -> 7242 | O157: =IF($C$2=2,'2'!H157,IF($C$2=3,'3'!H157,IF($C$2=4,'4'!H157,IF($C$2=5,'5'!H157,IF($C$2=6,'6'!H157,IF($C$2=8,'8'!H157,IF($C$2=9,'9'!H157,IF($C$2="PERU2020",PERU2020!H157)))))))) -> 5535 | Q157: 13945.7 | R157: 9817.1 | S157: 7231.3 | T157: 5084.4 | U157: 3889.5
A158: 50 | B158: 50-54 | D158: 18226.2 | E158: 12939.1 | F158: 9485.3 | G158: 7248.8 | H158: 5544.3 | K158: =IF($C$2=2,'2'!D158,IF($C$2=3,'3'!D158,IF($C$2=4,'4'!D158,IF($C$2=5,'5'!D158,IF($C$2=6,'6'!D158,IF($C$2=8,'8'!D158,IF($C$2=9,'9'!D158,IF($C$2="PERU2020",PERU2020!D158)))))))) -> 26016 | L158: =IF($C$2=2,'2'!E158,IF($C$2=3,'3'!E158,IF($C$2=4,'4'!E158,IF($C$2=5,'5'!E158,IF($C$2=6,'6'!E158,IF($C$2=8,'8'!E158,IF($C$2=9,'9'!E158,IF($C$2="PERU2020",PERU2020!E158)))))))) -> 18463 | M158: =IF($C$2=2,'2'!F158,IF($C$2=3,'3'!F158,IF($C$2=4,'4'!F158,IF($C$2=5,'5'!F158,IF($C$2=6,'6'!F158,IF($C$2=8,'8'!F158,IF($C$2=9,'9'!F158,IF($C$2="PERU2020",PERU2020!F158)))))))) -> 13529 | N158: =IF($C$2=2,'2'!G158,IF($C$2=3,'3'!G158,IF($C$2=4,'4'!G158,IF($C$2=5,'5'!G158,IF($C$2=6,'6'!G158,IF($C$2=8,'8'!G158,IF($C$2=9,'9'!G158,IF($C$2="PERU2020",PERU2020!G158)))))))) -> 10334 | O158: =IF($C$2=2,'2'!H158,IF($C$2=3,'3'!H158,IF($C$2=4,'4'!H158,IF($C$2=5,'5'!H158,IF($C$2=6,'6'!H158,IF($C$2=8,'8'!H158,IF($C$2=9,'9'!H158,IF($C$2="PERU2020",PERU2020!H158)))))))) -> 7899 | Q158: 18226.2 | R158: 12939.1 | S158: 9485.3 | T158: 7248.8 | U158: 5544.3
A159: 55 | B159: 55-59 | D159: 19392.4 | E159: 13765.1 | F159: 10092.2 | G159: 7713.6 | H159: 5901.3 | K159: =IF($C$2=2,'2'!D159,IF($C$2=3,'3'!D159,IF($C$2=4,'4'!D159,IF($C$2=5,'5'!D159,IF($C$2=6,'6'!D159,IF($C$2=8,'8'!D159,IF($C$2=9,'9'!D159,IF($C$2="PERU2020",PERU2020!D159)))))))) -> 27682 | L159: =IF($C$2=2,'2'!E159,IF($C$2=3,'3'!E159,IF($C$2=4,'4'!E159,IF($C$2=5,'5'!E159,IF($C$2=6,'6'!E159,IF($C$2=8,'8'!E159,IF($C$2=9,'9'!E159,IF($C$2="PERU2020",PERU2020!E159)))))))) -> 19643 | M159: =IF($C$2=2,'2'!F159,IF($C$2=3,'3'!F159,IF($C$2=4,'4'!F159,IF($C$2=5,'5'!F159,IF($C$2=6,'6'!F159,IF($C$2=8,'8'!F159,IF($C$2=9,'9'!F159,IF($C$2="PERU2020",PERU2020!F159)))))))) -> 14396 | N159: =IF($C$2=2,'2'!G159,IF($C$2=3,'3'!G159,IF($C$2=4,'4'!G159,IF($C$2=5,'5'!G159,IF($C$2=6,'6'!G159,IF($C$2=8,'8'!G159,IF($C$2=9,'9'!G159,IF($C$2="PERU2020",PERU2020!G159)))))))) -> 10998 | O159: =IF($C$2=2,'2'!H159,IF($C$2=3,'3'!H159,IF($C$2=4,'4'!H159,IF($C$2=5,'5'!H159,IF($C$2=6,'6'!H159,IF($C$2=8,'8'!H159,IF($C$2=9,'9'!H159,IF($C$2="PERU2020",PERU2020!H159)))))))) -> 8409 | Q159: 19392.4 | R159: 13765.1 | S159: 10092.2 | T159: 7713.6 | U159: 5901.3
A160: 60 | B160: 60 | D160: 21117.2 | E160: 14950.9 | F160: 11477.5 | G160: 9175.2 | H160: 7368.5 | K160: =IF($C$2=2,'2'!D160,IF($C$2=3,'3'!D160,IF($C$2=4,'4'!D160,IF($C$2=5,'5'!D160,IF($C$2=6,'6'!D160,IF($C$2=8,'8'!D160,IF($C$2=9,'9'!D160,IF($C$2="PERU2020",PERU2020!D160)))))))) -> 30146 | L160: =IF($C$2=2,'2'!E160,IF($C$2=3,'3'!E160,IF($C$2=4,'4'!E160,IF($C$2=5,'5'!E160,IF($C$2=6,'6'!E160,IF($C$2=8,'8'!E160,IF($C$2=9,'9'!E160,IF($C$2="PERU2020",PERU2020!E160)))))))) -> 21337 | M160: =IF($C$2=2,'2'!F160,IF($C$2=3,'3'!F160,IF($C$2=4,'4'!F160,IF($C$2=5,'5'!F160,IF($C$2=6,'6'!F160,IF($C$2=8,'8'!F160,IF($C$2=9,'9'!F160,IF($C$2="PERU2020",PERU2020!F160)))))))) -> 16375 | N160: =IF($C$2=2,'2'!G160,IF($C$2=3,'3'!G160,IF($C$2=4,'4'!G160,IF($C$2=5,'5'!G160,IF($C$2=6,'6'!G160,IF($C$2=8,'8'!G160,IF($C$2=9,'9'!G160,IF($C$2="PERU2020",PERU2020!G160)))))))) -> 13086 | O160: =IF($C$2=2,'2'!H160,IF($C$2=3,'3'!H160,IF($C$2=4,'4'!H160,IF($C$2=5,'5'!H160,IF($C$2=6,'6'!H160,IF($C$2=8,'8'!H160,IF($C$2=9,'9'!H160,IF($C$2="PERU2020",PERU2020!H160)))))))) -> 10505 | Q160: 21117.2 | R160: 14950.9 | S160: 11477.5 | T160: 9175.2 | U160: 7368.5
A161: 61 | B161: 61 | D161: 22683.1 | E161: 16056.2 | F161: 12327.3 | G161: 9852.1 | H161: 7911.7 | K161: =IF($C$2=2,'2'!D161,IF($C$2=3,'3'!D161,IF($C$2=4,'4'!D161,IF($C$2=5,'5'!D161,IF($C$2=6,'6'!D161,IF($C$2=8,'8'!D161,IF($C$2=9,'9'!D161,IF($C$2="PERU2020",PERU2020!D161)))))))) -> 32383 | L161: =IF($C$2=2,'2'!E161,IF($C$2=3,'3'!E161,IF($C$2=4,'4'!E161,IF($C$2=5,'5'!E161,IF($C$2=6,'6'!E161,IF($C$2=8,'8'!E161,IF($C$2=9,'9'!E161,IF($C$2="PERU2020",PERU2020!E161)))))))) -> 22916 | M161: =IF($C$2=2,'2'!F161,IF($C$2=3,'3'!F161,IF($C$2=4,'4'!F161,IF($C$2=5,'5'!F161,IF($C$2=6,'6'!F161,IF($C$2=8,'8'!F161,IF($C$2=9,'9'!F161,IF($C$2="PERU2020",PERU2020!F161)))))))) -> 17589 | N161: =IF($C$2=2,'2'!G161,IF($C$2=3,'3'!G161,IF($C$2=4,'4'!G161,IF($C$2=5,'5'!G161,IF($C$2=6,'6'!G161,IF($C$2=8,'8'!G161,IF($C$2=9,'9'!G161,IF($C$2="PERU2020",PERU2020!G161)))))))) -> 14053 | O161: =IF($C$2=2,'2'!H161,IF($C$2=3,'3'!H161,IF($C$2=4,'4'!H161,IF($C$2=5,'5'!H161,IF($C$2=6,'6'!H161,IF($C$2=8,'8'!H161,IF($C$2=9,'9'!H161,IF($C$2="PERU2020",PERU2020!H161)))))))) -> 11281 | Q161: 22683.1 | R161: 16056.2 | S161: 12327.3 | T161: 9852.1 | U161: 7911.7
A162: 62 | B162: 62 | D162: 24830 | E162: 17582.9 | F162: 13500.5 | G162: 10785.2 | H162: 8666.3 | K162: =IF($C$2=2,'2'!D162,IF($C$2=3,'3'!D162,IF($C$2=4,'4'!D162,IF($C$2=5,'5'!D162,IF($C$2=6,'6'!D162,IF($C$2=8,'8'!D162,IF($C$2=9,'9'!D162,IF($C$2="PERU2020",PERU2020!D162)))))))) -> 35450 | L162: =IF($C$2=2,'2'!E162,IF($C$2=3,'3'!E162,IF($C$2=4,'4'!E162,IF($C$2=5,'5'!E162,IF($C$2=6,'6'!E162,IF($C$2=8,'8'!E162,IF($C$2=9,'9'!E162,IF($C$2="PERU2020",PERU2020!E162)))))))) -> 25097 | M162: =IF($C$2=2,'2'!F162,IF($C$2=3,'3'!F162,IF($C$2=4,'4'!F162,IF($C$2=5,'5'!F162,IF($C$2=6,'6'!F162,IF($C$2=8,'8'!F162,IF($C$2=9,'9'!F162,IF($C$2="PERU2020",PERU2020!F162)))))))) -> 19265 | N162: =IF($C$2=2,'2'!G162,IF($C$2=3,'3'!G162,IF($C$2=4,'4'!G162,IF($C$2=5,'5'!G162,IF($C$2=6,'6'!G162,IF($C$2=8,'8'!G162,IF($C$2=9,'9'!G162,IF($C$2="PERU2020",PERU2020!G162)))))))) -> 15386 | O162: =IF($C$2=2,'2'!H162,IF($C$2=3,'3'!H162,IF($C$2=4,'4'!H162,IF($C$2=5,'5'!H162,IF($C$2=6,'6'!H162,IF($C$2=8,'8'!H162,IF($C$2=9,'9'!H162,IF($C$2="PERU2020",PERU2020!H162)))))))) -> 12359 | Q162: 24830 | R162: 17582.9 | S162: 13500.5 | T162: 10785.2 | U162: 8666.3
A163: 63 | B163: 63 | D163: 26400.1 | E163: 18687.5 | F163: 14349.6 | G163: 11464.9 | H163: 9210.9 | K163: =IF($C$2=2,'2'!D163,IF($C$2=3,'3'!D163,IF($C$2=4,'4'!D163,IF($C$2=5,'5'!D163,IF($C$2=6,'6'!D163,IF($C$2=8,'8'!D163,IF($C$2=9,'9'!D163,IF($C$2="PERU2020",PERU2020!D163)))))))) -> 37693 | L163: =IF($C$2=2,'2'!E163,IF($C$2=3,'3'!E163,IF($C$2=4,'4'!E163,IF($C$2=5,'5'!E163,IF($C$2=6,'6'!E163,IF($C$2=8,'8'!E163,IF($C$2=9,'9'!E163,IF($C$2="PERU2020",PERU2020!E163)))))))) -> 26675 | M163: =IF($C$2=2,'2'!F163,IF($C$2=3,'3'!F163,IF($C$2=4,'4'!F163,IF($C$2=5,'5'!F163,IF($C$2=6,'6'!F163,IF($C$2=8,'8'!F163,IF($C$2=9,'9'!F163,IF($C$2="PERU2020",PERU2020!F163)))))))) -> 20478 | N163: =IF($C$2=2,'2'!G163,IF($C$2=3,'3'!G163,IF($C$2=4,'4'!G163,IF($C$2=5,'5'!G163,IF($C$2=6,'6'!G163,IF($C$2=8,'8'!G163,IF($C$2=9,'9'!G163,IF($C$2="PERU2020",PERU2020!G163)))))))) -> 16357 | O163: =IF($C$2=2,'2'!H163,IF($C$2=3,'3'!H163,IF($C$2=4,'4'!H163,IF($C$2=5,'5'!H163,IF($C$2=6,'6'!H163,IF($C$2=8,'8'!H163,IF($C$2=9,'9'!H163,IF($C$2="PERU2020",PERU2020!H163)))))))) -> 13137 | Q163: 26400.1 | R163: 18687.5 | S163: 14349.6 | T163: 11464.9 | U163: 9210.9
A164: 64 | B164: 64 | D164: 28552.6 | E164: 20217.7 | F164: 15522.1 | G164: 12402.2 | H164: 9964.8 | K164: =IF($C$2=2,'2'!D164,IF($C$2=3,'3'!D164,IF($C$2=4,'4'!D164,IF($C$2=5,'5'!D164,IF($C$2=6,'6'!D164,IF($C$2=8,'8'!D164,IF($C$2=9,'9'!D164,IF($C$2="PERU2020",PERU2020!D164)))))))) -> 40768 | L164: =IF($C$2=2,'2'!E164,IF($C$2=3,'3'!E164,IF($C$2=4,'4'!E164,IF($C$2=5,'5'!E164,IF($C$2=6,'6'!E164,IF($C$2=8,'8'!E164,IF($C$2=9,'9'!E164,IF($C$2="PERU2020",PERU2020!E164)))))))) -> 28861 | M164: =IF($C$2=2,'2'!F164,IF($C$2=3,'3'!F164,IF($C$2=4,'4'!F164,IF($C$2=5,'5'!F164,IF($C$2=6,'6'!F164,IF($C$2=8,'8'!F164,IF($C$2=9,'9'!F164,IF($C$2="PERU2020",PERU2020!F164)))))))) -> 22153 | N164: =IF($C$2=2,'2'!G164,IF($C$2=3,'3'!G164,IF($C$2=4,'4'!G164,IF($C$2=5,'5'!G164,IF($C$2=6,'6'!G164,IF($C$2=8,'8'!G164,IF($C$2=9,'9'!G164,IF($C$2="PERU2020",PERU2020!G164)))))))) -> 17696 | O164: =IF($C$2=2,'2'!H164,IF($C$2=3,'3'!H164,IF($C$2=4,'4'!H164,IF($C$2=5,'5'!H164,IF($C$2=6,'6'!H164,IF($C$2=8,'8'!H164,IF($C$2=9,'9'!H164,IF($C$2="PERU2020",PERU2020!H164)))))))) -> 14214 | Q164: 28552.6 | R164: 20217.7 | S164: 15522.1 | T164: 12402.2 | U164: 9964.8
A165: 65 | B165: 65 | D165: 37314.5 | E165: 26365.1 | F165: 19624.1 | G165: 16528.7 | H165: 14041.6 | K165: =IF($C$2=2,'2'!D165,IF($C$2=3,'3'!D165,IF($C$2=4,'4'!D165,IF($C$2=5,'5'!D165,IF($C$2=6,'6'!D165,IF($C$2=8,'8'!D165,IF($C$2=9,'9'!D165,IF($C$2="PERU2020",PERU2020!D165)))))))) -> 53285 | L165: =IF($C$2=2,'2'!E165,IF($C$2=3,'3'!E165,IF($C$2=4,'4'!E165,IF($C$2=5,'5'!E165,IF($C$2=6,'6'!E165,IF($C$2=8,'8'!E165,IF($C$2=9,'9'!E165,IF($C$2="PERU2020",PERU2020!E165)))))))) -> 37643 | M165: =IF($C$2=2,'2'!F165,IF($C$2=3,'3'!F165,IF($C$2=4,'4'!F165,IF($C$2=5,'5'!F165,IF($C$2=6,'6'!F165,IF($C$2=8,'8'!F165,IF($C$2=9,'9'!F165,IF($C$2="PERU2020",PERU2020!F165)))))))) -> 28013 | N165: =IF($C$2=2,'2'!G165,IF($C$2=3,'3'!G165,IF($C$2=4,'4'!G165,IF($C$2=5,'5'!G165,IF($C$2=6,'6'!G165,IF($C$2=8,'8'!G165,IF($C$2=9,'9'!G165,IF($C$2="PERU2020",PERU2020!G165)))))))) -> 23591 | O165: =IF($C$2=2,'2'!H165,IF($C$2=3,'3'!H165,IF($C$2=4,'4'!H165,IF($C$2=5,'5'!H165,IF($C$2=6,'6'!H165,IF($C$2=8,'8'!H165,IF($C$2=9,'9'!H165,IF($C$2="PERU2020",PERU2020!H165)))))))) -> 20038 | Q165: 37314.5 | R165: 26365.1 | S165: 19624.1 | T165: 16528.7 | U165: 14041.6
A166: 66 | B166: 66 | D166: 43349.9 | E166: 30627.4 | F166: 22795.8 | G166: 19204.1 | H166: 16317.3 | K166: =IF($C$2=2,'2'!D166,IF($C$2=3,'3'!D166,IF($C$2=4,'4'!D166,IF($C$2=5,'5'!D166,IF($C$2=6,'6'!D166,IF($C$2=8,'8'!D166,IF($C$2=9,'9'!D166,IF($C$2="PERU2020",PERU2020!D166)))))))) -> 61907 | L166: =IF($C$2=2,'2'!E166,IF($C$2=3,'3'!E166,IF($C$2=4,'4'!E166,IF($C$2=5,'5'!E166,IF($C$2=6,'6'!E166,IF($C$2=8,'8'!E166,IF($C$2=9,'9'!E166,IF($C$2="PERU2020",PERU2020!E166)))))))) -> 43732 | M166: =IF($C$2=2,'2'!F166,IF($C$2=3,'3'!F166,IF($C$2=4,'4'!F166,IF($C$2=5,'5'!F166,IF($C$2=6,'6'!F166,IF($C$2=8,'8'!F166,IF($C$2=9,'9'!F166,IF($C$2="PERU2020",PERU2020!F166)))))))) -> 32544 | N166: =IF($C$2=2,'2'!G166,IF($C$2=3,'3'!G166,IF($C$2=4,'4'!G166,IF($C$2=5,'5'!G166,IF($C$2=6,'6'!G166,IF($C$2=8,'8'!G166,IF($C$2=9,'9'!G166,IF($C$2="PERU2020",PERU2020!G166)))))))) -> 27413 | O166: =IF($C$2=2,'2'!H166,IF($C$2=3,'3'!H166,IF($C$2=4,'4'!H166,IF($C$2=5,'5'!H166,IF($C$2=6,'6'!H166,IF($C$2=8,'8'!H166,IF($C$2=9,'9'!H166,IF($C$2="PERU2020",PERU2020!H166)))))))) -> 23289 | Q166: 43349.9 | R166: 30627.4 | S166: 22795.8 | T166: 19204.1 | U166: 16317.3
A167: 67 | B167: 67 | D167: 47349 | E167: 33454 | F167: 24893.7 | G167: 20973.7 | H167: 17813.2 | K167: =IF($C$2=2,'2'!D167,IF($C$2=3,'3'!D167,IF($C$2=4,'4'!D167,IF($C$2=5,'5'!D167,IF($C$2=6,'6'!D167,IF($C$2=8,'8'!D167,IF($C$2=9,'9'!D167,IF($C$2="PERU2020",PERU2020!D167)))))))) -> 67620 | L167: =IF($C$2=2,'2'!E167,IF($C$2=3,'3'!E167,IF($C$2=4,'4'!E167,IF($C$2=5,'5'!E167,IF($C$2=6,'6'!E167,IF($C$2=8,'8'!E167,IF($C$2=9,'9'!E167,IF($C$2="PERU2020",PERU2020!E167)))))))) -> 47770 | M167: =IF($C$2=2,'2'!F167,IF($C$2=3,'3'!F167,IF($C$2=4,'4'!F167,IF($C$2=5,'5'!F167,IF($C$2=6,'6'!F167,IF($C$2=8,'8'!F167,IF($C$2=9,'9'!F167,IF($C$2="PERU2020",PERU2020!F167)))))))) -> 35541 | N167: =IF($C$2=2,'2'!G167,IF($C$2=3,'3'!G167,IF($C$2=4,'4'!G167,IF($C$2=5,'5'!G167,IF($C$2=6,'6'!G167,IF($C$2=8,'8'!G167,IF($C$2=9,'9'!G167,IF($C$2="PERU2020",PERU2020!G167)))))))) -> 29941 | O167: =IF($C$2=2,'2'!H167,IF($C$2=3,'3'!H167,IF($C$2=4,'4'!H167,IF($C$2=5,'5'!H167,IF($C$2=6,'6'!H167,IF($C$2=8,'8'!H167,IF($C$2=9,'9'!H167,IF($C$2="PERU2020",PERU2020!H167)))))))) -> 25426 | Q167: 47349 | R167: 33454 | S167: 24893.7 | T167: 20973.7 | U167: 17813.2
A168: 68 | B168: 68 | D168: 52429.6 | E168: 37038.7 | F168: 27571.2 | G168: 23231.2 | H168: 19723.5 | K168: =IF($C$2=2,'2'!D168,IF($C$2=3,'3'!D168,IF($C$2=4,'4'!D168,IF($C$2=5,'5'!D168,IF($C$2=6,'6'!D168,IF($C$2=8,'8'!D168,IF($C$2=9,'9'!D168,IF($C$2="PERU2020",PERU2020!D168)))))))) -> 74878 | L168: =IF($C$2=2,'2'!E168,IF($C$2=3,'3'!E168,IF($C$2=4,'4'!E168,IF($C$2=5,'5'!E168,IF($C$2=6,'6'!E168,IF($C$2=8,'8'!E168,IF($C$2=9,'9'!E168,IF($C$2="PERU2020",PERU2020!E168)))))))) -> 52891 | M168: =IF($C$2=2,'2'!F168,IF($C$2=3,'3'!F168,IF($C$2=4,'4'!F168,IF($C$2=5,'5'!F168,IF($C$2=6,'6'!F168,IF($C$2=8,'8'!F168,IF($C$2=9,'9'!F168,IF($C$2="PERU2020",PERU2020!F168)))))))) -> 39366 | N168: =IF($C$2=2,'2'!G168,IF($C$2=3,'3'!G168,IF($C$2=4,'4'!G168,IF($C$2=5,'5'!G168,IF($C$2=6,'6'!G168,IF($C$2=8,'8'!G168,IF($C$2=9,'9'!G168,IF($C$2="PERU2020",PERU2020!G168)))))))) -> 33166 | O168: =IF($C$2=2,'2'!H168,IF($C$2=3,'3'!H168,IF($C$2=4,'4'!H168,IF($C$2=5,'5'!H168,IF($C$2=6,'6'!H168,IF($C$2=8,'8'!H168,IF($C$2=9,'9'!H168,IF($C$2="PERU2020",PERU2020!H168)))))))) -> 28155 | Q168: 52429.6 | R168: 37038.7 | S168: 27571.2 | T168: 23231.2 | U168: 19723.5
A169: 69 | B169: 69 | D169: 57677.5 | E169: 40747.3 | F169: 30328.5 | G169: 25550.3 | H169: 21701 | K169: =IF($C$2=2,'2'!D169,IF($C$2=3,'3'!D169,IF($C$2=4,'4'!D169,IF($C$2=5,'5'!D169,IF($C$2=6,'6'!D169,IF($C$2=8,'8'!D169,IF($C$2=9,'9'!D169,IF($C$2="PERU2020",PERU2020!D169)))))))) -> 82375 | L169: =IF($C$2=2,'2'!E169,IF($C$2=3,'3'!E169,IF($C$2=4,'4'!E169,IF($C$2=5,'5'!E169,IF($C$2=6,'6'!E169,IF($C$2=8,'8'!E169,IF($C$2=9,'9'!E169,IF($C$2="PERU2020",PERU2020!E169)))))))) -> 58189 | M169: =IF($C$2=2,'2'!F169,IF($C$2=3,'3'!F169,IF($C$2=4,'4'!F169,IF($C$2=5,'5'!F169,IF($C$2=6,'6'!F169,IF($C$2=8,'8'!F169,IF($C$2=9,'9'!F169,IF($C$2="PERU2020",PERU2020!F169)))))))) -> 43305 | N169: =IF($C$2=2,'2'!G169,IF($C$2=3,'3'!G169,IF($C$2=4,'4'!G169,IF($C$2=5,'5'!G169,IF($C$2=6,'6'!G169,IF($C$2=8,'8'!G169,IF($C$2=9,'9'!G169,IF($C$2="PERU2020",PERU2020!G169)))))))) -> 36479 | O169: =IF($C$2=2,'2'!H169,IF($C$2=3,'3'!H169,IF($C$2=4,'4'!H169,IF($C$2=5,'5'!H169,IF($C$2=6,'6'!H169,IF($C$2=8,'8'!H169,IF($C$2=9,'9'!H169,IF($C$2="PERU2020",PERU2020!H169)))))))) -> 30980 | Q169: 57677.5 | R169: 40747.3 | S169: 30328.5 | T169: 25550.3 | U169: 21701
A170: 70 | B170: 70 | D170: 70976.1 | E170: 49608.6 | F170: 35693.3 | G170: 29772.7 | H170: 25523.7 | K170: =IF($C$2=2,'2'!D170,IF($C$2=3,'3'!D170,IF($C$2=4,'4'!D170,IF($C$2=5,'5'!D170,IF($C$2=6,'6'!D170,IF($C$2=8,'8'!D170,IF($C$2=9,'9'!D170,IF($C$2="PERU2020",PERU2020!D170)))))))) -> 101373 | L170: =IF($C$2=2,'2'!E170,IF($C$2=3,'3'!E170,IF($C$2=4,'4'!E170,IF($C$2=5,'5'!E170,IF($C$2=6,'6'!E170,IF($C$2=8,'8'!E170,IF($C$2=9,'9'!E170,IF($C$2="PERU2020",PERU2020!E170)))))))) -> 70848 | M170: =IF($C$2=2,'2'!F170,IF($C$2=3,'3'!F170,IF($C$2=4,'4'!F170,IF($C$2=5,'5'!F170,IF($C$2=6,'6'!F170,IF($C$2=8,'8'!F170,IF($C$2=9,'9'!F170,IF($C$2="PERU2020",PERU2020!F170)))))))) -> 50969 | N170: =IF($C$2=2,'2'!G170,IF($C$2=3,'3'!G170,IF($C$2=4,'4'!G170,IF($C$2=5,'5'!G170,IF($C$2=6,'6'!G170,IF($C$2=8,'8'!G170,IF($C$2=9,'9'!G170,IF($C$2="PERU2020",PERU2020!G170)))))))) -> 42511 | O170: =IF($C$2=2,'2'!H170,IF($C$2=3,'3'!H170,IF($C$2=4,'4'!H170,IF($C$2=5,'5'!H170,IF($C$2=6,'6'!H170,IF($C$2=8,'8'!H170,IF($C$2=9,'9'!H170,IF($C$2="PERU2020",PERU2020!H170)))))))) -> 36441 | Q170: 70976.1 | R170: 49608.6 | S170: 35693.3 | T170: 29772.7 | U170: 25523.7
A171: 71 | B171: 71 | D171: 73761.4 | E171: 51548.3 | F171: 37098.9 | G171: 30935.4 | H171: 26523.3 | K171: =IF($C$2=2,'2'!D171,IF($C$2=3,'3'!D171,IF($C$2=4,'4'!D171,IF($C$2=5,'5'!D171,IF($C$2=6,'6'!D171,IF($C$2=8,'8'!D171,IF($C$2=9,'9'!D171,IF($C$2="PERU2020",PERU2020!D171)))))))) -> 105352 | L171: =IF($C$2=2,'2'!E171,IF($C$2=3,'3'!E171,IF($C$2=4,'4'!E171,IF($C$2=5,'5'!E171,IF($C$2=6,'6'!E171,IF($C$2=8,'8'!E171,IF($C$2=9,'9'!E171,IF($C$2="PERU2020",PERU2020!E171)))))))) -> 73619 | M171: =IF($C$2=2,'2'!F171,IF($C$2=3,'3'!F171,IF($C$2=4,'4'!F171,IF($C$2=5,'5'!F171,IF($C$2=6,'6'!F171,IF($C$2=8,'8'!F171,IF($C$2=9,'9'!F171,IF($C$2="PERU2020",PERU2020!F171)))))))) -> 52977 | N171: =IF($C$2=2,'2'!G171,IF($C$2=3,'3'!G171,IF($C$2=4,'4'!G171,IF($C$2=5,'5'!G171,IF($C$2=6,'6'!G171,IF($C$2=8,'8'!G171,IF($C$2=9,'9'!G171,IF($C$2="PERU2020",PERU2020!G171)))))))) -> 44172 | O171: =IF($C$2=2,'2'!H171,IF($C$2=3,'3'!H171,IF($C$2=4,'4'!H171,IF($C$2=5,'5'!H171,IF($C$2=6,'6'!H171,IF($C$2=8,'8'!H171,IF($C$2=9,'9'!H171,IF($C$2="PERU2020",PERU2020!H171)))))))) -> 37869 | Q171: 73761.4 | R171: 51548.3 | S171: 37098.9 | T171: 30935.4 | U171: 26523.3
A172: 72 | B172: 72 | D172: 75841.1 | E172: 53013.4 | F172: 38146.8 | G172: 31815.3 | H172: 27273.7 | K172: =IF($C$2=2,'2'!D172,IF($C$2=3,'3'!D172,IF($C$2=4,'4'!D172,IF($C$2=5,'5'!D172,IF($C$2=6,'6'!D172,IF($C$2=8,'8'!D172,IF($C$2=9,'9'!D172,IF($C$2="PERU2020",PERU2020!D172)))))))) -> 108323 | L172: =IF($C$2=2,'2'!E172,IF($C$2=3,'3'!E172,IF($C$2=4,'4'!E172,IF($C$2=5,'5'!E172,IF($C$2=6,'6'!E172,IF($C$2=8,'8'!E172,IF($C$2=9,'9'!E172,IF($C$2="PERU2020",PERU2020!E172)))))))) -> 75712 | M172: =IF($C$2=2,'2'!F172,IF($C$2=3,'3'!F172,IF($C$2=4,'4'!F172,IF($C$2=5,'5'!F172,IF($C$2=6,'6'!F172,IF($C$2=8,'8'!F172,IF($C$2=9,'9'!F172,IF($C$2="PERU2020",PERU2020!F172)))))))) -> 54474 | N172: =IF($C$2=2,'2'!G172,IF($C$2=3,'3'!G172,IF($C$2=4,'4'!G172,IF($C$2=5,'5'!G172,IF($C$2=6,'6'!G172,IF($C$2=8,'8'!G172,IF($C$2=9,'9'!G172,IF($C$2="PERU2020",PERU2020!G172)))))))) -> 45429 | O172: =IF($C$2=2,'2'!H172,IF($C$2=3,'3'!H172,IF($C$2=4,'4'!H172,IF($C$2=5,'5'!H172,IF($C$2=6,'6'!H172,IF($C$2=8,'8'!H172,IF($C$2=9,'9'!H172,IF($C$2="PERU2020",PERU2020!H172)))))))) -> 38941 | Q172: 75841.1 | R172: 53013.4 | S172: 38146.8 | T172: 31815.3 | U172: 27273.7
A173: 73 | B173: 73 | D173: 78641.1 | E173: 54958 | F173: 39546.8 | G173: 32981.5 | H173: 28277.5 | K173: =IF($C$2=2,'2'!D173,IF($C$2=3,'3'!D173,IF($C$2=4,'4'!D173,IF($C$2=5,'5'!D173,IF($C$2=6,'6'!D173,IF($C$2=8,'8'!D173,IF($C$2=9,'9'!D173,IF($C$2="PERU2020",PERU2020!D173)))))))) -> 112323 | L173: =IF($C$2=2,'2'!E173,IF($C$2=3,'3'!E173,IF($C$2=4,'4'!E173,IF($C$2=5,'5'!E173,IF($C$2=6,'6'!E173,IF($C$2=8,'8'!E173,IF($C$2=9,'9'!E173,IF($C$2="PERU2020",PERU2020!E173)))))))) -> 78490 | M173: =IF($C$2=2,'2'!F173,IF($C$2=3,'3'!F173,IF($C$2=4,'4'!F173,IF($C$2=5,'5'!F173,IF($C$2=6,'6'!F173,IF($C$2=8,'8'!F173,IF($C$2=9,'9'!F173,IF($C$2="PERU2020",PERU2020!F173)))))))) -> 56474 | N173: =IF($C$2=2,'2'!G173,IF($C$2=3,'3'!G173,IF($C$2=4,'4'!G173,IF($C$2=5,'5'!G173,IF($C$2=6,'6'!G173,IF($C$2=8,'8'!G173,IF($C$2=9,'9'!G173,IF($C$2="PERU2020",PERU2020!G173)))))))) -> 47095 | O173: =IF($C$2=2,'2'!H173,IF($C$2=3,'3'!H173,IF($C$2=4,'4'!H173,IF($C$2=5,'5'!H173,IF($C$2=6,'6'!H173,IF($C$2=8,'8'!H173,IF($C$2=9,'9'!H173,IF($C$2="PERU2020",PERU2020!H173)))))))) -> 40375 | Q173: 78641.1 | R173: 54958 | S173: 39546.8 | T173: 32981.5 | U173: 28277.5
A174: 74 | B174: 74 | D174: 80028.5 | E174: 55931.7 | F174: 40241.9 | G174: 33564.6 | H174: 28775.2 | K174: =IF($C$2=2,'2'!D174,IF($C$2=3,'3'!D174,IF($C$2=4,'4'!D174,IF($C$2=5,'5'!D174,IF($C$2=6,'6'!D174,IF($C$2=8,'8'!D174,IF($C$2=9,'9'!D174,IF($C$2="PERU2020",PERU2020!D174)))))))) -> 114305 | L174: =IF($C$2=2,'2'!E174,IF($C$2=3,'3'!E174,IF($C$2=4,'4'!E174,IF($C$2=5,'5'!E174,IF($C$2=6,'6'!E174,IF($C$2=8,'8'!E174,IF($C$2=9,'9'!E174,IF($C$2="PERU2020",PERU2020!E174)))))))) -> 79881 | M174: =IF($C$2=2,'2'!F174,IF($C$2=3,'3'!F174,IF($C$2=4,'4'!F174,IF($C$2=5,'5'!F174,IF($C$2=6,'6'!F174,IF($C$2=8,'8'!F174,IF($C$2=9,'9'!F174,IF($C$2="PERU2020",PERU2020!F174)))))))) -> 57467 | N174: =IF($C$2=2,'2'!G174,IF($C$2=3,'3'!G174,IF($C$2=4,'4'!G174,IF($C$2=5,'5'!G174,IF($C$2=6,'6'!G174,IF($C$2=8,'8'!G174,IF($C$2=9,'9'!G174,IF($C$2="PERU2020",PERU2020!G174)))))))) -> 47928 | O174: =IF($C$2=2,'2'!H174,IF($C$2=3,'3'!H174,IF($C$2=4,'4'!H174,IF($C$2=5,'5'!H174,IF($C$2=6,'6'!H174,IF($C$2=8,'8'!H174,IF($C$2=9,'9'!H174,IF($C$2="PERU2020",PERU2020!H174)))))))) -> 41086 | Q174: 80028.5 | R174: 55931.7 | S174: 40241.9 | T174: 33564.6 | U174: 28775.2
A175: 75 | B175: 75+ | D175: 83508.9 | E175: 58358.6 | F175: 41996.1 | G175: 35026.2 | H175: 30028.2 | K175: =IF($C$2=2,'2'!D175,IF($C$2=3,'3'!D175,IF($C$2=4,'4'!D175,IF($C$2=5,'5'!D175,IF($C$2=6,'6'!D175,IF($C$2=8,'8'!D175,IF($C$2=9,'9'!D175,IF($C$2="PERU2020",PERU2020!D175)))))))) -> 119277 | L175: =IF($C$2=2,'2'!E175,IF($C$2=3,'3'!E175,IF($C$2=4,'4'!E175,IF($C$2=5,'5'!E175,IF($C$2=6,'6'!E175,IF($C$2=8,'8'!E175,IF($C$2=9,'9'!E175,IF($C$2="PERU2020",PERU2020!E175)))))))) -> 83348 | M175: =IF($C$2=2,'2'!F175,IF($C$2=3,'3'!F175,IF($C$2=4,'4'!F175,IF($C$2=5,'5'!F175,IF($C$2=6,'6'!F175,IF($C$2=8,'8'!F175,IF($C$2=9,'9'!F175,IF($C$2="PERU2020",PERU2020!F175)))))))) -> 59973 | N175: =IF($C$2=2,'2'!G175,IF($C$2=3,'3'!G175,IF($C$2=4,'4'!G175,IF($C$2=5,'5'!G175,IF($C$2=6,'6'!G175,IF($C$2=8,'8'!G175,IF($C$2=9,'9'!G175,IF($C$2="PERU2020",PERU2020!G175)))))))) -> 50016 | O175: =IF($C$2=2,'2'!H175,IF($C$2=3,'3'!H175,IF($C$2=4,'4'!H175,IF($C$2=5,'5'!H175,IF($C$2=6,'6'!H175,IF($C$2=8,'8'!H175,IF($C$2=9,'9'!H175,IF($C$2="PERU2020",PERU2020!H175)))))))) -> 42876 | Q175: 83508.9 | R175: 58358.6 | S175: 41996.1 | T175: 35026.2 | U175: 30028.2
A176: 1 | B176: 1 Child | D176: 3046.4 | E176: 2226 | F176: 1695.4 | G176: 1325.8 | H176: 981.4 | K176: =IF($C$2=2,'2'!D176,IF($C$2=3,'3'!D176,IF($C$2=4,'4'!D176,IF($C$2=5,'5'!D176,IF($C$2=6,'6'!D176,IF($C$2=8,'8'!D176,IF($C$2=9,'9'!D176,IF($C$2="PERU2020",PERU2020!D176)))))))) -> 4352 | L176: =IF($C$2=2,'2'!E176,IF($C$2=3,'3'!E176,IF($C$2=4,'4'!E176,IF($C$2=5,'5'!E176,IF($C$2=6,'6'!E176,IF($C$2=8,'8'!E176,IF($C$2=9,'9'!E176,IF($C$2="PERU2020",PERU2020!E176)))))))) -> 3180 | M176: =IF($C$2=2,'2'!F176,IF($C$2=3,'3'!F176,IF($C$2=4,'4'!F176,IF($C$2=5,'5'!F176,IF($C$2=6,'6'!F176,IF($C$2=8,'8'!F176,IF($C$2=9,'9'!F176,IF($C$2="PERU2020",PERU2020!F176)))))))) -> 2422 | N176: =IF($C$2=2,'2'!G176,IF($C$2=3,'3'!G176,IF($C$2=4,'4'!G176,IF($C$2=5,'5'!G176,IF($C$2=6,'6'!G176,IF($C$2=8,'8'!G176,IF($C$2=9,'9'!G176,IF($C$2="PERU2020",PERU2020!G176)))))))) -> 1894 | O176: =IF($C$2=2,'2'!H176,IF($C$2=3,'3'!H176,IF($C$2=4,'4'!H176,IF($C$2=5,'5'!H176,IF($C$2=6,'6'!H176,IF($C$2=8,'8'!H176,IF($C$2=9,'9'!H176,IF($C$2="PERU2020",PERU2020!H176)))))))) -> 1402 | Q176: =(K176)*$M$2 -> 3046.4 | R176: =(L176)*$M$2 -> 2226 | S176: 1695.4 | T176: 1325.8 | U176: 981.4
A177: 2 | B177: 2 Children | D177: 4846.1 | E177: 3544.1 | F177: 2696.4 | G177: 2109.8 | H177: 1559.6 | K177: =IF($C$2=2,'2'!D177,IF($C$2=3,'3'!D177,IF($C$2=4,'4'!D177,IF($C$2=5,'5'!D177,IF($C$2=6,'6'!D177,IF($C$2=8,'8'!D177,IF($C$2=9,'9'!D177,IF($C$2="PERU2020",PERU2020!D177)))))))) -> 6923 | L177: =IF($C$2=2,'2'!E177,IF($C$2=3,'3'!E177,IF($C$2=4,'4'!E177,IF($C$2=5,'5'!E177,IF($C$2=6,'6'!E177,IF($C$2=8,'8'!E177,IF($C$2=9,'9'!E177,IF($C$2="PERU2020",PERU2020!E177)))))))) -> 5063 | M177: =IF($C$2=2,'2'!F177,IF($C$2=3,'3'!F177,IF($C$2=4,'4'!F177,IF($C$2=5,'5'!F177,IF($C$2=6,'6'!F177,IF($C$2=8,'8'!F177,IF($C$2=9,'9'!F177,IF($C$2="PERU2020",PERU2020!F177)))))))) -> 3852 | N177: =IF($C$2=2,'2'!G177,IF($C$2=3,'3'!G177,IF($C$2=4,'4'!G177,IF($C$2=5,'5'!G177,IF($C$2=6,'6'!G177,IF($C$2=8,'8'!G177,IF($C$2=9,'9'!G177,IF($C$2="PERU2020",PERU2020!G177)))))))) -> 3014 | O177: =IF($C$2=2,'2'!H177,IF($C$2=3,'3'!H177,IF($C$2=4,'4'!H177,IF($C$2=5,'5'!H177,IF($C$2=6,'6'!H177,IF($C$2=8,'8'!H177,IF($C$2=9,'9'!H177,IF($C$2="PERU2020",PERU2020!H177)))))))) -> 2228 | Q177: =(K177)*$M$2 -> 4846.1 | R177: =(L177)*$M$2 -> 3544.1 | S177: =(M177)*$M$2 -> 2696.4 | T177: =(N177)*$M$2 -> 2109.8 | U177: =(O177)*$M$2 -> 1559.6
A178: 3 | B178: 3+ Children | D178: 7098.7 | E178: 5193.3 | F178: 3952.2 | G178: 3088.4 | H178: 2287.6 | K178: =IF($C$2=2,'2'!D178,IF($C$2=3,'3'!D178,IF($C$2=4,'4'!D178,IF($C$2=5,'5'!D178,IF($C$2=6,'6'!D178,IF($C$2=8,'8'!D178,IF($C$2=9,'9'!D178,IF($C$2="PERU2020",PERU2020!D178)))))))) -> 10141 | L178: =IF($C$2=2,'2'!E178,IF($C$2=3,'3'!E178,IF($C$2=4,'4'!E178,IF($C$2=5,'5'!E178,IF($C$2=6,'6'!E178,IF($C$2=8,'8'!E178,IF($C$2=9,'9'!E178,IF($C$2="PERU2020",PERU2020!E178)))))))) -> 7419 | M178: =IF($C$2=2,'2'!F178,IF($C$2=3,'3'!F178,IF($C$2=4,'4'!F178,IF($C$2=5,'5'!F178,IF($C$2=6,'6'!F178,IF($C$2=8,'8'!F178,IF($C$2=9,'9'!F178,IF($C$2="PERU2020",PERU2020!F178)))))))) -> 5646 | N178: =IF($C$2=2,'2'!G178,IF($C$2=3,'3'!G178,IF($C$2=4,'4'!G178,IF($C$2=5,'5'!G178,IF($C$2=6,'6'!G178,IF($C$2=8,'8'!G178,IF($C$2=9,'9'!G178,IF($C$2="PERU2020",PERU2020!G178)))))))) -> 4412 | O178: =IF($C$2=2,'2'!H178,IF($C$2=3,'3'!H178,IF($C$2=4,'4'!H178,IF($C$2=5,'5'!H178,IF($C$2=6,'6'!H178,IF($C$2=8,'8'!H178,IF($C$2=9,'9'!H178,IF($C$2="PERU2020",PERU2020!H178)))))))) -> 3268 | Q178: 7098.7 | R178: 5193.3 | S178: 3952.2 | T178: 3088.4 | U178: 2287.6
A179: 1 | B179: Rider Comp. Maternidad | D179: 0 | E179: 0 | F179: 225 | G179: 225 | H179: 225
A180: 1 | B180: Transplante de organos | D180: 0 | E180: 0 | F180: 0 | G180: 0 | H180: 0
A184: TARIFAS SEMESTRALES
A185: EDAD
D186: CW2 | E186: CW3 | F186: CW4 | G186: CW5 | H186: CW6
A187: 18 | B187: 18-24 | D187: =$G$2*D152 -> 4661.403 | E187: 3207.825 | F187: 2219.11 | G187: 1459.302 | H187: 1113.53
A188: 25 | B188: 25-29 | D188: 4890.681 | E188: 3545.435 | F188: 2457.663 | G188: 1616.606 | H188: 1235.96
A189: 30 | B189: 30-34 | D189: 5110.313 | E189: 3799.199 | F189: 2752.237 | G189: 1956.442 | H189: 1493.805
A190: 35 | B190: 35-39 | D190: 5719.866 | E190: 4251.077 | F190: 3082.056 | G190: 2189.801 | H190: 1672.256
A191: 40 | B191: 40-44 | D191: 6619.912 | E191: 4655.467 | F191: 3426.344 | G191: 2413.514 | H191: 1844.029
A192: 45 | B192: 45-49 | D192: 7391.221 | E192: 5203.063 | F192: 3832.589 | G192: 2694.732 | H192: 2061.435
A193: 50 | B193: 50-54 | D193: 9659.886 | E193: 6857.723 | F193: 5027.209 | G193: 3841.864 | H193: 2938.479
A194: 55 | B194: 55-59 | D194: 10277.972 | E194: 7295.503 | F194: 5348.866 | G194: 4088.208 | H194: 3127.689
A195: 60 | B195: 60 | D195: 11192.116 | E195: 7923.977 | F195: 6083.075 | G195: 4862.856 | H195: 3905.305
A196: 61 | B196: 61 | D196: 12022.043 | E196: 8509.786 | F196: 6533.469 | G196: 5221.613 | H196: 4193.201
A197: 62 | B197: 62 | D197: =$G$2*D162 -> 13159.9 | E197: 9318.937 | F197: 7155.265 | G197: 5716.156 | H197: 4593.139
A198: 63 | B198: 63 | D198: 13992.053 | E198: 9904.375 | F198: 7605.288 | G198: 6076.397 | H198: 4881.777
A199: 64 | B199: 64 | D199: 15132.878 | E199: 10715.381 | F199: 8226.713 | G199: 6573.166 | H199: 5281.344
A200: 65 | B200: 65 | D200: 19776.685 | E200: 13973.503 | F200: 10400.773 | G200: 8760.211 | H200: 7442.048
A201: 66 | B201: 66 | D201: 22975.447 | E201: 16232.522 | F201: 12081.774 | G201: 10178.173 | H201: 8648.169
A202: 67 | B202: 67 | D202: 25094.97 | E202: 17730.62 | F202: 13193.661 | G202: 11116.061 | H202: 9440.996
A203: 68 | B203: 68 | D203: 27787.688 | E203: 19630.511 | F203: 14612.736 | G203: 12312.536 | H203: 10453.455
A204: 69 | B204: 69 | D204: 30569.075 | E204: 21596.069 | F204: 16074.105 | G204: 13541.659 | H204: 11501.53
A205: 70 | B205: 70 | D205: 37617.333 | E205: 26292.558 | F205: 18917.449 | G205: 15779.531 | H205: 13527.561
A206: 71 | B206: 71 | D206: 39093.542 | E206: 27320.599 | F206: 19662.417 | G206: 16395.762 | H206: 14057.349
A207: 72 | B207: 72 | D207: =$G$2*D172 -> 40195.783 | E207: 28097.102 | F207: 20217.804 | G207: 16862.109 | H207: 14455.061
A208: 73 | B208: 73 | D208: 41679.783 | E208: 29127.74 | F208: 20959.804 | G208: 17480.195 | H208: 14987.075
A209: 74 | B209: 74 | D209: 42415.105 | E209: 29643.801 | F209: 21328.207 | G209: 17789.238 | H209: 15250.856
A210: 75 | B210: 75+ | D210: 44259.717 | E210: 30930.058 | F210: 22257.933 | G210: 18563.886 | H210: 15914.946
A211: 1 | B211: 1 Child | D211: 1614.592 | E211: 1179.78 | F211: 898.562 | G211: 702.674 | H211: 520.142
A212: 2 | B212: 2 Children | D212: 2568.433 | E212: 1878.373 | F212: 1429.092 | G212: 1118.194 | H212: 826.588
A213: 3 | B213: 3+ Children | D213: 3762.311 | E213: 2752.449 | F213: 2094.666 | G213: 1636.852 | H213: 1212.428
A214: 1 | B214: Rider Comp. Maternidad | D214: =+D179*$G$2 -> 0 | E214: 0 | F214: 119.25 | G214: 119.25 | H214: 119.25
A215: 1 | B215: Transplante de organos | D215: 0 | E215: 0 | F215: 0 | G215: 0 | H215: 0
A220: COMPLETE (LATINAMERICA ONLY)
A221: TARIFAS ANUALES
A222: EDAD
... 335 more rows

Sheet 2 (hidden)
K1: D1 | L1: D2 | M1: D3 | N1: D4 | O1: D5 | P1: D6
B2: REGIÓN | C2: ='INGRESO DE DATOS'!W14 -> 5 | E2: FACTOR SEMESTRAL : | G2: 0.53 | I2: NEW BUSINESS DISCUOUNTS | K2: ='INGRESO DE DATOS'!O42 -> 1 | L2: ='INGRESO DE DATOS'!P42 -> 0.7 | M2: ='INGRESO DE DATOS'!Q42 -> 0.7 | N2: ='INGRESO DE DATOS'!R42 -> 0.7 | O2: ='INGRESO DE DATOS'!S42 -> 0.7 | P2: ='INGRESO DE DATOS'!T42 -> 0.9
A5: BUPA EXCLUSIVE CARE
A6: TARIFAS ANUALES
A7: EDAD
C8: DW1 | D8: DW2 | E8: DW3 | F8: DW4 | G8: DW5 | H8: DW6
A9: 18 | B9: 18-24 | D9: 23060 | E9: 15229 | F9: 9895 | G9: 6830 | H9: 5368
A10: 25 | B10: 25-29 | D10: 24186 | E10: 16831 | F10: 10959 | G10: 7574 | H10: 5948
A11: 30 | B11: 30-34 | D11: 25168 | E11: 18060 | F11: 12280 | G11: 9078 | H11: 7153
A12: 35 | B12: 35-39 | D12: 28180 | E12: 20215 | F12: 13774 | G12: 10182 | H12: 8014
A13: 40 | B13: 40-44 | D13: 32673 | E13: 22121 | F13: 15283 | G13: 11202 | H13: 8811
A14: 45 | B14: 45-49 | D14: 36535 | E14: 24737 | F14: 17086 | G14: 12524 | H14: 9860
A15: 50 | B15: 50-54 | D15: 46762 | E15: 32471 | F15: 22306 | G15: 17693 | H15: 13944
A16: 55 | B16: 55-59 | D16: 49760 | E16: 34552 | F16: 23734 | G16: 18834 | H16: 14847
A17: 60 | B17: 60 | D17: 54212 | E17: 37705 | F17: 27319 | G17: 22696 | H17: 18450
A18: 61 | B18: 61 | D18: 58244 | E18: 40509 | F18: 29340 | G18: 24400 | H18: 19829
A19: 62 | B19: 62 | D19: 63769 | E19: 44373 | F19: 32133 | G19: 26705 | H19: 21716
A20: 63 | B20: 63 | D20: 67807 | E20: 47175 | F20: 34163 | G20: 28406 | H20: 23090
A21: 64 | B21: 64 | D21: 73358 | E21: 51053 | F21: 36969 | G21: 30731 | H21: 24994
A22: 65 | B22: 65 | D22: 95905 | E22: 66594 | F22: 46755 | G22: 40996 | H22: 35257
A23: 66 | B23: 66 | D23: 111420 | E23: 77397 | F23: 54336 | G23: 47657 | H23: 40969
A24: 67 | B24: 67 | D24: 121703 | E24: 84530 | F24: 59354 | G24: 52039 | H24: 44755
A25: 68 | B25: 68 | D25: 134765 | E25: 93601 | F25: 65717 | G25: 57640 | H25: 49564
A26: 69 | B26: 69 | D26: 148281 | E26: 102980 | F26: 72314 | G26: 63415 | H26: 54544
A27: 70 | B27: 70 | D27: 182509 | E27: 125410 | F27: 85140 | G27: 73915 | H27: 64159
A28: 71 | B28: 71 | D28: 189671 | E28: 130330 | F28: 88482 | G28: 76817 | H28: 66683
A29: 72 | B29: 72 | D29: 195048 | E29: 134020 | F29: 90978 | G29: 78985 | H29: 68573
A30: 73 | B30: 73 | D30: 202210 | E30: 138953 | F30: 94318 | G30: 81904 | H30: 71098
A31: 74 | B31: 74 | D31: 205793 | E31: 141403 | F31: 96004 | G31: 83349 | H31: 72350
A32: 75 | B32: 75+ | D32: 214758 | E32: 147559 | F32: 100171 | G32: 86982 | H32: 75503
A33: 1 | B33: 1 Child | D33: 8022 | E33: 5908 | F33: 4435 | G33: 3642 | H33: 2839
A34: 2 | B34: 2 Children | D34: 12757 | E34: 9410 | F34: 7056 | G34: 5782 | H34: 4495
A35: 3 | B35: 3+ Children | D35: 18703 | E35: 13797 | F35: 10330 | G35: 8471 | H35: 6591
A36: 1 | B36: Rider Comp. Maternidad | D36: 0 | E36: 0 | F36: 225 | G36: 225 | H36: 225
A37: 1 | B37: Transplante de organos | D37: 0 | E37: 0 | F37: 0 | G37: 0 | H37: 0
A41: TARIFAS SEMESTRALES
A42: EDAD
D43: DW2 | E43: DW3 | F43: DW4 | G43: DW5 | H43: DW6
A44: 18 | B44: 18-24 | D44: =$G$2*D9 -> 12221.8 | E44: 8071.37 | F44: 5244.35 | G44: 3619.9 | H44: 2845.04
A45: 25 | B45: 25-29 | D45: 12818.58 | E45: 8920.43 | F45: 5808.27 | G45: 4014.22 | H45: 3152.44
A46: 30 | B46: 30-34 | D46: 13339.04 | E46: 9571.8 | F46: 6508.4 | G46: 4811.34 | H46: 3791.09
A47: 35 | B47: 35-39 | D47: 14935.4 | E47: 10713.95 | F47: 7300.22 | G47: 5396.46 | H47: 4247.42
A48: 40 | B48: 40-44 | D48: 17316.69 | E48: 11724.13 | F48: 8099.99 | G48: 5937.06 | H48: 4669.83
A49: 45 | B49: 45-49 | D49: 19363.55 | E49: 13110.61 | F49: 9055.58 | G49: 6637.72 | H49: 5225.8
A50: 50 | B50: 50-54 | D50: 24783.86 | E50: 17209.63 | F50: 11822.18 | G50: 9377.29 | H50: 7390.32
A51: 55 | B51: 55-59 | D51: 26372.8 | E51: 18312.56 | F51: 12579.02 | G51: 9982.02 | H51: 7868.91
A52: 60 | B52: 60 | D52: 28732.36 | E52: 19983.65 | F52: 14479.07 | G52: 12028.88 | H52: 9778.5
A53: 61 | B53: 61 | D53: 30869.32 | E53: 21469.77 | F53: 15550.2 | G53: 12932 | H53: 10509.37
A54: 62 | B54: 62 | D54: =$G$2*D19 -> 33797.57 | E54: 23517.69 | F54: 17030.49 | G54: 14153.65 | H54: 11509.48
A55: 63 | B55: 63 | D55: 35937.71 | E55: 25002.75 | F55: 18106.39 | G55: 15055.18 | H55: 12237.7
A56: 64 | B56: 64 | D56: 38879.74 | E56: 27058.09 | F56: 19593.57 | G56: 16287.43 | H56: 13246.82
A57: 65 | B57: 65 | D57: 50829.65 | E57: 35294.82 | F57: 24780.15 | G57: 21727.88 | H57: 18686.21
A58: 66 | B58: 66 | D58: 59052.6 | E58: 41020.41 | F58: 28798.08 | G58: 25258.21 | H58: 21713.57
A59: 67 | B59: 67 | D59: 64502.59 | E59: 44800.9 | F59: 31457.62 | G59: 27580.67 | H59: 23720.15
A60: 68 | B60: 68 | D60: 71425.45 | E60: 49608.53 | F60: 34830.01 | G60: 30549.2 | H60: 26268.92
A61: 69 | B61: 69 | D61: 78588.93 | E61: 54579.4 | F61: 38326.42 | G61: 33609.95 | H61: 28908.32
A62: 70 | B62: 70 | D62: 96729.77 | E62: 66467.3 | F62: 45124.2 | G62: 39174.95 | H62: 34004.27
A63: 71 | B63: 71 | D63: 100525.63 | E63: 69074.9 | F63: 46895.46 | G63: 40713.01 | H63: 35341.99
A64: 72 | B64: 72 | D64: =$G$2*D29 -> 103375.44 | E64: 71030.6 | F64: 48218.34 | G64: 41862.05 | H64: 36343.69
A65: 73 | B65: 73 | D65: 107171.3 | E65: 73645.09 | F65: 49988.54 | G65: 43409.12 | H65: 37681.94
A66: 74 | B66: 74 | D66: 109070.29 | E66: 74943.59 | F66: 50882.12 | G66: 44174.97 | H66: 38345.5
A67: 75 | B67: 75+ | D67: 113821.74 | E67: 78206.27 | F67: 53090.63 | G67: 46100.46 | H67: 40016.59
A68: 1 | B68: 1 Child | D68: 4251.66 | E68: 3131.24 | F68: 2350.55 | G68: 1930.26 | H68: 1504.67
A69: 2 | B69: 2 Children | D69: 6761.21 | E69: 4987.3 | F69: 3739.68 | G69: 3064.46 | H69: 2382.35
A70: 3 | B70: 3+ Children | D70: 9912.59 | E70: 7312.41 | F70: 5474.9 | G70: 4489.63 | H70: 3493.23
A71: 1 | B71: Rider Comp. Maternidad | D71: =+D36*$G$2 -> 0 | E71: 0 | F71: 119.25 | G71: 119.25 | H71: 119.25
A72: 1 | B72: Transplante de organos | D72: 0 | E72: 0 | F72: 0 | G72: 0 | H72: 0
A78: DIAMOND (LATINAMERICA ONLY)
A79: TARIFAS ANUALES
A80: EDAD
C81: DL1 | D81: DL2 | E81: DL3 | F81: DL4 | G81: DL5 | H81: DL6
A82: 18 | B82: - 24
A83: 25 | B83: - 29
A84: 30 | B84: - 34
A85: 35 | B85: - 39
A86: 40 | B86: - 44
A87: 45 | B87: - 49
A88: 50 | B88: - 54
A89: 55 | B89: - 59
A90: 60
A91: 61
A92: 62
A93: 63
A94: 64
A95: 65
A96: 66
A97: 67
A98: 68
A99: 69
A100: 70
A101: 71
A102: 72
A103: 73
A104: 74
A105: 75 | B105: o más
A106: 1 | B106: Hijo
A107: 2 | B107: Hijos
A108: 3 | B108: Hijos o más
A109: 1 | B109: Rider Comp. Maternidad
A110: 1 | B110: Transplante de organos | C110: 0 | D110: 0 | E110: 0 | F110: 0 | G110: 0 | H110: 0
A112: TARIFAS SEMESTRALES
A113: EDAD
C114: DL1 | D114: DL2 | E114: DL3 | F114: DL4 | G114: DL5 | H114: DL6
A115: 18 | B115: - 24 | C115: =+C82*$G$2 -> 0 | D115: 0 | E115: 0 | F115: 0 | G115: 0 | H115: 0
A116: 25 | B116: - 29 | C116: 0 | D116: 0 | E116: 0 | F116: 0 | G116: 0 | H116: 0
A117: 30 | B117: - 34 | C117: 0 | D117: 0 | E117: 0 | F117: 0 | G117: 0 | H117: 0
A118: 35 | B118: - 39 | C118: 0 | D118: 0 | E118: 0 | F118: 0 | G118: 0 | H118: 0
A119: 40 | B119: - 44 | C119: 0 | D119: 0 | E119: 0 | F119: 0 | G119: 0 | H119: 0
A120: 45 | B120: - 49 | C120: 0 | D120: 0 | E120: 0 | F120: 0 | G120: 0 | H120: 0
A121: 50 | B121: - 54 | C121: 0 | D121: 0 | E121: 0 | F121: 0 | G121: 0 | H121: 0
A122: 55 | B122: - 59 | C122: 0 | D122: 0 | E122: 0 | F122: 0 | G122: 0 | H122: 0
A123: 60 | C123: 0 | D123: 0 | E123: 0 | F123: 0 | G123: 0 | H123: 0
A124: 61 | C124: 0 | D124: 0 | E124: 0 | F124: 0 | G124: 0 | H124: 0
A125: 62 | C125: =+C92*$G$2 -> 0 | D125: 0 | E125: 0 | F125: 0 | G125: 0 | H125: 0
A126: 63 | C126: 0 | D126: 0 | E126: 0 | F126: 0 | G126: 0 | H126: 0
A127: 64 | C127: 0 | D127: 0 | E127: 0 | F127: 0 | G127: 0 | H127: 0
A128: 65 | C128: 0 | D128: 0 | E128: 0 | F128: 0 | G128: 0 | H128: 0
A129: 66 | C129: 0 | D129: 0 | E129: 0 | F129: 0 | G129: 0 | H129: 0
A130: 67 | C130: 0 | D130: 0 | E130: 0 | F130: 0 | G130: 0 | H130: 0
A131: 68 | C131: 0 | D131: 0 | E131: 0 | F131: 0 | G131: 0 | H131: 0
A132: 69 | C132: 0 | D132: 0 | E132: 0 | F132: 0 | G132: 0 | H132: 0
A133: 70 | C133: 0 | D133: 0 | E133: 0 | F133: 0 | G133: 0 | H133: 0
A134: 71 | C134: 0 | D134: 0 | E134: 0 | F134: 0 | G134: 0 | H134: 0
A135: 72 | C135: =+C102*$G$2 -> 0 | D135: 0 | E135: 0 | F135: 0 | G135: 0 | H135: 0
A136: 73 | C136: 0 | D136: 0 | E136: 0 | F136: 0 | G136: 0 | H136: 0
A137: 74 | C137: 0 | D137: 0 | E137: 0 | F137: 0 | G137: 0 | H137: 0
A138: 75 | B138: o más | C138: 0 | D138: 0 | E138: 0 | F138: 0 | G138: 0 | H138: 0
A139: 1 | B139: Hijo | C139: 0 | D139: 0 | E139: 0 | F139: 0 | G139: 0 | H139: 0
A140: 2 | B140: Hijos | C140: 0 | D140: 0 | E140: 0 | F140: 0 | G140: 0 | H140: 0
A141: 3 | B141: Hijos o más | C141: 0 | D141: 0 | E141: 0 | F141: 0 | G141: 0 | H141: 0
A142: 1 | B142: Rider Comp. Maternidad | C142: 0 | D142: 0 | E142: 0 | F142: 0 | G142: 0 | H142: 0
A143: 1 | B143: Transplante de organos | C143: 0 | D143: 0 | E143: 0 | F143: 0 | G143: 0 | H143: 0
A148: BUPA PRIVILEGE CARE
A149: TARIFAS ANUALES
A150: EDAD
C151: CW1 | D151: CW2 | E151: CW3 | F151: CW4 | G151: CW5 | H151: CW6
A152: 18 | B152: 18-24 | D152: 19400 | E152: 13337 | F152: 8612 | G152: 5945 | H152: 4521
A153: 25 | B153: 25-29 | D153: 20352 | E153: 14758 | F153: 9537 | G153: 6586 | H153: 5017
A154: 30 | B154: 30-34 | D154: 21239 | E154: 15785 | F154: 10702 | G154: 7967 | H154: 6076
A155: 35 | B155: 35-39 | D155: 23796 | E155: 17671 | F155: 11992 | G155: 8925 | H155: 6819
A156: 40 | B156: 40-44 | D156: 27545 | E156: 19376 | F156: 13331 | G156: 9837 | H156: 7509
A157: 45 | B157: 45-49 | D157: 30775 | E157: 21654 | F157: 14911 | G157: 10997 | H157: 8401
A158: 50 | B158: 50-54 | D158: 40233 | E158: 28561 | F158: 19576 | G158: 15706 | H158: 12003
A159: 55 | B159: 55-59 | D159: 42813 | E159: 30393 | F159: 20825 | G159: 16713 | H159: 12780
A160: 60 | B160: 60 | D160: 46626 | E160: 33003 | F160: 23713 | G160: 19884 | H160: 15954
A161: 61 | B161: 61 | D161: 50087 | E161: 35445 | F161: 25466 | G161: 21354 | H161: 17143
A162: 62 | B162: 62 | D162: 54823 | E162: 38815 | F162: 27884 | G162: 23384 | H162: 18774
A163: 63 | B163: 63 | D163: 58296 | E163: 41272 | F163: 29644 | G163: 24868 | H163: 19969
A164: 64 | B164: 64 | D164: 63061 | E164: 44650 | F164: 32076 | G164: 26893 | H164: 21610
A165: 65 | B165: 65 | D165: 82436 | E165: 58252 | F165: 40555 | G165: 35866 | H165: 30456
A166: 66 | B166: 66 | D166: 95765 | E166: 67679 | F166: 47118 | G166: 41691 | H166: 35396
A167: 67 | B167: 67 | D167: 104597 | E167: 73923 | F167: 51466 | G167: 45533 | H167: 38656
A168: 68 | B168: 68 | D168: 115812 | E168: 81835 | F168: 56989 | G168: 50417 | H168: 42794
A169: 69 | B169: 69 | D169: 127421 | E169: 90042 | F169: 62694 | G169: 55471 | H169: 47100
A170: 70 | B170: 70 | D170: 156811 | E170: 109649 | F170: 73803 | G170: 64629 | H170: 55400
A171: 71 | B171: 71 | D171: 162966 | E171: 113944 | F171: 76704 | G171: 67174 | H171: 57579
A172: 72 | B172: 72 | D172: 167589 | E172: 117166 | F172: 78873 | G172: 69079 | H172: 59208
A173: 73 | B173: 73 | D173: 173731 | E173: 121474 | F173: 81764 | G173: 71611 | H173: 61398
A174: 74 | B174: 74 | D174: 176830 | E174: 123629 | F174: 83221 | G174: 72880 | H174: 62471
A175: 75 | B175: 75+ | D175: 184509 | E175: 129008 | F175: 86838 | G175: 76049 | H175: 65188
A176: 1 | B176: 1 Child | D176: 6721 | E176: 4921 | F176: 3508 | G176: 2872 | H176: 2131
A177: 2 | B177: 2 Children | D177: 10704 | E177: 7828 | F177: 5573 | G177: 4560 | H177: 3385
A178: 3 | B178: 3+ Children | D178: 15688 | E178: 11467 | F178: 8161 | G178: 6683 | H178: 4961
A179: 1 | B179: Rider Comp. Maternidad | D179: 0 | E179: 0 | F179: 225 | G179: 225 | H179: 225
A180: 1 | B180: Transplante de organos | D180: 0 | E180: 0 | F180: 0 | G180: 0 | H180: 0
A184: TARIFAS SEMESTRALES
A185: EDAD
D186: CW2 | E186: CW3 | F186: CW4 | G186: CW5 | H186: CW6
A187: 18 | B187: 18-24 | D187: =$G$2*D152 -> 10282 | E187: 7068.61 | F187: 4564.36 | G187: 3150.85 | H187: 2396.13
A188: 25 | B188: 25-29 | D188: 10786.56 | E188: 7821.74 | F188: 5054.61 | G188: 3490.58 | H188: 2659.01
A189: 30 | B189: 30-34 | D189: 11256.67 | E189: 8366.05 | F189: 5672.06 | G189: 4222.51 | H189: 3220.28
A190: 35 | B190: 35-39 | D190: 12611.88 | E190: 9365.63 | F190: 6355.76 | G190: 4730.25 | H190: 3614.07
A191: 40 | B191: 40-44 | D191: 14598.85 | E191: 10269.28 | F191: 7065.43 | G191: 5213.61 | H191: 3979.77
A192: 45 | B192: 45-49 | D192: 16310.75 | E192: 11476.62 | F192: 7902.83 | G192: 5828.41 | H192: 4452.53
A193: 50 | B193: 50-54 | D193: 21323.49 | E193: 15137.33 | F193: 10375.28 | G193: 8324.18 | H193: 6361.59
A194: 55 | B194: 55-59 | D194: 22690.89 | E194: 16108.29 | F194: 11037.25 | G194: 8857.89 | H194: 6773.4
A195: 60 | B195: 60 | D195: 24711.78 | E195: 17491.59 | F195: 12567.89 | G195: 10538.52 | H195: 8455.62
A196: 61 | B196: 61 | D196: 26546.11 | E196: 18785.85 | F196: 13496.98 | G196: 11317.62 | H196: 9085.79
A197: 62 | B197: 62 | D197: =$G$2*D162 -> 29056.19 | E197: 20571.95 | F197: 14778.52 | G197: 12393.52 | H197: 9950.22
A198: 63 | B198: 63 | D198: 30896.88 | E198: 21874.16 | F198: 15711.32 | G198: 13180.04 | H198: 10583.57
A199: 64 | B199: 64 | D199: 33422.33 | E199: 23664.5 | F199: 17000.28 | G199: 14253.29 | H199: 11453.3
A200: 65 | B200: 65 | D200: 43691.08 | E200: 30873.56 | F200: 21494.15 | G200: 19008.98 | H200: 16141.68
A201: 66 | B201: 66 | D201: 50755.45 | E201: 35869.87 | F201: 24972.54 | G201: 22096.23 | H201: 18759.88
A202: 67 | B202: 67 | D202: 55436.41 | E202: 39179.19 | F202: 27276.98 | G202: 24132.49 | H202: 20487.68
A203: 68 | B203: 68 | D203: 61380.36 | E203: 43372.55 | F203: 30204.17 | G203: 26721.01 | H203: 22680.82
A204: 69 | B204: 69 | D204: 67533.13 | E204: 47722.26 | F204: 33227.82 | G204: 29399.63 | H204: 24963
A205: 70 | B205: 70 | D205: 83109.83 | E205: 58113.97 | F205: 39115.59 | G205: 34253.37 | H205: 29362
A206: 71 | B206: 71 | D206: 86371.98 | E206: 60390.32 | F206: 40653.12 | G206: 35602.22 | H206: 30516.87
A207: 72 | B207: 72 | D207: =$G$2*D172 -> 88822.17 | E207: 62097.98 | F207: 41802.69 | G207: 36611.87 | H207: 31380.24
A208: 73 | B208: 73 | D208: 92077.43 | E208: 64381.22 | F208: 43334.92 | G208: 37953.83 | H208: 32540.94
A209: 74 | B209: 74 | D209: 93719.9 | E209: 65523.37 | F209: 44107.13 | G209: 38626.4 | H209: 33109.63
A210: 75 | B210: 75+ | D210: 97789.77 | E210: 68374.24 | F210: 46024.14 | G210: 40305.97 | H210: 34549.64
A211: 1 | B211: 1 Child | D211: 3562.13 | E211: 2608.13 | F211: 1859.24 | G211: 1522.16 | H211: 1129.43
A212: 2 | B212: 2 Children | D212: 5673.12 | E212: 4148.84 | F212: 2953.69 | G212: 2416.8 | H212: 1794.05
A213: 3 | B213: 3+ Children | D213: 8314.64 | E213: 6077.51 | F213: 4325.33 | G213: 3541.99 | H213: 2629.33
A214: 1 | B214: Rider Comp. Maternidad | D214: =+D179*$G$2 -> 0 | E214: 0 | F214: 119.25 | G214: 119.25 | H214: 119.25
A215: 1 | B215: Transplante de organos | D215: 0 | E215: 0 | F215: 0 | G215: 0 | H215: 0
A220: COMPLETE (LATINAMERICA ONLY)
A221: TARIFAS ANUALES
A222: EDAD
... 335 more rows

Sheet 3 (hidden)
K1: D1 | L1: D2 | M1: D3 | N1: D4 | O1: D5 | P1: D6
B2: REGIÓN | C2: ='INGRESO DE DATOS'!W14 -> 5 | E2: FACTOR SEMESTRAL : | G2: 0.53 | I2: NEW BUSINESS DISCUOUNTS | K2: ='INGRESO DE DATOS'!O42 -> 1 | L2: ='INGRESO DE DATOS'!P42 -> 0.7 | M2: ='INGRESO DE DATOS'!Q42 -> 0.7 | N2: ='INGRESO DE DATOS'!R42 -> 0.7 | O2: ='INGRESO DE DATOS'!S42 -> 0.7 | P2: ='INGRESO DE DATOS'!T42 -> 0.9
A5: BUPA EXCLUSIVE CARE
A6: TARIFAS ANUALES
A7: EDAD
C8: DW1 | D8: DW2 | E8: DW3 | F8: DW4 | G8: DW5 | H8: DW6
A9: 18 | B9: 18-24 | D9: 22314 | E9: 14739 | F9: 9665 | G9: 6731 | H9: 5301
A10: 25 | B10: 25-29 | D10: 23399 | E10: 16287 | F10: 10708 | G10: 7475 | H10: 5870
A11: 30 | B11: 30-34 | D11: 24342 | E11: 17470 | F11: 11989 | G11: 8949 | H11: 7058
A12: 35 | B12: 35-39 | D12: 27262 | E12: 19562 | F12: 13443 | G12: 10037 | H12: 7906
A13: 40 | B13: 40-44 | D13: 31616 | E13: 21397 | F13: 14917 | G13: 11044 | H13: 8686
A14: 45 | B14: 45-49 | D14: 35343 | E14: 23928 | F14: 16687 | G14: 12338 | H14: 9719
A15: 50 | B15: 50-54 | D15: 45234 | E15: 31418 | F15: 21771 | G15: 17438 | H15: 13750
A16: 55 | B16: 55-59 | D16: 48128 | E16: 33424 | F16: 23169 | G16: 18561 | H16: 14634
A17: 60 | B17: 60 | D17: 52438 | E17: 36476 | F17: 26658 | G17: 22359 | H17: 18191
A18: 61 | B18: 61 | D18: 56345 | E18: 39184 | F18: 28636 | G18: 24041 | H18: 19544
A19: 62 | B19: 62 | D19: 61682 | E19: 42919 | F19: 31366 | G19: 26315 | H19: 21399
A20: 63 | B20: 63 | D20: 65591 | E20: 45629 | F20: 33345 | G20: 27987 | H20: 22756
A21: 64 | B21: 64 | D21: 70948 | E21: 49395 | F21: 36084 | G21: 30279 | H21: 24622
A22: 65 | B22: 65 | D22: 92760 | E22: 64418 | F22: 45628 | G22: 40395 | H22: 34744
A23: 66 | B23: 66 | D23: 107768 | E23: 74859 | F23: 53017 | G23: 46957 | H23: 40376
A24: 67 | B24: 67 | D24: 117708 | E24: 81758 | F24: 57918 | G24: 51263 | H24: 44095
A25: 68 | B25: 68 | D25: 130341 | E25: 90526 | F25: 64134 | G25: 56799 | H25: 48834
A26: 69 | B26: 69 | D26: 143407 | E26: 99602 | F26: 70575 | G26: 62487 | H26: 53735
A27: 70 | B27: 70 | D27: 176505 | E27: 121290 | F27: 83076 | G27: 72816 | H27: 63216
A28: 71 | B28: 71 | D28: 183446 | E28: 126054 | F28: 86341 | G28: 75682 | H28: 65708
A29: 72 | B29: 72 | D29: 188640 | E29: 129614 | F29: 88773 | G29: 77819 | H29: 67565
A30: 73 | B30: 73 | D30: 195571 | E30: 134393 | F30: 92039 | G30: 80688 | H30: 70053
A31: 74 | B31: 74 | D31: 199028 | E31: 136759 | F31: 93674 | G31: 82116 | H31: 71282
A32: 75 | B32: 75+ | D32: 207695 | E32: 142717 | F32: 97749 | G32: 85698 | H32: 74402
A33: 1 | B33: 1 Child | D33: 7757 | E33: 5715 | F33: 4327 | G33: 3585 | H33: 2798
A34: 2 | B34: 2 Children | D34: 12338 | E34: 9106 | F34: 6887 | G34: 5691 | H34: 4431
A35: 3 | B35: 3+ Children | D35: 18075 | E35: 13338 | F35: 10079 | G35: 8345 | H35: 6504
A36: 1 | B36: Rider Comp. Maternidad | D36: 0 | E36: 0 | F36: 225 | G36: 225 | H36: 225
A37: 1 | B37: Transplante de organos | D37: 0 | E37: 0 | F37: 0 | G37: 0 | H37: 0
A41: TARIFAS SEMESTRALES
A42: EDAD
D43: DW2 | E43: DW3 | F43: DW4 | G43: DW5 | H43: DW6
A44: 18 | B44: 18-24 | D44: =$G$2*D9 -> 11826.42 | E44: 7811.67 | F44: 5122.45 | G44: 3567.43 | H44: 2809.53
A45: 25 | B45: 25-29 | D45: 12401.47 | E45: 8632.11 | F45: 5675.24 | G45: 3961.75 | H45: 3111.1
A46: 30 | B46: 30-34 | D46: 12901.26 | E46: 9259.1 | F46: 6354.17 | G46: 4742.97 | H46: 3740.74
A47: 35 | B47: 35-39 | D47: 14448.86 | E47: 10367.86 | F47: 7124.79 | G47: 5319.61 | H47: 4190.18
A48: 40 | B48: 40-44 | D48: 16756.48 | E48: 11340.41 | F48: 7906.01 | G48: 5853.32 | H48: 4603.58
A49: 45 | B49: 45-49 | D49: 18731.79 | E49: 12681.84 | F49: 8844.11 | G49: 6539.14 | H49: 5151.07
A50: 50 | B50: 50-54 | D50: 23974.02 | E50: 16651.54 | F50: 11538.63 | G50: 9242.14 | H50: 7287.5
A51: 55 | B51: 55-59 | D51: 25507.84 | E51: 17714.72 | F51: 12279.57 | G51: 9837.33 | H51: 7756.02
A52: 60 | B52: 60 | D52: 27792.14 | E52: 19332.28 | F52: 14128.74 | G52: 11850.27 | H52: 9641.23
A53: 61 | B53: 61 | D53: 29862.85 | E53: 20767.52 | F53: 15177.08 | G53: 12741.73 | H53: 10358.32
A54: 62 | B54: 62 | D54: 32691.46 | E54: 22747.07 | F54: 16623.98 | G54: 13946.95 | H54: 11341.47
A55: 63 | B55: 63 | D55: 34763.23 | E55: 24183.37 | F55: 17672.85 | G55: 14833.11 | H55: 12060.68
A56: 64 | B56: 64 | D56: 37602.44 | E56: 26179.35 | F56: 19124.52 | G56: 16047.87 | H56: 13049.66
A57: 65 | B57: 65 | D57: 49162.8 | E57: 34141.54 | F57: 24182.84 | G57: 21409.35 | H57: 18414.32
A58: 66 | B58: 66 | D58: 57117.04 | E58: 39675.27 | F58: 28099.01 | G58: 24887.21 | H58: 21399.28
A59: 67 | B59: 67 | D59: 62385.24 | E59: 43331.74 | F59: 30696.54 | G59: 27169.39 | H59: 23370.35
A60: 68 | B60: 68 | D60: =$G$2*D25 -> 69080.73 | E60: 47978.78 | F60: 33991.02 | G60: 30103.47 | H60: 25882.02
A61: 69 | B61: 69 | D61: 76005.71 | E61: 52789.06 | F61: 37404.75 | G61: 33118.11 | H61: 28479.55
A62: 70 | B62: 70 | D62: 93547.65 | E62: 64283.7 | F62: 44030.28 | G62: 38592.48 | H62: 33504.48
A63: 71 | B63: 71 | D63: 97226.38 | E63: 66808.62 | F63: 45760.73 | G63: 40111.46 | H63: 34825.24
A64: 72 | B64: 72 | D64: 99979.2 | E64: 68695.42 | F64: 47049.69 | G64: 41244.07 | H64: 35809.45
A65: 73 | B65: 73 | D65: 103652.63 | E65: 71228.29 | F65: 48780.67 | G65: 42764.64 | H65: 37128.09
A66: 74 | B66: 74 | D66: 105484.84 | E66: 72482.27 | F66: 49647.22 | G66: 43521.48 | H66: 37779.46
A67: 75 | B67: 75+ | D67: 110078.35 | E67: 75640.01 | F67: 51806.97 | G67: 45419.94 | H67: 39433.06
A68: 1 | B68: 1 Child | D68: 4111.21 | E68: 3028.95 | F68: 2293.31 | G68: 1900.05 | H68: 1482.94
A69: 2 | B69: 2 Children | D69: 6539.14 | E69: 4826.18 | F69: 3650.11 | G69: 3016.23 | H69: 2348.43
A70: 3 | B70: 3+ Children | D70: 9579.75 | E70: 7069.14 | F70: 5341.87 | G70: 4422.85 | H70: 3447.12
A71: 1 | B71: Rider Comp. Maternidad | D71: =+D36*$G$2 -> 0 | E71: 0 | F71: 119.25 | G71: 119.25 | H71: 119.25
A72: 1 | B72: Transplante de organos | D72: 0 | E72: 0 | F72: 0 | G72: 0 | H72: 0
A78: DIAMOND (LATINAMERICA ONLY)
A79: TARIFAS ANUALES
A80: EDAD
C81: DL1 | D81: DL2 | E81: DL3 | F81: DL4 | G81: DL5 | H81: DL6
A82: 18 | B82: - 24
A83: 25 | B83: - 29
A84: 30 | B84: - 34
A85: 35 | B85: - 39
A86: 40 | B86: - 44
A87: 45 | B87: - 49
A88: 50 | B88: - 54
A89: 55 | B89: - 59
A90: 60
A91: 61
A92: 62
A93: 63
A94: 64
A95: 65
A96: 66
A97: 67
A98: 68
A99: 69
A100: 70
A101: 71
A102: 72
A103: 73
A104: 74
A105: 75 | B105: o más
A106: 1 | B106: Hijo
A107: 2 | B107: Hijos
A108: 3 | B108: Hijos o más
A109: 1 | B109: Rider Comp. Maternidad
A110: 1 | B110: Transplante de organos | C110: 0 | D110: 0 | E110: 0 | F110: 0 | G110: 0 | H110: 0
A112: TARIFAS SEMESTRALES
A113: EDAD
C114: DL1 | D114: DL2 | E114: DL3 | F114: DL4 | G114: DL5 | H114: DL6
A115: 18 | B115: - 24 | C115: =+C82*$G$2 -> 0 | D115: 0 | E115: 0 | F115: 0 | G115: 0 | H115: 0
A116: 25 | B116: - 29 | C116: 0 | D116: 0 | E116: 0 | F116: 0 | G116: 0 | H116: 0
A117: 30 | B117: - 34 | C117: 0 | D117: 0 | E117: 0 | F117: 0 | G117: 0 | H117: 0
A118: 35 | B118: - 39 | C118: 0 | D118: 0 | E118: 0 | F118: 0 | G118: 0 | H118: 0
A119: 40 | B119: - 44 | C119: 0 | D119: 0 | E119: 0 | F119: 0 | G119: 0 | H119: 0
A120: 45 | B120: - 49 | C120: 0 | D120: 0 | E120: 0 | F120: 0 | G120: 0 | H120: 0
A121: 50 | B121: - 54 | C121: 0 | D121: 0 | E121: 0 | F121: 0 | G121: 0 | H121: 0
A122: 55 | B122: - 59 | C122: 0 | D122: 0 | E122: 0 | F122: 0 | G122: 0 | H122: 0
A123: 60 | C123: 0 | D123: 0 | E123: 0 | F123: 0 | G123: 0 | H123: 0
A124: 61 | C124: 0 | D124: 0 | E124: 0 | F124: 0 | G124: 0 | H124: 0
A125: 62 | C125: 0 | D125: 0 | E125: 0 | F125: 0 | G125: 0 | H125: 0
A126: 63 | C126: 0 | D126: 0 | E126: 0 | F126: 0 | G126: 0 | H126: 0
A127: 64 | C127: 0 | D127: 0 | E127: 0 | F127: 0 | G127: 0 | H127: 0
A128: 65 | C128: 0 | D128: 0 | E128: 0 | F128: 0 | G128: 0 | H128: 0
A129: 66 | C129: 0 | D129: 0 | E129: 0 | F129: 0 | G129: 0 | H129: 0
A130: 67 | C130: 0 | D130: 0 | E130: 0 | F130: 0 | G130: 0 | H130: 0
A131: 68 | C131: =+C98*$G$2 -> 0 | D131: 0 | E131: 0 | F131: 0 | G131: 0 | H131: 0
A132: 69 | C132: 0 | D132: 0 | E132: 0 | F132: 0 | G132: 0 | H132: 0
A133: 70 | C133: 0 | D133: 0 | E133: 0 | F133: 0 | G133: 0 | H133: 0
A134: 71 | C134: 0 | D134: 0 | E134: 0 | F134: 0 | G134: 0 | H134: 0
A135: 72 | C135: 0 | D135: 0 | E135: 0 | F135: 0 | G135: 0 | H135: 0
A136: 73 | C136: 0 | D136: 0 | E136: 0 | F136: 0 | G136: 0 | H136: 0
A137: 74 | C137: 0 | D137: 0 | E137: 0 | F137: 0 | G137: 0 | H137: 0
A138: 75 | B138: o más | C138: 0 | D138: 0 | E138: 0 | F138: 0 | G138: 0 | H138: 0
A139: 1 | B139: Hijo | C139: 0 | D139: 0 | E139: 0 | F139: 0 | G139: 0 | H139: 0
A140: 2 | B140: Hijos | C140: 0 | D140: 0 | E140: 0 | F140: 0 | G140: 0 | H140: 0
A141: 3 | B141: Hijos o más | C141: 0 | D141: 0 | E141: 0 | F141: 0 | G141: 0 | H141: 0
A142: 1 | B142: Rider Comp. Maternidad | C142: 0 | D142: 0 | E142: 0 | F142: 0 | G142: 0 | H142: 0
A143: 1 | B143: Transplante de organos | C143: 0 | D143: 0 | E143: 0 | F143: 0 | G143: 0 | H143: 0
A148: BUPA PRIVILEGE CARE
A149: TARIFAS ANUALES
A150: EDAD
C151: CW1 | D151: CW2 | E151: CW3 | F151: CW4 | G151: CW5 | H151: CW6
A152: 18 | B152: 18-24 | D152: 18757 | E152: 12893 | F152: 8401 | G152: 5852 | H152: 4466
A153: 25 | B153: 25-29 | D153: 19689 | E153: 14282 | F153: 9304 | G153: 6492 | H153: 4947
A154: 30 | B154: 30-34 | D154: 20551 | E154: 15273 | F154: 10449 | G154: 7841 | H154: 5980
A155: 35 | B155: 35-39 | D155: 23012 | E155: 17095 | F155: 11703 | G155: 8792 | H155: 6710
A156: 40 | B156: 40-44 | D156: 26641 | E156: 18743 | F156: 13010 | G156: 9698 | H156: 7403
A157: 45 | B157: 45-49 | D157: 29767 | E157: 20939 | F157: 14544 | G157: 10844 | H157: 8282
A158: 50 | B158: 50-54 | D158: 38915 | E158: 27630 | F158: 19094 | G158: 15470 | H158: 11831
A159: 55 | B159: 55-59 | D159: 41401 | E159: 29399 | F159: 20325 | G159: 16463 | H159: 12581
A160: 60 | B160: 60 | D160: 45080 | E160: 31927 | F160: 23128 | G160: 19584 | H160: 15716
A161: 61 | B161: 61 | D161: 48453 | E161: 34275 | F161: 24859 | G161: 21044 | H161: 16887
A162: 62 | B162: 62 | D162: 53025 | E162: 37551 | F162: 27214 | G162: 23042 | H162: 18502
A163: 63 | B163: 63 | D163: 56371 | E163: 39926 | F163: 28929 | G163: 24495 | H163: 19675
A164: 64 | B164: 64 | D164: 60984 | E164: 43192 | F164: 31302 | G164: 26496 | H164: 21286
A165: 65 | B165: 65 | D165: 79719 | E165: 56332 | F165: 39575 | G165: 35337 | H165: 30011
A166: 66 | B166: 66 | D166: 92615 | E166: 65449 | F166: 45970 | G166: 41062 | H166: 34875
A167: 67 | B167: 67 | D167: 101154 | E167: 71479 | F167: 50208 | G167: 44848 | H167: 38087
A168: 68 | B168: 68 | D168: 112010 | E168: 79155 | F168: 55612 | G168: 49674 | H168: 42168
A169: 69 | B169: 69 | D169: 123223 | E169: 87087 | F169: 61177 | G169: 54640 | H169: 46409
A170: 70 | B170: 70 | D170: 151659 | E170: 106037 | F170: 72006 | G170: 63674 | H170: 54578
A171: 71 | B171: 71 | D171: 157593 | E171: 110205 | F171: 74830 | G171: 66171 | H171: 56723
A172: 72 | B172: 72 | D172: 162065 | E172: 113318 | F172: 76956 | G172: 68049 | H172: 58328
A173: 73 | B173: 73 | D173: 168025 | E173: 117480 | F173: 79785 | G173: 70550 | H173: 60478
A174: 74 | B174: 74 | D174: 170989 | E174: 119555 | F174: 81198 | G174: 71805 | H174: 61547
A175: 75 | B175: 75+ | D175: 178437 | E175: 124762 | F175: 84735 | G175: 74917 | H175: 64234
A176: 1 | B176: 1 Child | D176: 6512 | E176: 4763 | F176: 3424 | G176: 2835 | H176: 2103
A177: 2 | B177: 2 Children | D177: 10351 | E177: 7569 | F177: 5433 | G177: 4511 | H177: 3333
A178: 3 | B178: 3+ Children | D178: 15163 | E178: 11084 | F178: 7966 | G178: 6604 | H178: 4883
A179: 1 | B179: Rider Comp. Maternidad | D179: 0 | E179: 0 | F179: 225 | G179: 225 | H179: 225
A180: 1 | B180: Transplante de organos | D180: 0 | E180: 0 | F180: 0 | G180: 0 | H180: 0
A184: TARIFAS SEMESTRALES
A185: EDAD
D186: CW2 | E186: CW3 | F186: CW4 | G186: CW5 | H186: CW6
A187: 18 | B187: 18-24 | D187: =$G$2*D152 -> 9941.21 | E187: 6833.29 | F187: 4452.53 | G187: 3101.56 | H187: 2366.98
A188: 25 | B188: 25-29 | D188: 10435.17 | E188: 7569.46 | F188: 4931.12 | G188: 3440.76 | H188: 2621.91
A189: 30 | B189: 30-34 | D189: 10892.03 | E189: 8094.69 | F189: 5537.97 | G189: 4155.73 | H189: 3169.4
A190: 35 | B190: 35-39 | D190: 12196.36 | E190: 9060.35 | F190: 6202.59 | G190: 4659.76 | H190: 3556.3
A191: 40 | B191: 40-44 | D191: 14119.73 | E191: 9933.79 | F191: 6895.3 | G191: 5139.94 | H191: 3923.59
A192: 45 | B192: 45-49 | D192: 15776.51 | E192: 11097.67 | F192: 7708.32 | G192: 5747.32 | H192: 4389.46
A193: 50 | B193: 50-54 | D193: 20624.95 | E193: 14643.9 | F193: 10119.82 | G193: 8199.1 | H193: 6270.43
A194: 55 | B194: 55-59 | D194: 21942.53 | E194: 15581.47 | F194: 10772.25 | G194: 8725.39 | H194: 6667.93
A195: 60 | B195: 60 | D195: 23892.4 | E195: 16921.31 | F195: 12257.84 | G195: 10379.52 | H195: 8329.48
A196: 61 | B196: 61 | D196: 25680.09 | E196: 18165.75 | F196: 13175.27 | G196: 11153.32 | H196: 8950.11
A197: 62 | B197: 62 | D197: 28103.25 | E197: 19902.03 | F197: 14423.42 | G197: 12212.26 | H197: 9806.06
A198: 63 | B198: 63 | D198: 29876.63 | E198: 21160.78 | F198: 15332.37 | G198: 12982.35 | H198: 10427.75
A199: 64 | B199: 64 | D199: 32321.52 | E199: 22891.76 | F199: 16590.06 | G199: 14042.88 | H199: 11281.58
A200: 65 | B200: 65 | D200: 42251.07 | E200: 29855.96 | F200: 20974.75 | G200: 18728.61 | H200: 15905.83
A201: 66 | B201: 66 | D201: 49085.95 | E201: 34687.97 | F201: 24364.1 | G201: 21762.86 | H201: 18483.75
A202: 67 | B202: 67 | D202: 53611.62 | E202: 37883.87 | F202: 26610.24 | G202: 23769.44 | H202: 20186.11
A203: 68 | B203: 68 | D203: =$G$2*D168 -> 59365.3 | E203: 41952.15 | F203: 29474.36 | G203: 26327.22 | H203: 22349.04
A204: 69 | B204: 69 | D204: 65308.19 | E204: 46156.11 | F204: 32423.81 | G204: 28959.2 | H204: 24596.77
A205: 70 | B205: 70 | D205: 80379.27 | E205: 56199.61 | F205: 38163.18 | G205: 33747.22 | H205: 28926.34
A206: 71 | B206: 71 | D206: 83524.29 | E206: 58408.65 | F206: 39659.9 | G206: 35070.63 | H206: 30063.19
A207: 72 | B207: 72 | D207: 85894.45 | E207: 60058.54 | F207: 40786.68 | G207: 36065.97 | H207: 30913.84
A208: 73 | B208: 73 | D208: 89053.25 | E208: 62264.4 | F208: 42286.05 | G208: 37391.5 | H208: 32053.34
A209: 74 | B209: 74 | D209: 90624.17 | E209: 63364.15 | F209: 43034.94 | G209: 38056.65 | H209: 32619.91
A210: 75 | B210: 75+ | D210: 94571.61 | E210: 66123.86 | F210: 44909.55 | G210: 39706.01 | H210: 34044.02
A211: 1 | B211: 1 Child | D211: 3451.36 | E211: 2524.39 | F211: 1814.72 | G211: 1502.55 | H211: 1114.59
A212: 2 | B212: 2 Children | D212: 5486.03 | E212: 4011.57 | F212: 2879.49 | G212: 2390.83 | H212: 1766.49
A213: 3 | B213: 3+ Children | D213: 8036.39 | E213: 5874.52 | F213: 4221.98 | G213: 3500.12 | H213: 2587.99
A214: 1 | B214: Rider Comp. Maternidad | D214: =+D179*$G$2 -> 0 | E214: 0 | F214: 119.25 | G214: 119.25 | H214: 119.25
A215: 1 | B215: Transplante de organos | D215: 0 | E215: 0 | F215: 0 | G215: 0 | H215: 0
A220: COMPLETE (LATINAMERICA ONLY)
A221: TARIFAS ANUALES
A222: EDAD
... 335 more rows

Sheet 4 (hidden)
K1: D1 | L1: D2 | M1: D3 | N1: D4 | O1: D5 | P1: D6
B2: REGIÓN | C2: ='INGRESO DE DATOS'!W14 -> 5 | E2: FACTOR SEMESTRAL : | G2: 0.53 | I2: NEW BUSINESS DISCUOUNTS | K2: ='INGRESO DE DATOS'!O42 -> 1 | L2: ='INGRESO DE DATOS'!P42 -> 0.7 | M2: ='INGRESO DE DATOS'!Q42 -> 0.7 | N2: ='INGRESO DE DATOS'!R42 -> 0.7 | O2: ='INGRESO DE DATOS'!S42 -> 0.7 | P2: ='INGRESO DE DATOS'!T42 -> 0.9
A5: BUPA EXCLUSIVE CARE
A6: TARIFAS ANUALES
A7: EDAD
C8: DW1 | D8: DW2 | E8: DW3 | F8: DW4 | G8: DW5 | H8: DW6
A9: 18 | B9: 18-24 | D9: 19979 | E9: 13201 | F9: 8654 | G9: 5923 | H9: 4662
A10: 25 | B10: 25-29 | D10: 20959 | E10: 14590 | F10: 9589 | G10: 6569 | H10: 5163
A11: 30 | B11: 30-34 | D11: 21802 | E11: 15646 | F11: 10734 | G11: 7876 | H11: 6210
A12: 35 | B12: 35-39 | D12: 24418 | E12: 17516 | F12: 12036 | G12: 8827 | H12: 6954
A13: 40 | B13: 40-44 | D13: 28320 | E13: 19161 | F13: 13361 | G13: 9708 | H13: 7646
A14: 45 | B14: 45-49 | D14: 31660 | E14: 21430 | F14: 14933 | G14: 10844 | H14: 8548
A15: 50 | B15: 50-54 | D15: 40512 | E15: 28118 | F15: 19485 | G15: 15332 | H15: 12085
A16: 55 | B16: 55-59 | D16: 43104 | E16: 29922 | F16: 20726 | G16: 16311 | H16: 12864
A17: 60 | B17: 60 | D17: 46956 | E17: 32642 | F17: 23858 | G17: 19649 | H17: 15984
A18: 61 | B18: 61 | D18: 50446 | E18: 35078 | F18: 25621 | G18: 21126 | H18: 17174
A19: 62 | B19: 62 | D19: 55231 | E19: 38417 | F19: 28065 | G19: 23118 | H19: 18806
A20: 63 | B20: 63 | D20: 58728 | E20: 40848 | F20: 29827 | G20: 24597 | H20: 19990
A21: 64 | B21: 64 | D21: 63524 | E21: 44197 | F21: 32283 | G21: 26600 | H21: 21644
A22: 65 | B22: 65 | D22: 83050 | E22: 57652 | F22: 40817 | G22: 35481 | H22: 30520
A23: 66 | B23: 66 | D23: 96481 | E23: 66992 | F23: 47426 | G23: 41248 | H23: 35459
A24: 67 | B24: 67 | D24: 105388 | E24: 73169 | F24: 51804 | G24: 45040 | H24: 38737
A25: 68 | B25: 68 | D25: 116696 | E25: 81011 | F25: 57365 | G25: 49883 | H25: 42892
A26: 69 | B26: 69 | D26: 128397 | E26: 89128 | F26: 63119 | G26: 54880 | H26: 47201
A27: 70 | B27: 70 | D27: 158015 | E27: 108535 | F27: 74302 | G27: 63945 | H27: 55525
A28: 71 | B28: 71 | D28: 164228 | E28: 112792 | F28: 77226 | G28: 66466 | H28: 57706
A29: 72 | B29: 72 | D29: 168880 | E29: 115987 | F29: 79396 | G29: 68348 | H29: 59339
A30: 73 | B30: 73 | D30: 175080 | E30: 120254 | F30: 82318 | G30: 70863 | H30: 61507
A31: 74 | B31: 74 | D31: 178181 | E31: 122381 | F31: 83791 | G31: 72116 | H31: 62608
A32: 75 | B32: 75+ | D32: 185937 | E32: 127704 | F32: 87423 | G32: 75257 | H32: 65343
A33: 1 | B33: 1 Child | D33: 6942 | E33: 5114 | F33: 3871 | G33: 3150 | H33: 2450
A34: 2 | B34: 2 Children | D34: 11042 | E34: 8146 | F34: 6160 | G34: 4999 | H34: 3899
A35: 3 | B35: 3+ Children | D35: 16192 | E35: 11930 | F35: 9019 | G35: 7326 | H35: 5705
A36: 1 | B36: Rider Comp. Maternidad | D36: 0 | E36: 0 | F36: 225 | G36: 225 | H36: 225
A37: 1 | B37: Transplante de organos | D37: 0 | E37: 0 | F37: 0 | G37: 0 | H37: 0
A41: TARIFAS SEMESTRALES
A42: EDAD
D43: DW2 | E43: DW3 | F43: DW4 | G43: DW5 | H43: DW6
A44: 18 | B44: 18-24 | D44: =$G$2*D9 -> 10588.87 | E44: 6996.53 | F44: 4586.62 | G44: 3139.19 | H44: 2470.86
A45: 25 | B45: 25-29 | D45: 11108.27 | E45: 7732.7 | F45: 5082.17 | G45: 3481.57 | H45: 2736.39
A46: 30 | B46: 30-34 | D46: 11555.06 | E46: 8292.38 | F46: 5689.02 | G46: 4174.28 | H46: 3291.3
A47: 35 | B47: 35-39 | D47: 12941.54 | E47: 9283.48 | F47: 6379.08 | G47: 4678.31 | H47: 3685.62
A48: 40 | B48: 40-44 | D48: 15009.6 | E48: 10155.33 | F48: 7081.33 | G48: 5145.24 | H48: 4052.38
A49: 45 | B49: 45-49 | D49: 16779.8 | E49: 11357.9 | F49: 7914.49 | G49: 5747.32 | H49: 4530.44
A50: 50 | B50: 50-54 | D50: 21471.36 | E50: 14902.54 | F50: 10327.05 | G50: 8125.96 | H50: 6405.05
A51: 55 | B51: 55-59 | D51: 22845.12 | E51: 15858.66 | F51: 10984.78 | G51: 8644.83 | H51: 6817.92
A52: 60 | B52: 60 | D52: 24886.68 | E52: 17300.26 | F52: 12644.74 | G52: 10413.97 | H52: 8471.52
A53: 61 | B53: 61 | D53: 26736.38 | E53: 18591.34 | F53: 13579.13 | G53: 11196.78 | H53: 9102.22
A54: 62 | B54: 62 | D54: 29272.43 | E54: 20361.01 | F54: 14874.45 | G54: 12252.54 | H54: 9967.18
A55: 63 | B55: 63 | D55: 31125.84 | E55: 21649.44 | F55: 15808.31 | G55: 13036.41 | H55: 10594.7
A56: 64 | B56: 64 | D56: 33667.72 | E56: 23424.41 | F56: 17109.99 | G56: 14098 | H56: 11471.32
A57: 65 | B57: 65 | D57: 44016.5 | E57: 30555.56 | F57: 21633.01 | G57: 18804.93 | H57: 16175.6
A58: 66 | B58: 66 | D58: 51134.93 | E58: 35505.76 | F58: 25135.78 | G58: 21861.44 | H58: 18793.27
A59: 67 | B59: 67 | D59: 55855.64 | E59: 38779.57 | F59: 27456.12 | G59: 23871.2 | H59: 20530.61
A60: 68 | B60: 68 | D60: =$G$2*D25 -> 61848.88 | E60: 42935.83 | F60: 30403.45 | G60: 26437.99 | H60: 22732.76
A61: 69 | B61: 69 | D61: 68050.41 | E61: 47237.84 | F61: 33453.07 | G61: 29086.4 | H61: 25016.53
A62: 70 | B62: 70 | D62: 83747.95 | E62: 57523.55 | F62: 39380.06 | G62: 33890.85 | H62: 29428.25
A63: 71 | B63: 71 | D63: 87040.84 | E63: 59779.76 | F63: 40929.78 | G63: 35226.98 | H63: 30584.18
A64: 72 | B64: 72 | D64: 89506.4 | E64: 61473.11 | F64: 42079.88 | G64: 36224.44 | H64: 31449.67
A65: 73 | B65: 73 | D65: 92792.4 | E65: 63734.62 | F65: 43628.54 | G65: 37557.39 | H65: 32598.71
A66: 74 | B66: 74 | D66: 94435.93 | E66: 64861.93 | F66: 44409.23 | G66: 38221.48 | H66: 33182.24
A67: 75 | B67: 75+ | D67: 98546.61 | E67: 67683.12 | F67: 46334.19 | G67: 39886.21 | H67: 34631.79
A68: 1 | B68: 1 Child | D68: 3679.26 | E68: 2710.42 | F68: 2051.63 | G68: 1669.5 | H68: 1298.5
A69: 2 | B69: 2 Children | D69: 5852.26 | E69: 4317.38 | F69: 3264.8 | G69: 2649.47 | H69: 2066.47
A70: 3 | B70: 3+ Children | D70: 8581.76 | E70: 6322.9 | F70: 4780.07 | G70: 3882.78 | H70: 3023.65
A71: 1 | B71: Rider Comp. Maternidad | D71: =+D36*$G$2 -> 0 | E71: 0 | F71: 119.25 | G71: 119.25 | H71: 119.25
A72: 1 | B72: Transplante de organos | D72: 0 | E72: 0 | F72: 0 | G72: 0 | H72: 0
A78: DIAMOND (LATINAMERICA ONLY)
A79: TARIFAS ANUALES
A80: EDAD
C81: DL1 | D81: DL2 | E81: DL3 | F81: DL4 | G81: DL5 | H81: DL6
A82: 18 | B82: - 24
A83: 25 | B83: - 29
A84: 30 | B84: - 34
A85: 35 | B85: - 39
A86: 40 | B86: - 44
A87: 45 | B87: - 49
A88: 50 | B88: - 54
A89: 55 | B89: - 59
A90: 60
A91: 61
A92: 62
A93: 63
A94: 64
A95: 65
A96: 66
A97: 67
A98: 68
A99: 69
A100: 70
A101: 71
A102: 72
A103: 73
A104: 74
A105: 75 | B105: o más
A106: 1 | B106: Hijo
A107: 2 | B107: Hijos
A108: 3 | B108: Hijos o más
A109: 1 | B109: Rider Comp. Maternidad
A110: 1 | B110: Transplante de organos | C110: 0 | D110: 0 | E110: 0 | F110: 0 | G110: 0 | H110: 0
A112: TARIFAS SEMESTRALES
A113: EDAD
C114: DL1 | D114: DL2 | E114: DL3 | F114: DL4 | G114: DL5 | H114: DL6
A115: 18 | B115: - 24 | C115: =+C82*$G$2 -> 0 | D115: 0 | E115: 0 | F115: 0 | G115: 0 | H115: 0
A116: 25 | B116: - 29 | C116: 0 | D116: 0 | E116: 0 | F116: 0 | G116: 0 | H116: 0
A117: 30 | B117: - 34 | C117: 0 | D117: 0 | E117: 0 | F117: 0 | G117: 0 | H117: 0
A118: 35 | B118: - 39 | C118: 0 | D118: 0 | E118: 0 | F118: 0 | G118: 0 | H118: 0
A119: 40 | B119: - 44 | C119: 0 | D119: 0 | E119: 0 | F119: 0 | G119: 0 | H119: 0
A120: 45 | B120: - 49 | C120: 0 | D120: 0 | E120: 0 | F120: 0 | G120: 0 | H120: 0
A121: 50 | B121: - 54 | C121: 0 | D121: 0 | E121: 0 | F121: 0 | G121: 0 | H121: 0
A122: 55 | B122: - 59 | C122: 0 | D122: 0 | E122: 0 | F122: 0 | G122: 0 | H122: 0
A123: 60 | C123: 0 | D123: 0 | E123: 0 | F123: 0 | G123: 0 | H123: 0
A124: 61 | C124: 0 | D124: 0 | E124: 0 | F124: 0 | G124: 0 | H124: 0
A125: 62 | C125: 0 | D125: 0 | E125: 0 | F125: 0 | G125: 0 | H125: 0
A126: 63 | C126: 0 | D126: 0 | E126: 0 | F126: 0 | G126: 0 | H126: 0
A127: 64 | C127: 0 | D127: 0 | E127: 0 | F127: 0 | G127: 0 | H127: 0
A128: 65 | C128: 0 | D128: 0 | E128: 0 | F128: 0 | G128: 0 | H128: 0
A129: 66 | C129: 0 | D129: 0 | E129: 0 | F129: 0 | G129: 0 | H129: 0
A130: 67 | C130: 0 | D130: 0 | E130: 0 | F130: 0 | G130: 0 | H130: 0
A131: 68 | C131: =+C98*$G$2 -> 0 | D131: 0 | E131: 0 | F131: 0 | G131: 0 | H131: 0
A132: 69 | C132: 0 | D132: 0 | E132: 0 | F132: 0 | G132: 0 | H132: 0
A133: 70 | C133: 0 | D133: 0 | E133: 0 | F133: 0 | G133: 0 | H133: 0
A134: 71 | C134: 0 | D134: 0 | E134: 0 | F134: 0 | G134: 0 | H134: 0
A135: 72 | C135: 0 | D135: 0 | E135: 0 | F135: 0 | G135: 0 | H135: 0
A136: 73 | C136: 0 | D136: 0 | E136: 0 | F136: 0 | G136: 0 | H136: 0
A137: 74 | C137: 0 | D137: 0 | E137: 0 | F137: 0 | G137: 0 | H137: 0
A138: 75 | B138: o más | C138: 0 | D138: 0 | E138: 0 | F138: 0 | G138: 0 | H138: 0
A139: 1 | B139: Hijo | C139: 0 | D139: 0 | E139: 0 | F139: 0 | G139: 0 | H139: 0
A140: 2 | B140: Hijos | C140: 0 | D140: 0 | E140: 0 | F140: 0 | G140: 0 | H140: 0
A141: 3 | B141: Hijos o más | C141: 0 | D141: 0 | E141: 0 | F141: 0 | G141: 0 | H141: 0
A142: 1 | B142: Rider Comp. Maternidad | C142: 0 | D142: 0 | E142: 0 | F142: 0 | G142: 0 | H142: 0
A143: 1 | B143: Transplante de organos | C143: 0 | D143: 0 | E143: 0 | F143: 0 | G143: 0 | H143: 0
A148: BUPA PRIVILEGE CARE
A149: TARIFAS ANUALES
A150: EDAD
C151: CW1 | D151: CW2 | E151: CW3 | F151: CW4 | G151: CW5 | H151: CW6
A152: 18 | B152: 18-24 | D152: 16807 | E152: 11553 | F152: 7523 | G152: 5153 | H152: 3919
A153: 25 | B153: 25-29 | D153: 17628 | E153: 12782 | F153: 8331 | G153: 5704 | H153: 4342
A154: 30 | B154: 30-34 | D154: 18417 | E154: 13671 | F154: 9351 | G154: 6892 | H154: 5273
A155: 35 | B155: 35-39 | D155: 20616 | E155: 15304 | F155: 10479 | G155: 7731 | H155: 5903
A156: 40 | B156: 40-44 | D156: 23869 | E156: 16785 | F156: 11649 | G156: 8526 | H156: 6517
A157: 45 | B157: 45-49 | D157: 26667 | E157: 18755 | F157: 13014 | G157: 9530 | H157: 7278
A158: 50 | B158: 50-54 | D158: 34855 | E158: 24739 | F158: 17089 | G158: 13587 | H158: 10391
A159: 55 | B159: 55-59 | D159: 37077 | E159: 26316 | F159: 18184 | G159: 14464 | H159: 11056
A160: 60 | B160: 60 | D160: 40378 | E160: 28572 | F160: 20695 | G160: 17198 | H160: 13826
A161: 61 | B161: 61 | D161: 43379 | E161: 30693 | F161: 22232 | G161: 18485 | H161: 14848
A162: 62 | B162: 62 | D162: 47484 | E162: 33618 | F162: 24345 | G162: 20239 | H162: 16258
A163: 63 | B163: 63 | D163: 50495 | E163: 35740 | F163: 25882 | G163: 21529 | H163: 17283
A164: 64 | B164: 64 | D164: 54611 | E164: 38672 | F164: 28004 | G164: 23288 | H164: 18702
A165: 65 | B165: 65 | D165: 71403 | E165: 50431 | F165: 35402 | G165: 31048 | H165: 26366
A166: 66 | B166: 66 | D166: 82942 | E166: 58598 | F166: 41135 | G166: 36085 | H166: 30634
A167: 67 | B167: 67 | D167: 90584 | E167: 63998 | F167: 44928 | G167: 39396 | H167: 33461
A168: 68 | B168: 68 | D168: 100305 | E168: 70855 | F168: 49754 | G168: 43630 | H168: 37051
A169: 69 | B169: 69 | D169: 110353 | E169: 77953 | F169: 54729 | G169: 47998 | H169: 40770
A170: 70 | B170: 70 | D170: 135813 | E170: 94922 | F170: 64427 | G170: 55943 | H170: 47941
A171: 71 | B171: 71 | D171: 141147 | E171: 98635 | F171: 66947 | G171: 58133 | H171: 49835
A172: 72 | B172: 72 | D172: 145148 | E172: 101426 | F172: 68852 | G172: 59779 | H172: 51239
A173: 73 | B173: 73 | D173: 150470 | E173: 105160 | F173: 71375 | G173: 61978 | H173: 53137
A174: 74 | B174: 74 | D174: 153134 | E174: 107015 | F174: 72639 | G174: 63083 | H174: 54064
A175: 75 | B175: 75+ | D175: 159803 | E175: 111677 | F175: 75799 | G175: 65822 | H175: 56417
A176: 1 | B176: 1 Child | D176: 5826 | E176: 4251 | F176: 3056 | G176: 2487 | H176: 1845
A177: 2 | B177: 2 Children | D177: 9259 | E177: 6775 | F177: 4872 | G177: 3960 | H177: 2931
A178: 3 | B178: 3+ Children | D178: 13581 | E178: 9925 | F178: 7132 | G178: 5802 | H178: 4297
A179: 1 | B179: Rider Comp. Maternidad | D179: 0 | E179: 0 | F179: 225 | G179: 225 | H179: 225
A180: 1 | B180: Transplante de organos | D180: 0 | E180: 0 | F180: 0 | G180: 0 | H180: 0
A184: TARIFAS SEMESTRALES
A185: EDAD
D186: CW2 | E186: CW3 | F186: CW4 | G186: CW5 | H186: CW6
A187: 18 | B187: 18-24 | D187: =$G$2*D152 -> 8907.71 | E187: 6123.09 | F187: 3987.19 | G187: 2731.09 | H187: 2077.07
A188: 25 | B188: 25-29 | D188: 9342.84 | E188: 6774.46 | F188: 4415.43 | G188: 3023.12 | H188: 2301.26
A189: 30 | B189: 30-34 | D189: 9761.01 | E189: 7245.63 | F189: 4956.03 | G189: 3652.76 | H189: 2794.69
A190: 35 | B190: 35-39 | D190: 10926.48 | E190: 8111.12 | F190: 5553.87 | G190: 4097.43 | H190: 3128.59
A191: 40 | B191: 40-44 | D191: 12650.57 | E191: 8896.05 | F191: 6173.97 | G191: 4518.78 | H191: 3454.01
A192: 45 | B192: 45-49 | D192: 14133.51 | E192: 9940.15 | F192: 6897.42 | G192: 5050.9 | H192: 3857.34
A193: 50 | B193: 50-54 | D193: 18473.15 | E193: 13111.67 | F193: 9057.17 | G193: 7201.11 | H193: 5507.23
A194: 55 | B194: 55-59 | D194: 19650.81 | E194: 13947.48 | F194: 9637.52 | G194: 7665.92 | H194: 5859.68
A195: 60 | B195: 60 | D195: 21400.34 | E195: 15143.16 | F195: 10968.35 | G195: 9114.94 | H195: 7327.78
A196: 61 | B196: 61 | D196: 22990.87 | E196: 16267.29 | F196: 11782.96 | G196: 9797.05 | H196: 7869.44
A197: 62 | B197: 62 | D197: 25166.52 | E197: 17817.54 | F197: 12902.85 | G197: 10726.67 | H197: 8616.74
A198: 63 | B198: 63 | D198: 26762.35 | E198: 18942.2 | F198: 13717.46 | G198: 11410.37 | H198: 9159.99
A199: 64 | B199: 64 | D199: 28943.83 | E199: 20496.16 | F199: 14842.12 | G199: 12342.64 | H199: 9912.06
A200: 65 | B200: 65 | D200: 37843.59 | E200: 26728.43 | F200: 18763.06 | G200: 16455.44 | H200: 13973.98
A201: 66 | B201: 66 | D201: 43959.26 | E201: 31056.94 | F201: 21801.55 | G201: 19125.05 | H201: 16236.02
A202: 67 | B202: 67 | D202: 48009.52 | E202: 33918.94 | F202: 23811.84 | G202: 20879.88 | H202: 17734.33
A203: 68 | B203: 68 | D203: =$G$2*D168 -> 53161.65 | E203: 37553.15 | F203: 26369.62 | G203: 23123.9 | H203: 19637.03
A204: 69 | B204: 69 | D204: 58487.09 | E204: 41315.09 | F204: 29006.37 | G204: 25438.94 | H204: 21608.1
A205: 70 | B205: 70 | D205: 71980.89 | E205: 50308.66 | F205: 34146.31 | G205: 29649.79 | H205: 25408.73
A206: 71 | B206: 71 | D206: 74807.91 | E206: 52276.55 | F206: 35481.91 | G206: 30810.49 | H206: 26412.55
A207: 72 | B207: 72 | D207: 76928.44 | E207: 53755.78 | F207: 36491.56 | G207: 31682.87 | H207: 27156.67
A208: 73 | B208: 73 | D208: 79749.1 | E208: 55734.8 | F208: 37828.75 | G208: 32848.34 | H208: 28162.61
A209: 74 | B209: 74 | D209: 81161.02 | E209: 56717.95 | F209: 38498.67 | G209: 33433.99 | H209: 28653.92
A210: 75 | B210: 75+ | D210: 84695.59 | E210: 59188.81 | F210: 40173.47 | G210: 34885.66 | H210: 29901.01
A211: 1 | B211: 1 Child | D211: 3087.78 | E211: 2253.03 | F211: 1619.68 | G211: 1318.11 | H211: 977.85
A212: 2 | B212: 2 Children | D212: 4907.27 | E212: 3590.75 | F212: 2582.16 | G212: 2098.8 | H212: 1553.43
A213: 3 | B213: 3+ Children | D213: 7197.93 | E213: 5260.25 | F213: 3779.96 | G213: 3075.06 | H213: 2277.41
A214: 1 | B214: Rider Comp. Maternidad | D214: =+D179*$G$2 -> 0 | E214: 0 | F214: 119.25 | G214: 119.25 | H214: 119.25
A215: 1 | B215: Transplante de organos | D215: 0 | E215: 0 | F215: 0 | G215: 0 | H215: 0
A220: COMPLETE (LATINAMERICA ONLY)
A221: TARIFAS ANUALES
A222: EDAD
... 335 more rows

Sheet 5 (hidden)
K1: D1 | L1: D2 | M1: D3 | N1: D4 | O1: D5 | P1: D6
B2: REGIÓN | C2: ='INGRESO DE DATOS'!W14 -> 5 | E2: FACTOR SEMESTRAL : | G2: 0.53 | I2: NEW BUSINESS DISCUOUNTS | K2: ='INGRESO DE DATOS'!O42 -> 1 | L2: ='INGRESO DE DATOS'!P42 -> 0.7 | M2: ='INGRESO DE DATOS'!Q42 -> 0.7 | N2: ='INGRESO DE DATOS'!R42 -> 0.7 | O2: ='INGRESO DE DATOS'!S42 -> 0.7 | P2: ='INGRESO DE DATOS'!T42 -> 0.9
A5: BUPA EXCLUSIVE CARE
A6: TARIFAS ANUALES
A7: EDAD
C8: DW1 | D8: DW2 | E8: DW3 | F8: DW4 | G8: DW5 | H8: DW6
A9: 18 | B9: 18-24 | D9: 14911 | E9: 9866 | F9: 6865 | G9: 4531 | H9: 3562
A10: 25 | B10: 25-29 | D10: 15641 | E10: 10896 | F10: 7599 | G10: 5009 | H10: 3944
A11: 30 | B11: 30-34 | D11: 16267 | E11: 11683 | F11: 8507 | G11: 5998 | H11: 4732
A12: 35 | B12: 35-39 | D12: 18224 | E12: 13082 | F12: 9531 | G12: 6722 | H12: 5298
A13: 40 | B13: 40-44 | D13: 21116 | E13: 14295 | F13: 10579 | G13: 7381 | H13: 5821
A14: 45 | B14: 45-49 | D14: 23604 | E14: 15990 | F14: 11810 | G14: 8253 | H14: 6505
A15: 50 | B15: 50-54 | D15: 30207 | E15: 20969 | F15: 15415 | G15: 11654 | H15: 9193
A16: 55 | B16: 55-59 | D16: 32131 | E16: 22313 | F16: 16399 | G16: 12397 | H16: 9783
A17: 60 | B17: 60 | D17: 34998 | E17: 24343 | F17: 18860 | G17: 14928 | H17: 12150
A18: 61 | B18: 61 | D18: 37605 | E18: 26155 | F18: 20247 | G18: 16043 | H18: 13050
A19: 62 | B19: 62 | D19: 41173 | E19: 28637 | F19: 22185 | G19: 17555 | H19: 14285
A20: 63 | B20: 63 | D20: 43770 | E20: 30447 | F20: 23578 | G20: 18678 | H20: 15193
A21: 64 | B21: 64 | D21: 47346 | E21: 32949 | F21: 25511 | G21: 20200 | H21: 16434
A22: 65 | B22: 65 | D22: 61879 | E22: 42968 | F22: 32247 | G22: 26931 | H22: 23167
A23: 66 | B23: 66 | D23: 71883 | E23: 49919 | F23: 37471 | G23: 31297 | H23: 26917
A24: 67 | B24: 67 | D24: 78520 | E24: 54517 | F24: 40927 | G24: 34181 | H24: 29393
A25: 68 | B25: 68 | D25: 86934 | E25: 60362 | F25: 45310 | G25: 37851 | H25: 32557
A26: 69 | B26: 69 | D26: 95657 | E26: 66424 | F26: 49850 | G26: 41637 | H26: 35815
A27: 70 | B27: 70 | D27: 117719 | E27: 80866 | F27: 58685 | G27: 48517 | H27: 42118
A28: 71 | B28: 71 | D28: 122339 | E28: 84045 | F28: 60987 | G28: 50427 | H28: 43772
A29: 72 | B29: 72 | D29: 125808 | E29: 86410 | F29: 62706 | G29: 51851 | H29: 45022
A30: 73 | B30: 73 | D30: 130426 | E30: 89587 | F30: 65011 | G30: 53762 | H30: 46671
A31: 74 | B31: 74 | D31: 132733 | E31: 91168 | F31: 66167 | G31: 54707 | H31: 47495
A32: 75 | B32: 75+ | D32: 138511 | E32: 95143 | F32: 69041 | G32: 57092 | H32: 49565
A33: 1 | B33: 1 Child | D33: 5180 | E33: 3811 | F33: 3060 | G33: 2386 | H33: 1864
A34: 2 | B34: 2 Children | D34: 8229 | E34: 6069 | F34: 4859 | G34: 3791 | H34: 2951
A35: 3 | B35: 3+ Children | D35: 12067 | E35: 8881 | F35: 7123 | G35: 5557 | H35: 4330
A36: 1 | B36: Rider Comp. Maternidad | D36: 0 | E36: 0 | F36: 225 | G36: 225 | H36: 225
A37: 1 | B37: Transplante de organos | D37: 0 | E37: 0 | F37: 0 | G37: 0 | H37: 0
A41: TARIFAS SEMESTRALES
A42: EDAD
D43: DW2 | E43: DW3 | F43: DW4 | G43: DW5 | H43: DW6
A44: 18 | B44: 18-24 | D44: =$G$2*D9 -> 7902.83 | E44: 5228.98 | F44: 3638.45 | G44: 2401.43 | H44: 1887.86
A45: 25 | B45: 25-29 | D45: 8289.73 | E45: 5774.88 | F45: 4027.47 | G45: 2654.77 | H45: 2090.32
A46: 30 | B46: 30-34 | D46: 8621.51 | E46: 6191.99 | F46: 4508.71 | G46: 3178.94 | H46: 2507.96
A47: 35 | B47: 35-39 | D47: 9658.72 | E47: 6933.46 | F47: 5051.43 | G47: 3562.66 | H47: 2807.94
A48: 40 | B48: 40-44 | D48: 11191.48 | E48: 7576.35 | F48: 5606.87 | G48: 3911.93 | H48: 3085.13
A49: 45 | B49: 45-49 | D49: 12510.12 | E49: 8474.7 | F49: 6259.3 | G49: 4374.09 | H49: 3447.65
A50: 50 | B50: 50-54 | D50: 16009.71 | E50: 11113.57 | F50: 8169.95 | G50: 6176.62 | H50: 4872.29
A51: 55 | B51: 55-59 | D51: 17029.43 | E51: 11825.89 | F51: 8691.47 | G51: 6570.41 | H51: 5184.99
A52: 60 | B52: 60 | D52: 18548.94 | E52: 12901.79 | F52: 9995.8 | G52: 7911.84 | H52: 6439.5
A53: 61 | B53: 61 | D53: 19930.65 | E53: 13862.15 | F53: 10730.91 | G53: 8502.79 | H53: 6916.5
A54: 62 | B54: 62 | D54: 21821.69 | E54: 15177.61 | F54: 11758.05 | G54: 9304.15 | H54: 7571.05
A55: 63 | B55: 63 | D55: 23198.1 | E55: 16136.91 | F55: 12496.34 | G55: 9899.34 | H55: 8052.29
A56: 64 | B56: 64 | D56: 25093.38 | E56: 17462.97 | F56: 13520.83 | G56: 10706 | H56: 8710.02
A57: 65 | B57: 65 | D57: 32795.87 | E57: 22773.04 | F57: 17090.91 | G57: 14273.43 | H57: 12278.51
A58: 66 | B58: 66 | D58: 38097.99 | E58: 26457.07 | F58: 19859.63 | G58: 16587.41 | H58: 14266.01
A59: 67 | B59: 67 | D59: 41615.6 | E59: 28894.01 | F59: 21691.31 | G59: 18115.93 | H59: 15578.29
A60: 68 | B60: 68 | D60: =$G$2*D25 -> 46075.02 | E60: 31991.86 | F60: 24014.3 | G60: 20061.03 | H60: 17255.21
A61: 69 | B61: 69 | D61: 50698.21 | E61: 35204.72 | F61: 26420.5 | G61: 22067.61 | H61: 18981.95
A62: 70 | B62: 70 | D62: 62391.07 | E62: 42858.98 | F62: 31103.05 | G62: 25714.01 | H62: 22322.54
A63: 71 | B63: 71 | D63: 64839.67 | E63: 44543.85 | F63: 32323.11 | G63: 26726.31 | H63: 23199.16
A64: 72 | B64: 72 | D64: 66678.24 | E64: 45797.3 | F64: 33234.18 | G64: 27481.03 | H64: 23861.66
A65: 73 | B65: 73 | D65: 69125.78 | E65: 47481.11 | F65: 34455.83 | G65: 28493.86 | H65: 24735.63
A66: 74 | B66: 74 | D66: 70348.49 | E66: 48319.04 | F66: 35068.51 | G66: 28994.71 | H66: 25172.35
A67: 75 | B67: 75+ | D67: 73410.83 | E67: 50425.79 | F67: 36591.73 | G67: 30258.76 | H67: 26269.45
A68: 1 | B68: 1 Child | D68: 2745.4 | E68: 2019.83 | F68: 1621.8 | G68: 1264.58 | H68: 987.92
A69: 2 | B69: 2 Children | D69: 4361.37 | E69: 3216.57 | F69: 2575.27 | G69: 2009.23 | H69: 1564.03
A70: 3 | B70: 3+ Children | D70: 6395.51 | E70: 4706.93 | F70: 3775.19 | G70: 2945.21 | H70: 2294.9
A71: 1 | B71: Rider Comp. Maternidad | D71: =+D36*$G$2 -> 0 | E71: 0 | F71: 119.25 | G71: 119.25 | H71: 119.25
A72: 1 | B72: Transplante de organos | D72: 0 | E72: 0 | F72: 0 | G72: 0 | H72: 0
A78: DIAMOND (LATINAMERICA ONLY)
A79: TARIFAS ANUALES
A80: EDAD
C81: DL1 | D81: DL2 | E81: DL3 | F81: DL4 | G81: DL5 | H81: DL6
A82: 18 | B82: - 24
A83: 25 | B83: - 29
A84: 30 | B84: - 34
A85: 35 | B85: - 39
A86: 40 | B86: - 44
A87: 45 | B87: - 49
A88: 50 | B88: - 54
A89: 55 | B89: - 59
A90: 60
A91: 61
A92: 62
A93: 63
A94: 64
A95: 65
A96: 66
A97: 67
A98: 68
A99: 69
A100: 70
A101: 71
A102: 72
A103: 73
A104: 74
A105: 75 | B105: o más
A106: 1 | B106: Hijo
A107: 2 | B107: Hijos
A108: 3 | B108: Hijos o más
A109: 1 | B109: Rider Comp. Maternidad
A110: 1 | B110: Transplante de organos | C110: 0 | D110: 0 | E110: 0 | F110: 0 | G110: 0 | H110: 0
A112: TARIFAS SEMESTRALES
A113: EDAD
C114: DL1 | D114: DL2 | E114: DL3 | F114: DL4 | G114: DL5 | H114: DL6
A115: 18 | B115: - 24 | C115: =+C82*$G$2 -> 0 | D115: 0 | E115: 0 | F115: 0 | G115: 0 | H115: 0
A116: 25 | B116: - 29 | C116: 0 | D116: 0 | E116: 0 | F116: 0 | G116: 0 | H116: 0
A117: 30 | B117: - 34 | C117: 0 | D117: 0 | E117: 0 | F117: 0 | G117: 0 | H117: 0
A118: 35 | B118: - 39 | C118: 0 | D118: 0 | E118: 0 | F118: 0 | G118: 0 | H118: 0
A119: 40 | B119: - 44 | C119: 0 | D119: 0 | E119: 0 | F119: 0 | G119: 0 | H119: 0
A120: 45 | B120: - 49 | C120: 0 | D120: 0 | E120: 0 | F120: 0 | G120: 0 | H120: 0
A121: 50 | B121: - 54 | C121: 0 | D121: 0 | E121: 0 | F121: 0 | G121: 0 | H121: 0
A122: 55 | B122: - 59 | C122: 0 | D122: 0 | E122: 0 | F122: 0 | G122: 0 | H122: 0
A123: 60 | C123: 0 | D123: 0 | E123: 0 | F123: 0 | G123: 0 | H123: 0
A124: 61 | C124: 0 | D124: 0 | E124: 0 | F124: 0 | G124: 0 | H124: 0
A125: 62 | C125: 0 | D125: 0 | E125: 0 | F125: 0 | G125: 0 | H125: 0
A126: 63 | C126: 0 | D126: 0 | E126: 0 | F126: 0 | G126: 0 | H126: 0
A127: 64 | C127: 0 | D127: 0 | E127: 0 | F127: 0 | G127: 0 | H127: 0
A128: 65 | C128: 0 | D128: 0 | E128: 0 | F128: 0 | G128: 0 | H128: 0
A129: 66 | C129: 0 | D129: 0 | E129: 0 | F129: 0 | G129: 0 | H129: 0
A130: 67 | C130: 0 | D130: 0 | E130: 0 | F130: 0 | G130: 0 | H130: 0
A131: 68 | C131: =+C98*$G$2 -> 0 | D131: 0 | E131: 0 | F131: 0 | G131: 0 | H131: 0
A132: 69 | C132: 0 | D132: 0 | E132: 0 | F132: 0 | G132: 0 | H132: 0
A133: 70 | C133: 0 | D133: 0 | E133: 0 | F133: 0 | G133: 0 | H133: 0
A134: 71 | C134: 0 | D134: 0 | E134: 0 | F134: 0 | G134: 0 | H134: 0
A135: 72 | C135: 0 | D135: 0 | E135: 0 | F135: 0 | G135: 0 | H135: 0
A136: 73 | C136: 0 | D136: 0 | E136: 0 | F136: 0 | G136: 0 | H136: 0
A137: 74 | C137: 0 | D137: 0 | E137: 0 | F137: 0 | G137: 0 | H137: 0
A138: 75 | B138: o más | C138: 0 | D138: 0 | E138: 0 | F138: 0 | G138: 0 | H138: 0
A139: 1 | B139: Hijo | C139: 0 | D139: 0 | E139: 0 | F139: 0 | G139: 0 | H139: 0
A140: 2 | B140: Hijos | C140: 0 | D140: 0 | E140: 0 | F140: 0 | G140: 0 | H140: 0
A141: 3 | B141: Hijos o más | C141: 0 | D141: 0 | E141: 0 | F141: 0 | G141: 0 | H141: 0
A142: 1 | B142: Rider Comp. Maternidad | C142: 0 | D142: 0 | E142: 0 | F142: 0 | G142: 0 | H142: 0
A143: 1 | B143: Transplante de organos | C143: 0 | D143: 0 | E143: 0 | F143: 0 | G143: 0 | H143: 0
A148: BUPA PRIVILEGE CARE
A149: TARIFAS ANUALES
A150: EDAD
C151: CW1 | D151: CW2 | E151: CW3 | F151: CW4 | G151: CW5 | H151: CW6
A152: 18 | B152: 18-24 | D152: 12543 | E152: 8625 | F152: 5960 | G152: 3912 | H152: 2980
A153: 25 | B153: 25-29 | D153: 13161 | E153: 9535 | F153: 6603 | G153: 4336 | H153: 3310
A154: 30 | B154: 30-34 | D154: 13753 | E154: 10219 | F154: 7397 | G154: 5252 | H154: 4005
A155: 35 | B155: 35-39 | D155: 15396 | E155: 11437 | F155: 8286 | G155: 5881 | H155: 4486
A156: 40 | B156: 40-44 | D156: 17822 | E156: 12527 | F156: 9214 | G156: 6484 | H156: 4949
A157: 45 | B157: 45-49 | D157: 19901 | E157: 14003 | F157: 10309 | G157: 7242 | H157: 5535
A158: 50 | B158: 50-54 | D158: 26016 | E158: 18463 | F158: 13529 | G158: 10334 | H158: 7899
A159: 55 | B159: 55-59 | D159: 27682 | E159: 19643 | F159: 14396 | G159: 10998 | H159: 8409
A160: 60 | B160: 60 | D160: 30146 | E160: 21337 | F160: 16375 | G160: 13086 | H160: 10505
A161: 61 | B161: 61 | D161: 32383 | E161: 22916 | F161: 17589 | G161: 14053 | H161: 11281
A162: 62 | B162: 62 | D162: 35450 | E162: 25097 | F162: 19265 | G162: 15386 | H162: 12359
A163: 63 | B163: 63 | D163: 37693 | E163: 26675 | F163: 20478 | G163: 16357 | H163: 13137
A164: 64 | B164: 64 | D164: 40768 | E164: 28861 | F164: 22153 | G164: 17696 | H164: 14214
A165: 65 | B165: 65 | D165: 53285 | E165: 37643 | F165: 28013 | G165: 23591 | H165: 20038
A166: 66 | B166: 66 | D166: 61907 | E166: 43732 | F166: 32544 | G166: 27413 | H166: 23289
A167: 67 | B167: 67 | D167: 67620 | E167: 47770 | F167: 35541 | G167: 29941 | H167: 25426
A168: 68 | B168: 68 | D168: 74878 | E168: 52891 | F168: 39366 | G168: 33166 | H168: 28155
A169: 69 | B169: 69 | D169: 82375 | E169: 58189 | F169: 43305 | G169: 36479 | H169: 30980
A170: 70 | B170: 70 | D170: 101373 | E170: 70848 | F170: 50969 | G170: 42511 | H170: 36441
A171: 71 | B171: 71 | D171: 105352 | E171: 73619 | F171: 52977 | G171: 44172 | H171: 37869
A172: 72 | B172: 72 | D172: 108323 | E172: 75712 | F172: 54474 | G172: 45429 | H172: 38941
A173: 73 | B173: 73 | D173: 112323 | E173: 78490 | F173: 56474 | G173: 47095 | H173: 40375
A174: 74 | B174: 74 | D174: 114305 | E174: 79881 | F174: 57467 | G174: 47928 | H174: 41086
A175: 75 | B175: 75+ | D175: 119277 | E175: 83348 | F175: 59973 | G175: 50016 | H175: 42876
A176: 1 | B176: 1 Child | D176: 4352 | E176: 3180 | F176: 2422 | G176: 1894 | H176: 1402
A177: 2 | B177: 2 Children | D177: 6923 | E177: 5063 | F177: 3852 | G177: 3014 | H177: 2228
A178: 3 | B178: 3+ Children | D178: 10141 | E178: 7419 | F178: 5646 | G178: 4412 | H178: 3268
A179: 1 | B179: Rider Comp. Maternidad | D179: 0 | E179: 0 | F179: 225 | G179: 225 | H179: 225
A180: 1 | B180: Transplante de organos | D180: 0 | E180: 0 | F180: 0 | G180: 0 | H180: 0
A184: TARIFAS SEMESTRALES
A185: EDAD
D186: CW2 | E186: CW3 | F186: CW4 | G186: CW5 | H186: CW6
A187: 18 | B187: 18-24 | D187: =$G$2*D152 -> 6647.79 | E187: 4571.25 | F187: 3158.8 | G187: 2073.36 | H187: 1579.4
A188: 25 | B188: 25-29 | D188: 6975.33 | E188: 5053.55 | F188: 3499.59 | G188: 2298.08 | H188: 1754.3
A189: 30 | B189: 30-34 | D189: 7289.09 | E189: 5416.07 | F189: 3920.41 | G189: 2783.56 | H189: 2122.65
A190: 35 | B190: 35-39 | D190: 8159.88 | E190: 6061.61 | F190: 4391.58 | G190: 3116.93 | H190: 2377.58
A191: 40 | B191: 40-44 | D191: 9445.66 | E191: 6639.31 | F191: 4883.42 | G191: 3436.52 | H191: 2622.97
A192: 45 | B192: 45-49 | D192: 10547.53 | E192: 7421.59 | F192: 5463.77 | G192: 3838.26 | H192: 2933.55
A193: 50 | B193: 50-54 | D193: 13788.48 | E193: 9785.39 | F193: 7170.37 | G193: 5477.02 | H193: 4186.47
A194: 55 | B194: 55-59 | D194: 14671.46 | E194: 10410.79 | F194: 7629.88 | G194: 5828.94 | H194: 4456.77
A195: 60 | B195: 60 | D195: 15977.38 | E195: 11308.61 | F195: 8678.75 | G195: 6935.58 | H195: 5567.65
A196: 61 | B196: 61 | D196: 17162.99 | E196: 12145.48 | F196: 9322.17 | G196: 7448.09 | H196: 5978.93
A197: 62 | B197: 62 | D197: 18788.5 | E197: 13301.41 | F197: 10210.45 | G197: 8154.58 | H197: 6550.27
A198: 63 | B198: 63 | D198: 19977.29 | E198: 14137.75 | F198: 10853.34 | G198: 8669.21 | H198: 6962.61
A199: 64 | B199: 64 | D199: 21607.04 | E199: 15296.33 | F199: 11741.09 | G199: 9378.88 | H199: 7533.42
A200: 65 | B200: 65 | D200: 28241.05 | E200: 19950.79 | F200: 14846.89 | G200: 12503.23 | H200: 10620.14
A201: 66 | B201: 66 | D201: 32810.71 | E201: 23177.96 | F201: 17248.32 | G201: 14528.89 | H201: 12343.17
A202: 67 | B202: 67 | D202: 35838.6 | E202: 25318.1 | F202: 18836.73 | G202: 15868.73 | H202: 13475.78
A203: 68 | B203: 68 | D203: =$G$2*D168 -> 39685.34 | E203: 28032.23 | F203: 20863.98 | G203: 17577.98 | H203: 14922.15
A204: 69 | B204: 69 | D204: 43658.75 | E204: 30840.17 | F204: 22951.65 | G204: 19333.87 | H204: 16419.4
A205: 70 | B205: 70 | D205: 53727.69 | E205: 37549.44 | F205: 27013.57 | G205: 22530.83 | H205: 19313.73
A206: 71 | B206: 71 | D206: 55836.56 | E206: 39018.07 | F206: 28077.81 | G206: 23411.16 | H206: 20070.57
A207: 72 | B207: 72 | D207: 57411.19 | E207: 40127.36 | F207: 28871.22 | G207: 24077.37 | H207: 20638.73
A208: 73 | B208: 73 | D208: 59531.19 | E208: 41599.7 | F208: 29931.22 | G208: 24960.35 | H208: 21398.75
A209: 74 | B209: 74 | D209: 60581.65 | E209: 42336.93 | F209: 30457.51 | G209: 25401.84 | H209: 21775.58
A210: 75 | B210: 75+ | D210: 63216.81 | E210: 44174.44 | F210: 31785.69 | G210: 26508.48 | H210: 22724.28
A211: 1 | B211: 1 Child | D211: 2306.56 | E211: 1685.4 | F211: 1283.66 | G211: 1003.82 | H211: 743.06
A212: 2 | B212: 2 Children | D212: 3669.19 | E212: 2683.39 | F212: 2041.56 | G212: 1597.42 | H212: 1180.84
A213: 3 | B213: 3+ Children | D213: 5374.73 | E213: 3932.07 | F213: 2992.38 | G213: 2338.36 | H213: 1732.04
A214: 1 | B214: Rider Comp. Maternidad | D214: =+D179*$G$2 -> 0 | E214: 0 | F214: 119.25 | G214: 119.25 | H214: 119.25
A215: 1 | B215: Transplante de organos | D215: 0 | E215: 0 | F215: 0 | G215: 0 | H215: 0
A220: COMPLETE (LATINAMERICA ONLY)
A221: TARIFAS ANUALES
A222: EDAD
... 335 more rows

Sheet 6 (hidden)
K1: D1 | L1: D2 | M1: D3 | N1: D4 | O1: D5 | P1: D6
B2: REGIÓN | C2: ='INGRESO DE DATOS'!W14 -> 5 | E2: FACTOR SEMESTRAL : | G2: 0.53 | I2: NEW BUSINESS DISCUOUNTS | K2: ='INGRESO DE DATOS'!O42 -> 1 | L2: ='INGRESO DE DATOS'!P42 -> 0.7 | M2: ='INGRESO DE DATOS'!Q42 -> 0.7 | N2: ='INGRESO DE DATOS'!R42 -> 0.7 | O2: ='INGRESO DE DATOS'!S42 -> 0.7 | P2: ='INGRESO DE DATOS'!T42 -> 0.9
A5: BUPA EXCLUSIVE CARE
A6: TARIFAS ANUALES
A7: EDAD
C8: DW1 | D8: DW2 | E8: DW3 | F8: DW4 | G8: DW5 | H8: DW6
A9: 18 | B9: 18-24 | D9: 14445 | E9: 9556 | F9: 6490 | G9: 4376 | H9: 3445
A10: 25 | B10: 25-29 | D10: 15151 | E10: 10549 | F10: 7190 | G10: 4844 | H10: 3815
A11: 30 | B11: 30-34 | D11: 15752 | E11: 11323 | F11: 8049 | G11: 5796 | H11: 4573
A12: 35 | B12: 35-39 | D12: 17647 | E12: 12673 | F12: 9019 | G12: 6501 | H12: 5124
A13: 40 | B13: 40-44 | D13: 20453 | E13: 13863 | F13: 10004 | G13: 7144 | H13: 5629
A14: 45 | B14: 45-49 | D14: 22868 | E14: 15496 | F14: 11181 | G14: 7984 | H14: 6295
A15: 50 | B15: 50-54 | D15: 29255 | E15: 20323 | F15: 14590 | G15: 11275 | H15: 8890
A16: 55 | B16: 55-59 | D16: 31124 | E16: 21622 | F16: 15518 | G16: 11992 | H16: 9461
A17: 60 | B17: 60 | D17: 33906 | E17: 23591 | F17: 17852 | G17: 14444 | H17: 11750
A18: 61 | B18: 61 | D18: 36422 | E18: 25342 | F18: 19172 | G18: 15528 | H18: 12626
A19: 62 | B19: 62 | D19: 39879 | E19: 27760 | F19: 20999 | G19: 16988 | H19: 13829
A20: 63 | B20: 63 | D20: 42406 | E20: 29513 | F20: 22310 | G20: 18068 | H20: 14698
A21: 64 | B21: 64 | D21: 45861 | E21: 31933 | F21: 24140 | G21: 19549 | H21: 15899
A22: 65 | B22: 65 | D22: 59951 | E22: 41646 | F22: 30518 | G22: 26063 | H22: 22413
A23: 66 | B23: 66 | D23: 69639 | E23: 48386 | F23: 35470 | G23: 30289 | H23: 26047
A24: 67 | B24: 67 | D24: 76077 | E24: 52845 | F24: 38741 | G24: 33078 | H24: 28449
A25: 68 | B25: 68 | D25: 84224 | E25: 58519 | F25: 42893 | G25: 36632 | H25: 31505
A26: 69 | B26: 69 | D26: 92670 | E26: 64379 | F26: 47187 | G26: 40299 | H26: 34664
A27: 70 | B27: 70 | D27: 114050 | E27: 78385 | F27: 55553 | G27: 46955 | H27: 40765
A28: 71 | B28: 71 | D28: 118527 | E28: 81461 | F28: 57732 | G28: 48802 | H28: 42370
A29: 72 | B29: 72 | D29: 121884 | E29: 83761 | F29: 59358 | G29: 50186 | H29: 43576
A30: 73 | B30: 73 | D30: 126361 | E30: 86839 | F30: 61542 | G30: 52034 | H30: 45176
A31: 74 | B31: 74 | D31: 128594 | E31: 88374 | F31: 62630 | G31: 52951 | H31: 45980
A32: 75 | B32: 75+ | D32: 134199 | E32: 92216 | F32: 65357 | G32: 55264 | H32: 47976
A33: 1 | B33: 1 Child | D33: 5017 | E33: 3693 | F33: 2892 | G33: 2312 | H33: 1808
A34: 2 | B34: 2 Children | D34: 7971 | E34: 5874 | F34: 4603 | G34: 3668 | H34: 2855
A35: 3 | B35: 3+ Children | D35: 11688 | E35: 8614 | F35: 6739 | G35: 5383 | H35: 4192
A36: 1 | B36: Rider Comp. Maternidad | D36: 0 | E36: 0 | F36: 225 | G36: 225 | H36: 225
A37: 1 | B37: Transplante de organos | D37: 0 | E37: 0 | F37: 0 | G37: 0 | H37: 0
A41: TARIFAS SEMESTRALES
A42: EDAD
D43: DW2 | E43: DW3 | F43: DW4 | G43: DW5 | H43: DW6
A44: 18 | B44: 18-24 | D44: =$G$2*D9 -> 7655.85 | E44: 5064.68 | F44: 3439.7 | G44: 2319.28 | H44: 1825.85
A45: 25 | B45: 25-29 | D45: 8030.03 | E45: 5590.97 | F45: 3810.7 | G45: 2567.32 | H45: 2021.95
A46: 30 | B46: 30-34 | D46: 8348.56 | E46: 6001.19 | F46: 4265.97 | G46: 3071.88 | H46: 2423.69
A47: 35 | B47: 35-39 | D47: 9352.91 | E47: 6716.69 | F47: 4780.07 | G47: 3445.53 | H47: 2715.72
A48: 40 | B48: 40-44 | D48: 10840.09 | E48: 7347.39 | F48: 5302.12 | G48: 3786.32 | H48: 2983.37
A49: 45 | B49: 45-49 | D49: 12120.04 | E49: 8212.88 | F49: 5925.93 | G49: 4231.52 | H49: 3336.35
A50: 50 | B50: 50-54 | D50: 15505.15 | E50: 10771.19 | F50: 7732.7 | G50: 5975.75 | H50: 4711.7
A51: 55 | B51: 55-59 | D51: 16495.72 | E51: 11459.66 | F51: 8224.54 | G51: 6355.76 | H51: 5014.33
A52: 60 | B52: 60 | D52: 17970.18 | E52: 12503.23 | F52: 9461.56 | G52: 7655.32 | H52: 6227.5
A53: 61 | B53: 61 | D53: 19303.66 | E53: 13431.26 | F53: 10161.16 | G53: 8229.84 | H53: 6691.78
A54: 62 | B54: 62 | D54: 21135.87 | E54: 14712.8 | F54: 11129.47 | G54: 9003.64 | H54: 7329.37
A55: 63 | B55: 63 | D55: 22475.18 | E55: 15641.89 | F55: 11824.3 | G55: 9576.04 | H55: 7789.94
A56: 64 | B56: 64 | D56: 24306.33 | E56: 16924.49 | F56: 12794.2 | G56: 10360.97 | H56: 8426.47
A57: 65 | B57: 65 | D57: 31774.03 | E57: 22072.38 | F57: 16174.54 | G57: 13813.39 | H57: 11878.89
A58: 66 | B58: 66 | D58: 36908.67 | E58: 25644.58 | F58: 18799.1 | G58: 16053.17 | H58: 13804.91
A59: 67 | B59: 67 | D59: 40320.81 | E59: 28007.85 | F59: 20532.73 | G59: 17531.34 | H59: 15077.97
A60: 68 | B60: 68 | D60: =$G$2*D25 -> 44638.72 | E60: 31015.07 | F60: 22733.29 | G60: 19414.96 | H60: 16697.65
A61: 69 | B61: 69 | D61: 49115.1 | E61: 34120.87 | F61: 25009.11 | G61: 21358.47 | H61: 18371.92
A62: 70 | B62: 70 | D62: 60446.5 | E62: 41544.05 | F62: 29443.09 | G62: 24886.15 | H62: 21605.45
A63: 71 | B63: 71 | D63: 62819.31 | E63: 43174.33 | F63: 30597.96 | G63: 25865.06 | H63: 22456.1
A64: 72 | B64: 72 | D64: 64598.52 | E64: 44393.33 | F64: 31459.74 | G64: 26598.58 | H64: 23095.28
A65: 73 | B65: 73 | D65: 66971.33 | E65: 46024.67 | F65: 32617.26 | G65: 27578.02 | H65: 23943.28
A66: 74 | B66: 74 | D66: 68154.82 | E66: 46838.22 | F66: 33193.9 | G66: 28064.03 | H66: 24369.4
A67: 75 | B67: 75+ | D67: 71125.47 | E67: 48874.48 | F67: 34639.21 | G67: 29289.92 | H67: 25427.28
A68: 1 | B68: 1 Child | D68: 2659.01 | E68: 1957.29 | F68: 1532.76 | G68: 1225.36 | H68: 958.24
A69: 2 | B69: 2 Children | D69: 4224.63 | E69: 3113.22 | F69: 2439.59 | G69: 1944.04 | H69: 1513.15
A70: 3 | B70: 3+ Children | D70: 6194.64 | E70: 4565.42 | F70: 3571.67 | G70: 2852.99 | H70: 2221.76
A71: 1 | B71: Rider Comp. Maternidad | D71: =+D36*$G$2 -> 0 | E71: 0 | F71: 119.25 | G71: 119.25 | H71: 119.25
A72: 1 | B72: Transplante de organos | D72: 0 | E72: 0 | F72: 0 | G72: 0 | H72: 0
A78: DIAMOND (LATINAMERICA ONLY)
A79: TARIFAS ANUALES
A80: EDAD
C81: DL1 | D81: DL2 | E81: DL3 | F81: DL4 | G81: DL5 | H81: DL6
A82: 18 | B82: - 24
A83: 25 | B83: - 29
A84: 30 | B84: - 34
A85: 35 | B85: - 39
A86: 40 | B86: - 44
A87: 45 | B87: - 49
A88: 50 | B88: - 54
A89: 55 | B89: - 59
A90: 60
A91: 61
A92: 62
A93: 63
A94: 64
A95: 65
A96: 66
A97: 67
A98: 68
A99: 69
A100: 70
A101: 71
A102: 72
A103: 73
A104: 74
A105: 75 | B105: o más
A106: 1 | B106: Hijo
A107: 2 | B107: Hijos
A108: 3 | B108: Hijos o más
A109: 1 | B109: Rider Comp. Maternidad
A110: 1 | B110: Transplante de organos | C110: 0 | D110: 0 | E110: 0 | F110: 0 | G110: 0 | H110: 0
A112: TARIFAS SEMESTRALES
A113: EDAD
C114: DL1 | D114: DL2 | E114: DL3 | F114: DL4 | G114: DL5 | H114: DL6
A115: 18 | B115: - 24 | C115: =+C82*$G$2 -> 0 | D115: 0 | E115: 0 | F115: 0 | G115: 0 | H115: 0
A116: 25 | B116: - 29 | C116: 0 | D116: 0 | E116: 0 | F116: 0 | G116: 0 | H116: 0
A117: 30 | B117: - 34 | C117: 0 | D117: 0 | E117: 0 | F117: 0 | G117: 0 | H117: 0
A118: 35 | B118: - 39 | C118: 0 | D118: 0 | E118: 0 | F118: 0 | G118: 0 | H118: 0
A119: 40 | B119: - 44 | C119: 0 | D119: 0 | E119: 0 | F119: 0 | G119: 0 | H119: 0
A120: 45 | B120: - 49 | C120: 0 | D120: 0 | E120: 0 | F120: 0 | G120: 0 | H120: 0
A121: 50 | B121: - 54 | C121: 0 | D121: 0 | E121: 0 | F121: 0 | G121: 0 | H121: 0
A122: 55 | B122: - 59 | C122: 0 | D122: 0 | E122: 0 | F122: 0 | G122: 0 | H122: 0
A123: 60 | C123: 0 | D123: 0 | E123: 0 | F123: 0 | G123: 0 | H123: 0
A124: 61 | C124: 0 | D124: 0 | E124: 0 | F124: 0 | G124: 0 | H124: 0
A125: 62 | C125: 0 | D125: 0 | E125: 0 | F125: 0 | G125: 0 | H125: 0
A126: 63 | C126: 0 | D126: 0 | E126: 0 | F126: 0 | G126: 0 | H126: 0
A127: 64 | C127: 0 | D127: 0 | E127: 0 | F127: 0 | G127: 0 | H127: 0
A128: 65 | C128: 0 | D128: 0 | E128: 0 | F128: 0 | G128: 0 | H128: 0
A129: 66 | C129: 0 | D129: 0 | E129: 0 | F129: 0 | G129: 0 | H129: 0
A130: 67 | C130: 0 | D130: 0 | E130: 0 | F130: 0 | G130: 0 | H130: 0
A131: 68 | C131: =+C98*$G$2 -> 0 | D131: 0 | E131: 0 | F131: 0 | G131: 0 | H131: 0
A132: 69 | C132: 0 | D132: 0 | E132: 0 | F132: 0 | G132: 0 | H132: 0
A133: 70 | C133: 0 | D133: 0 | E133: 0 | F133: 0 | G133: 0 | H133: 0
A134: 71 | C134: 0 | D134: 0 | E134: 0 | F134: 0 | G134: 0 | H134: 0
A135: 72 | C135: 0 | D135: 0 | E135: 0 | F135: 0 | G135: 0 | H135: 0
A136: 73 | C136: 0 | D136: 0 | E136: 0 | F136: 0 | G136: 0 | H136: 0
A137: 74 | C137: 0 | D137: 0 | E137: 0 | F137: 0 | G137: 0 | H137: 0
A138: 75 | B138: o más | C138: 0 | D138: 0 | E138: 0 | F138: 0 | G138: 0 | H138: 0
A139: 1 | B139: Hijo | C139: 0 | D139: 0 | E139: 0 | F139: 0 | G139: 0 | H139: 0
A140: 2 | B140: Hijos | C140: 0 | D140: 0 | E140: 0 | F140: 0 | G140: 0 | H140: 0
A141: 3 | B141: Hijos o más | C141: 0 | D141: 0 | E141: 0 | F141: 0 | G141: 0 | H141: 0
A142: 1 | B142: Rider Comp. Maternidad | C142: 0 | D142: 0 | E142: 0 | F142: 0 | G142: 0 | H142: 0
A143: 1 | B143: Transplante de organos | C143: 0 | D143: 0 | E143: 0 | F143: 0 | G143: 0 | H143: 0
A148: BUPA PRIVILEGE CARE
A149: TARIFAS ANUALES
A150: EDAD
C151: CW1 | D151: CW2 | E151: CW3 | F151: CW4 | G151: CW5 | H151: CW6
A152: 18 | B152: 18-24 | D152: 12152 | E152: 8357 | F152: 5635 | G152: 3787 | H152: 2888
A153: 25 | B153: 25-29 | D153: 12751 | E153: 9250 | F153: 6245 | G153: 4193 | H153: 3193
A154: 30 | B154: 30-34 | D154: 13321 | E154: 9900 | F154: 7003 | G154: 5073 | H154: 3873
A155: 35 | B155: 35-39 | D155: 14914 | E155: 11083 | F155: 7842 | G155: 5688 | H155: 4338
A156: 40 | B156: 40-44 | D156: 17261 | E156: 12141 | F156: 8728 | G156: 6271 | H156: 4787
A157: 45 | B157: 45-49 | D157: 19283 | E157: 13567 | F157: 9755 | G157: 7008 | H157: 5358
A158: 50 | B158: 50-54 | D158: 25210 | E158: 17896 | F158: 12799 | G158: 10002 | H158: 7640
A159: 55 | B159: 55-59 | D159: 26818 | E159: 19041 | F159: 13627 | G159: 10640 | H159: 8138
A160: 60 | B160: 60 | D160: 29206 | E160: 20682 | F160: 15501 | G160: 12655 | H160: 10168
A161: 61 | B161: 61 | D161: 31376 | E161: 22204 | F161: 16653 | G161: 13606 | H161: 10916
A162: 62 | B162: 62 | D162: 34344 | E162: 24322 | F162: 18238 | G162: 14897 | H162: 11954
A163: 63 | B163: 63 | D163: 36520 | E163: 25860 | F163: 19386 | G163: 15833 | H163: 12711
A164: 64 | B164: 64 | D164: 39501 | E164: 27979 | F164: 20974 | G164: 17127 | H164: 13756
A165: 65 | B165: 65 | D165: 51636 | E165: 36490 | F165: 26519 | G165: 22845 | H165: 19394
A166: 66 | B166: 66 | D166: 59987 | E166: 42401 | F166: 30812 | G166: 26545 | H166: 22538
A167: 67 | B167: 67 | D167: 65518 | E167: 46315 | F167: 33650 | G167: 28983 | H167: 24615
A168: 68 | B168: 68 | D168: 72550 | E168: 51273 | F168: 37275 | G168: 32110 | H168: 27254
A169: 69 | B169: 69 | D169: 79817 | E169: 56404 | F169: 40999 | G169: 35317 | H169: 29990
A170: 70 | B170: 70 | D170: 98226 | E170: 68688 | F170: 48258 | G170: 41150 | H170: 35276
A171: 71 | B171: 71 | D171: 102089 | E171: 71382 | F171: 50154 | G171: 42767 | H171: 36666
A172: 72 | B172: 72 | D172: 104980 | E172: 73405 | F172: 51574 | G172: 43979 | H172: 37694
A173: 73 | B173: 73 | D173: 108837 | E173: 76102 | F173: 53475 | G173: 45591 | H173: 39090
A174: 74 | B174: 74 | D174: 110760 | E174: 77442 | F174: 54415 | G174: 46405 | H174: 39780
A175: 75 | B175: 75+ | D175: 115592 | E175: 80815 | F175: 56785 | G175: 48425 | H175: 41505
A176: 1 | B176: 1 Child | D176: 4217 | E176: 3087 | F176: 2293 | G176: 1832 | H176: 1353
A177: 2 | B177: 2 Children | D177: 6711 | E177: 4909 | F177: 3647 | G177: 2913 | H177: 2155
A178: 3 | B178: 3+ Children | D178: 9820 | E178: 7196 | F178: 5340 | G178: 4265 | H178: 3162
A179: 1 | B179: Rider Comp. Maternidad | D179: 0 | E179: 0 | F179: 225 | G179: 225 | H179: 225
A180: 1 | B180: Transplante de organos | D180: 0 | E180: 0 | F180: 0 | G180: 0 | H180: 0
A184: TARIFAS SEMESTRALES
A185: EDAD
D186: CW2 | E186: CW3 | F186: CW4 | G186: CW5 | H186: CW6
A187: 18 | B187: 18-24 | D187: =$G$2*D152 -> 6440.56 | E187: 4429.21 | F187: 2986.55 | G187: 2007.11 | H187: 1530.64
A188: 25 | B188: 25-29 | D188: 6758.03 | E188: 4902.5 | F188: 3309.85 | G188: 2222.29 | H188: 1692.29
A189: 30 | B189: 30-34 | D189: 7060.13 | E189: 5247 | F189: 3711.59 | G189: 2688.69 | H189: 2052.69
A190: 35 | B190: 35-39 | D190: 7904.42 | E190: 5873.99 | F190: 4156.26 | G190: 3014.64 | H190: 2299.14
A191: 40 | B191: 40-44 | D191: 9148.33 | E191: 6434.73 | F191: 4625.84 | G191: 3323.63 | H191: 2537.11
A192: 45 | B192: 45-49 | D192: 10219.99 | E192: 7190.51 | F192: 5170.15 | G192: 3714.24 | H192: 2839.74
A193: 50 | B193: 50-54 | D193: 13361.3 | E193: 9484.88 | F193: 6783.47 | G193: 5301.06 | H193: 4049.2
A194: 55 | B194: 55-59 | D194: 14213.54 | E194: 10091.73 | F194: 7222.31 | G194: 5639.2 | H194: 4313.14
A195: 60 | B195: 60 | D195: 15479.18 | E195: 10961.46 | F195: 8215.53 | G195: 6707.15 | H195: 5389.04
A196: 61 | B196: 61 | D196: 16629.28 | E196: 11768.12 | F196: 8826.09 | G196: 7211.18 | H196: 5785.48
A197: 62 | B197: 62 | D197: 18202.32 | E197: 12890.66 | F197: 9666.14 | G197: 7895.41 | H197: 6335.62
A198: 63 | B198: 63 | D198: 19355.6 | E198: 13705.8 | F198: 10274.58 | G198: 8391.49 | H198: 6736.83
A199: 64 | B199: 64 | D199: 20935.53 | E199: 14828.87 | F199: 11116.22 | G199: 9077.31 | H199: 7290.68
A200: 65 | B200: 65 | D200: 27367.08 | E200: 19339.7 | F200: 14055.07 | G200: 12107.85 | H200: 10278.82
A201: 66 | B201: 66 | D201: 31793.11 | E201: 22472.53 | F201: 16330.36 | G201: 14068.85 | H201: 11945.14
A202: 67 | B202: 67 | D202: 34724.54 | E202: 24546.95 | F202: 17834.5 | G202: 15360.99 | H202: 13045.95
A203: 68 | B203: 68 | D203: =$G$2*D168 -> 38451.5 | E203: 27174.69 | F203: 19755.75 | G203: 17018.3 | H203: 14444.62
A204: 69 | B204: 69 | D204: 42303.01 | E204: 29894.12 | F204: 21729.47 | G204: 18718.01 | H204: 15894.7
A205: 70 | B205: 70 | D205: 52059.78 | E205: 36404.64 | F205: 25576.74 | G205: 21809.5 | H205: 18696.28
A206: 71 | B206: 71 | D206: 54107.17 | E206: 37832.46 | F206: 26581.62 | G206: 22666.51 | H206: 19432.98
A207: 72 | B207: 72 | D207: 55639.4 | E207: 38904.65 | F207: 27334.22 | G207: 23308.87 | H207: 19977.82
A208: 73 | B208: 73 | D208: 57683.61 | E208: 40334.06 | F208: 28341.75 | G208: 24163.23 | H208: 20717.7
A209: 74 | B209: 74 | D209: 58702.8 | E209: 41044.26 | F209: 28839.95 | G209: 24594.65 | H209: 21083.4
A210: 75 | B210: 75+ | D210: 61263.76 | E210: 42831.95 | F210: 30096.05 | G210: 25665.25 | H210: 21997.65
A211: 1 | B211: 1 Child | D211: 2235.01 | E211: 1636.11 | F211: 1215.29 | G211: 970.96 | H211: 717.09
A212: 2 | B212: 2 Children | D212: 3556.83 | E212: 2601.77 | F212: 1932.91 | G212: 1543.89 | H212: 1142.15
A213: 3 | B213: 3+ Children | D213: 5204.6 | E213: 3813.88 | F213: 2830.2 | G213: 2260.45 | H213: 1675.86
A214: 1 | B214: Rider Comp. Maternidad | D214: =+D179*$G$2 -> 0 | E214: 0 | F214: 119.25 | G214: 119.25 | H214: 119.25
A215: 1 | B215: Transplante de organos | D215: 0 | E215: 0 | F215: 0 | G215: 0 | H215: 0
A220: COMPLETE (LATINAMERICA ONLY)
A221: TARIFAS ANUALES
A222: EDAD
... 335 more rows

Sheet 8 (hidden)
K1: D1 | L1: D2 | M1: D3 | N1: D4 | O1: D5 | P1: D6
B2: REGIÓN | C2: ='INGRESO DE DATOS'!W14 -> 5 | E2: FACTOR SEMESTRAL : | G2: 0.53 | I2: NEW BUSINESS DISCUOUNTS | K2: ='INGRESO DE DATOS'!O42 -> 1 | L2: ='INGRESO DE DATOS'!P42 -> 0.7 | M2: ='INGRESO DE DATOS'!Q42 -> 0.7 | N2: ='INGRESO DE DATOS'!R42 -> 0.7 | O2: ='INGRESO DE DATOS'!S42 -> 0.7 | P2: ='INGRESO DE DATOS'!T42 -> 0.9
A5: BUPA EXCLUSIVE CARE
A6: TARIFAS ANUALES
A7: EDAD
C8: DW1 | D8: DW2 | E8: DW3 | F8: DW4 | G8: DW5 | H8: DW6
A9: 18 | B9: 18-24 | D9: 11957 | E9: 7899 | F9: 5579 | G9: 3886 | H9: 3056
A10: 25 | B10: 25-29 | D10: 12540 | E10: 8728 | F10: 6183 | G10: 4308 | H10: 3384
A11: 30 | B11: 30-34 | D11: 13047 | E11: 9364 | F11: 6920 | G11: 5165 | H11: 4073
A12: 35 | B12: 35-39 | D12: 14613 | E12: 10483 | F12: 7760 | G12: 5789 | H12: 4561
A13: 40 | B13: 40-44 | D13: 16942 | E13: 11470 | F13: 8609 | G13: 6365 | H13: 5015
A14: 45 | B14: 45-49 | D14: 18944 | E14: 12823 | F14: 9628 | G14: 7108 | H14: 5606
A15: 50 | B15: 50-54 | D15: 24238 | E15: 16822 | F15: 12560 | G15: 10048 | H15: 7921
A16: 55 | B16: 55-59 | D16: 25791 | E16: 17905 | F16: 13360 | G16: 10691 | H16: 8434
A17: 60 | B17: 60 | D17: 28098 | E17: 19530 | F17: 15376 | G17: 12882 | H17: 10475
A18: 61 | B18: 61 | D18: 30183 | E18: 20989 | F18: 16514 | G18: 13846 | H18: 11259
A19: 62 | B19: 62 | D19: 33047 | E19: 22989 | F19: 18095 | G19: 15157 | H19: 12326
A20: 63 | B20: 63 | D20: 35141 | E20: 24442 | F20: 19227 | G20: 16123 | H20: 13106
A21: 64 | B21: 64 | D21: 38010 | E21: 26448 | F21: 20808 | G21: 17438 | H21: 14186
A22: 65 | B22: 65 | D22: 49693 | E22: 34493 | F22: 26308 | G22: 23255 | H22: 20003
A23: 66 | B23: 66 | D23: 57728 | E23: 40085 | F23: 30569 | G23: 27036 | H23: 23244
A24: 67 | B24: 67 | D24: 63059 | E24: 43781 | F24: 33391 | G24: 29518 | H24: 25390
A25: 68 | B25: 68 | D25: 69822 | E25: 48471 | F25: 36978 | G25: 32697 | H25: 28114
A26: 69 | B26: 69 | D26: 76822 | E26: 53328 | F26: 40687 | G26: 35970 | H26: 30936
A27: 70 | B27: 70 | D27: 94548 | E27: 64942 | F27: 47895 | G27: 41916 | H27: 36393
A28: 71 | B28: 71 | D28: 98265 | E28: 67491 | F28: 49779 | G28: 43566 | H28: 37826
A29: 72 | B29: 72 | D29: 101047 | E29: 69402 | F29: 51180 | G29: 44799 | H29: 38893
A30: 73 | B30: 73 | D30: 104758 | E30: 71955 | F30: 53058 | G30: 46444 | H30: 40318
A31: 74 | B31: 74 | D31: 106610 | E31: 73222 | F31: 54008 | G31: 47271 | H31: 41035
A32: 75 | B32: 75+ | D32: 111255 | E32: 76411 | F32: 56351 | G32: 49326 | H32: 42827
A33: 1 | B33: 1 Child | D33: 4156 | E33: 3062 | F33: 2494 | G33: 2066 | H33: 1610
A34: 2 | B34: 2 Children | D34: 6611 | E34: 4873 | F34: 3970 | G34: 3275 | H34: 2556
A35: 3 | B35: 3+ Children | D35: 9686 | E35: 7139 | F35: 5814 | G35: 4804 | H35: 3745
A36: 1 | B36: Rider Comp. Maternidad | D36: 0 | E36: 0 | F36: 225 | G36: 225 | H36: 225
A37: 1 | B37: Transplante de organos | D37: 0 | E37: 0 | F37: 0 | G37: 0 | H37: 0
A41: TARIFAS SEMESTRALES
A42: EDAD
D43: DW2 | E43: DW3 | F43: DW4 | G43: DW5 | H43: DW6
A44: 18 | B44: 18-24 | D44: =$G$2*D9 -> 6337.21 | E44: 4186.47 | F44: 2956.87 | G44: 2059.58 | H44: 1619.68
A45: 25 | B45: 25-29 | D45: 6646.2 | E45: 4625.84 | F45: 3276.99 | G45: 2283.24 | H45: 1793.52
A46: 30 | B46: 30-34 | D46: 6914.91 | E46: 4962.92 | F46: 3667.6 | G46: 2737.45 | H46: 2158.69
A47: 35 | B47: 35-39 | D47: 7744.89 | E47: 5555.99 | F47: 4112.8 | G47: 3068.17 | H47: 2417.33
A48: 40 | B48: 40-44 | D48: 8979.26 | E48: 6079.1 | F48: 4562.77 | G48: 3373.45 | H48: 2657.95
A49: 45 | B49: 45-49 | D49: 10040.32 | E49: 6796.19 | F49: 5102.84 | G49: 3767.24 | H49: 2971.18
A50: 50 | B50: 50-54 | D50: 12846.14 | E50: 8915.66 | F50: 6656.8 | G50: 5325.44 | H50: 4198.13
A51: 55 | B51: 55-59 | D51: 13669.23 | E51: 9489.65 | F51: 7080.8 | G51: 5666.23 | H51: 4470.02
A52: 60 | B52: 60 | D52: 14891.94 | E52: 10350.9 | F52: 8149.28 | G52: 6827.46 | H52: 5551.75
A53: 61 | B53: 61 | D53: 15996.99 | E53: 11124.17 | F53: 8752.42 | G53: 7338.38 | H53: 5967.27
A54: 62 | B54: 62 | D54: 17514.91 | E54: 12184.17 | F54: 9590.35 | G54: 8033.21 | H54: 6532.78
A55: 63 | B55: 63 | D55: 18624.73 | E55: 12954.26 | F55: 10190.31 | G55: 8545.19 | H55: 6946.18
A56: 64 | B56: 64 | D56: 20145.3 | E56: 14017.44 | F56: 11028.24 | G56: 9242.14 | H56: 7518.58
A57: 65 | B57: 65 | D57: 26337.29 | E57: 18281.29 | F57: 13943.24 | G57: 12325.15 | H57: 10601.59
A58: 66 | B58: 66 | D58: 30595.84 | E58: 21245.05 | F58: 16201.57 | G58: 14329.08 | H58: 12319.32
A59: 67 | B59: 67 | D59: 33421.27 | E59: 23203.93 | F59: 17697.23 | G59: 15644.54 | H59: 13456.7
A60: 68 | B60: 68 | D60: =$G$2*D25 -> 37005.66 | E60: 25689.63 | F60: 19598.34 | G60: 17329.41 | H60: 14900.42
A61: 69 | B61: 69 | D61: 40715.66 | E61: 28263.84 | F61: 21564.11 | G61: 19064.1 | H61: 16396.08
A62: 70 | B62: 70 | D62: 50110.44 | E62: 34419.26 | F62: 25384.35 | G62: 22215.48 | H62: 19288.29
A63: 71 | B63: 71 | D63: 52080.45 | E63: 35770.23 | F63: 26382.87 | G63: 23089.98 | H63: 20047.78
A64: 72 | B64: 72 | D64: 53554.91 | E64: 36783.06 | F64: 27125.4 | G64: 23743.47 | H64: 20613.29
A65: 73 | B65: 73 | D65: 55521.74 | E65: 38136.15 | F65: 28120.74 | G65: 24615.32 | H65: 21368.54
A66: 74 | B66: 74 | D66: 56503.3 | E66: 38807.66 | F66: 28624.24 | G66: 25053.63 | H66: 21748.55
A67: 75 | B67: 75+ | D67: 58965.15 | E67: 40497.83 | F67: 29866.03 | G67: 26142.78 | H67: 22698.31
A68: 1 | B68: 1 Child | D68: 2202.68 | E68: 1622.86 | F68: 1321.82 | G68: 1094.98 | H68: 853.3
A69: 2 | B69: 2 Children | D69: 3503.83 | E69: 2582.69 | F69: 2104.1 | G69: 1735.75 | H69: 1354.68
A70: 3 | B70: 3+ Children | D70: 5133.58 | E70: 3783.67 | F70: 3081.42 | G70: 2546.12 | H70: 1984.85
A71: 1 | B71: Rider Comp. Maternidad | D71: =+D36*$G$2 -> 0 | E71: 0 | F71: 119.25 | G71: 119.25 | H71: 119.25
A72: 1 | B72: Transplante de organos | D72: 0 | E72: 0 | F72: 0 | G72: 0 | H72: 0
A78: DIAMOND (LATINAMERICA ONLY)
A79: TARIFAS ANUALES
A80: EDAD
C81: DL1 | D81: DL2 | E81: DL3 | F81: DL4 | G81: DL5 | H81: DL6
A82: 18 | B82: - 24
A83: 25 | B83: - 29
A84: 30 | B84: - 34
A85: 35 | B85: - 39
A86: 40 | B86: - 44
A87: 45 | B87: - 49
A88: 50 | B88: - 54
A89: 55 | B89: - 59
A90: 60
A91: 61
A92: 62
A93: 63
A94: 64
A95: 65
A96: 66
A97: 67
A98: 68
A99: 69
A100: 70
A101: 71
A102: 72
A103: 73
A104: 74
A105: 75 | B105: o más
A106: 1 | B106: Hijo
A107: 2 | B107: Hijos
A108: 3 | B108: Hijos o más
A109: 1 | B109: Rider Comp. Maternidad
A110: 1 | B110: Transplante de organos | C110: 0 | D110: 0 | E110: 0 | F110: 0 | G110: 0 | H110: 0
A112: TARIFAS SEMESTRALES
A113: EDAD
C114: DL1 | D114: DL2 | E114: DL3 | F114: DL4 | G114: DL5 | H114: DL6
A115: 18 | B115: - 24 | C115: =+C82*$G$2 -> 0 | D115: 0 | E115: 0 | F115: 0 | G115: 0 | H115: 0
A116: 25 | B116: - 29 | C116: 0 | D116: 0 | E116: 0 | F116: 0 | G116: 0 | H116: 0
A117: 30 | B117: - 34 | C117: 0 | D117: 0 | E117: 0 | F117: 0 | G117: 0 | H117: 0
A118: 35 | B118: - 39 | C118: 0 | D118: 0 | E118: 0 | F118: 0 | G118: 0 | H118: 0
A119: 40 | B119: - 44 | C119: 0 | D119: 0 | E119: 0 | F119: 0 | G119: 0 | H119: 0
A120: 45 | B120: - 49 | C120: 0 | D120: 0 | E120: 0 | F120: 0 | G120: 0 | H120: 0
A121: 50 | B121: - 54 | C121: 0 | D121: 0 | E121: 0 | F121: 0 | G121: 0 | H121: 0
A122: 55 | B122: - 59 | C122: 0 | D122: 0 | E122: 0 | F122: 0 | G122: 0 | H122: 0
A123: 60 | C123: 0 | D123: 0 | E123: 0 | F123: 0 | G123: 0 | H123: 0
A124: 61 | C124: 0 | D124: 0 | E124: 0 | F124: 0 | G124: 0 | H124: 0
A125: 62 | C125: 0 | D125: 0 | E125: 0 | F125: 0 | G125: 0 | H125: 0
A126: 63 | C126: 0 | D126: 0 | E126: 0 | F126: 0 | G126: 0 | H126: 0
A127: 64 | C127: 0 | D127: 0 | E127: 0 | F127: 0 | G127: 0 | H127: 0
A128: 65 | C128: 0 | D128: 0 | E128: 0 | F128: 0 | G128: 0 | H128: 0
A129: 66 | C129: 0 | D129: 0 | E129: 0 | F129: 0 | G129: 0 | H129: 0
A130: 67 | C130: 0 | D130: 0 | E130: 0 | F130: 0 | G130: 0 | H130: 0
A131: 68 | C131: =+C98*$G$2 -> 0 | D131: 0 | E131: 0 | F131: 0 | G131: 0 | H131: 0
A132: 69 | C132: 0 | D132: 0 | E132: 0 | F132: 0 | G132: 0 | H132: 0
A133: 70 | C133: 0 | D133: 0 | E133: 0 | F133: 0 | G133: 0 | H133: 0
A134: 71 | C134: 0 | D134: 0 | E134: 0 | F134: 0 | G134: 0 | H134: 0
A135: 72 | C135: 0 | D135: 0 | E135: 0 | F135: 0 | G135: 0 | H135: 0
A136: 73 | C136: 0 | D136: 0 | E136: 0 | F136: 0 | G136: 0 | H136: 0
A137: 74 | C137: 0 | D137: 0 | E137: 0 | F137: 0 | G137: 0 | H137: 0
A138: 75 | B138: o más | C138: 0 | D138: 0 | E138: 0 | F138: 0 | G138: 0 | H138: 0
A139: 1 | B139: Hijo | C139: 0 | D139: 0 | E139: 0 | F139: 0 | G139: 0 | H139: 0
A140: 2 | B140: Hijos | C140: 0 | D140: 0 | E140: 0 | F140: 0 | G140: 0 | H140: 0
A141: 3 | B141: Hijos o más | C141: 0 | D141: 0 | E141: 0 | F141: 0 | G141: 0 | H141: 0
A142: 1 | B142: Rider Comp. Maternidad | C142: 0 | D142: 0 | E142: 0 | F142: 0 | G142: 0 | H142: 0
A143: 1 | B143: Transplante de organos | C143: 0 | D143: 0 | E143: 0 | F143: 0 | G143: 0 | H143: 0
A148: BUPA PRIVILEGE CARE
A149: TARIFAS ANUALES
A150: EDAD
C151: CW1 | D151: CW2 | E151: CW3 | F151: CW4 | G151: CW5 | H151: CW6
A152: 18 | B152: 18-24 | D152: 10008 | E152: 6884 | F152: 4828 | G152: 3361 | H152: 2557
A153: 25 | B153: 25-29 | D153: 10502 | E153: 7614 | F153: 5345 | G153: 3723 | H153: 2835
A154: 30 | B154: 30-34 | D154: 10971 | E154: 8143 | F154: 5999 | G154: 4497 | H154: 3442
A155: 35 | B155: 35-39 | D155: 12278 | E155: 9114 | F155: 6721 | G155: 5047 | H155: 3850
A156: 40 | B156: 40-44 | D156: 14215 | E156: 9996 | F156: 7475 | G156: 5562 | H156: 4250
A157: 45 | B157: 45-49 | D157: 15885 | E157: 11173 | F157: 8351 | G157: 6220 | H157: 4753
A158: 50 | B158: 50-54 | D158: 20761 | E158: 14739 | F158: 10964 | G158: 8867 | H158: 6780
A159: 55 | B159: 55-59 | D159: 22082 | E159: 15672 | F159: 11666 | G159: 9436 | H159: 7217
A160: 60 | B160: 60 | D160: 24051 | E160: 17017 | F160: 13280 | G160: 11223 | H160: 9022
A161: 61 | B161: 61 | D161: 25840 | E161: 18283 | F161: 14263 | G161: 12061 | H161: 9688
A162: 62 | B162: 62 | D162: 28283 | E162: 20025 | F162: 15620 | G162: 13207 | H162: 10610
A163: 63 | B163: 63 | D163: 30075 | E163: 21286 | F163: 16607 | G163: 14046 | H163: 11277
A164: 64 | B164: 64 | D164: 32527 | E164: 23035 | F164: 17973 | G164: 15196 | H164: 12204
A165: 65 | B165: 65 | D165: 42526 | E165: 30035 | F165: 22717 | G165: 20258 | H165: 17201
A166: 66 | B166: 66 | D166: 49401 | E166: 34900 | F166: 26391 | G166: 23544 | H166: 19985
A167: 67 | B167: 67 | D167: 53953 | E167: 38117 | F167: 28826 | G167: 25705 | H167: 21834
A168: 68 | B168: 68 | D168: 59738 | E168: 42202 | F168: 31923 | G168: 28469 | H168: 24172
A169: 69 | B169: 69 | D169: 65728 | E169: 46427 | F169: 35115 | G169: 31317 | H169: 26600
A170: 70 | B170: 70 | D170: 80889 | E170: 56532 | F170: 41337 | G170: 36498 | H170: 31279
A171: 71 | B171: 71 | D171: 84067 | E171: 58747 | F171: 42957 | G171: 37928 | H171: 32516
A172: 72 | B172: 72 | D172: 86451 | E172: 60411 | F172: 44175 | G172: 39001 | H172: 33431
A173: 73 | B173: 73 | D173: 89617 | E173: 62632 | F173: 45795 | G173: 40437 | H173: 34667
A174: 74 | B174: 74 | D174: 91206 | E174: 63740 | F174: 46608 | G174: 41155 | H174: 35278
A175: 75 | B175: 75+ | D175: 95178 | E175: 66515 | F175: 48637 | G175: 42945 | H175: 36806
A176: 1 | B176: 1 Child | D176: 3471 | E176: 2538 | F176: 1962 | G176: 1628 | H176: 1204
A177: 2 | B177: 2 Children | D177: 5515 | E177: 4037 | F177: 3126 | G177: 2585 | H177: 1914
A178: 3 | B178: 3+ Children | D178: 8091 | E178: 5915 | F178: 4578 | G178: 3782 | H178: 2804
A179: 1 | B179: Rider Comp. Maternidad | D179: 0 | E179: 0 | F179: 225 | G179: 225 | H179: 225
A180: 1 | B180: Transplante de organos | D180: 0 | E180: 0 | F180: 0 | G180: 0 | H180: 0
A184: TARIFAS SEMESTRALES
A185: EDAD
D186: CW2 | E186: CW3 | F186: CW4 | G186: CW5 | H186: CW6
A187: 18 | B187: 18-24 | D187: =$G$2*D152 -> 5304.24 | E187: 3648.52 | F187: 2558.84 | G187: 1781.33 | H187: 1355.21
A188: 25 | B188: 25-29 | D188: 5566.06 | E188: 4035.42 | F188: 2832.85 | G188: 1973.19 | H188: 1502.55
A189: 30 | B189: 30-34 | D189: 5814.63 | E189: 4315.79 | F189: 3179.47 | G189: 2383.41 | H189: 1824.26
A190: 35 | B190: 35-39 | D190: 6507.34 | E190: 4830.42 | F190: 3562.13 | G190: 2674.91 | H190: 2040.5
A191: 40 | B191: 40-44 | D191: 7533.95 | E191: 5297.88 | F191: 3961.75 | G191: 2947.86 | H191: 2252.5
A192: 45 | B192: 45-49 | D192: 8419.05 | E192: 5921.69 | F192: 4426.03 | G192: 3296.6 | H192: 2519.09
A193: 50 | B193: 50-54 | D193: 11003.33 | E193: 7811.67 | F193: 5810.92 | G193: 4699.51 | H193: 3593.4
A194: 55 | B194: 55-59 | D194: 11703.46 | E194: 8306.16 | F194: 6182.98 | G194: 5001.08 | H194: 3825.01
A195: 60 | B195: 60 | D195: 12747.03 | E195: 9019.01 | F195: 7038.4 | G195: 5948.19 | H195: 4781.66
A196: 61 | B196: 61 | D196: 13695.2 | E196: 9689.99 | F196: 7559.39 | G196: 6392.33 | H196: 5134.64
A197: 62 | B197: 62 | D197: 14989.99 | E197: 10613.25 | F197: 8278.6 | G197: 6999.71 | H197: 5623.3
A198: 63 | B198: 63 | D198: 15939.75 | E198: 11281.58 | F198: 8801.71 | G198: 7444.38 | H198: 5976.81
A199: 64 | B199: 64 | D199: 17239.31 | E199: 12208.55 | F199: 9525.69 | G199: 8053.88 | H199: 6468.12
A200: 65 | B200: 65 | D200: 22538.78 | E200: 15918.55 | F200: 12040.01 | G200: 10736.74 | H200: 9116.53
A201: 66 | B201: 66 | D201: 26182.53 | E201: 18497 | F201: 13987.23 | G201: 12478.32 | H201: 10592.05
A202: 67 | B202: 67 | D202: 28595.09 | E202: 20202.01 | F202: 15277.78 | G202: 13623.65 | H202: 11572.02
A203: 68 | B203: 68 | D203: =$G$2*D168 -> 31661.14 | E203: 22367.06 | F203: 16919.19 | G203: 15088.57 | H203: 12811.16
A204: 69 | B204: 69 | D204: 34835.84 | E204: 24606.31 | F204: 18610.95 | G204: 16598.01 | H204: 14098
A205: 70 | B205: 70 | D205: 42871.17 | E205: 29961.96 | F205: 21908.61 | G205: 19343.94 | H205: 16577.87
A206: 71 | B206: 71 | D206: 44555.51 | E206: 31135.91 | F206: 22767.21 | G206: 20101.84 | H206: 17233.48
A207: 72 | B207: 72 | D207: 45819.03 | E207: 32017.83 | F207: 23412.75 | G207: 20670.53 | H207: 17718.43
A208: 73 | B208: 73 | D208: 47497.01 | E208: 33194.96 | F208: 24271.35 | G208: 21431.61 | H208: 18373.51
A209: 74 | B209: 74 | D209: 48339.18 | E209: 33782.2 | F209: 24702.24 | G209: 21812.15 | H209: 18697.34
A210: 75 | B210: 75+ | D210: 50444.34 | E210: 35252.95 | F210: 25777.61 | G210: 22760.85 | H210: 19507.18
A211: 1 | B211: 1 Child | D211: 1839.63 | E211: 1345.14 | F211: 1039.86 | G211: 862.84 | H211: 638.12
A212: 2 | B212: 2 Children | D212: 2922.95 | E212: 2139.61 | F212: 1656.78 | G212: 1370.05 | H212: 1014.42
A213: 3 | B213: 3+ Children | D213: 4288.23 | E213: 3134.95 | F213: 2426.34 | G213: 2004.46 | H213: 1486.12
A214: 1 | B214: Rider Comp. Maternidad | D214: =+D179*$G$2 -> 0 | E214: 0 | F214: 119.25 | G214: 119.25 | H214: 119.25
A215: 1 | B215: Transplante de organos | D215: 0 | E215: 0 | F215: 0 | G215: 0 | H215: 0
A220: COMPLETE (LATINAMERICA ONLY)
A221: TARIFAS ANUALES
A222: EDAD
... 335 more rows

Sheet 9 (hidden)
K1: D1 | L1: D2 | M1: D3 | N1: D4 | O1: D5 | P1: D6
B2: REGIÓN | C2: ='INGRESO DE DATOS'!W14 -> 5 | E2: FACTOR SEMESTRAL : | G2: 0.53 | I2: NEW BUSINESS DISCUOUNTS | K2: ='INGRESO DE DATOS'!O42 -> 1 | L2: ='INGRESO DE DATOS'!P42 -> 0.7 | M2: ='INGRESO DE DATOS'!Q42 -> 0.7 | N2: ='INGRESO DE DATOS'!R42 -> 0.7 | O2: ='INGRESO DE DATOS'!S42 -> 0.7 | P2: ='INGRESO DE DATOS'!T42 -> 0.9
A5: BUPA EXCLUSIVE CARE
A6: TARIFAS ANUALES
A7: EDAD
C8: DW1 | D8: DW2 | E8: DW3 | F8: DW4 | G8: DW5 | H8: DW6
A9: 18 | B9: 18-24 | D9: 20289 | E9: 13420 | F9: 9281 | G9: 6485 | H9: 5109
A10: 25 | B10: 25-29 | D10: 21281 | E10: 14822 | F10: 10277 | G10: 7191 | H10: 5656
A11: 30 | B11: 30-34 | D11: 22130 | E11: 15891 | F11: 11506 | G11: 8607 | H11: 6790
A12: 35 | B12: 35-39 | D12: 24782 | E12: 17792 | F12: 12890 | G12: 9637 | H12: 7603
A13: 40 | B13: 40-44 | D13: 28721 | E13: 19446 | F13: 14300 | G13: 10589 | H13: 8351
A14: 45 | B14: 45-49 | D14: 32110 | E14: 21755 | F14: 15971 | G14: 11833 | H14: 9327
A15: 50 | B15: 50-54 | D15: 41088 | E15: 28522 | F15: 20849 | G15: 16708 | H15: 13183
A16: 55 | B16: 55-59 | D16: 43710 | E16: 30351 | F16: 22177 | G16: 17786 | H16: 14036
A17: 60 | B17: 60 | D17: 47612 | E17: 33112 | F17: 25514 | G17: 21412 | H17: 17429
A18: 61 | B18: 61 | D18: 51154 | E18: 35584 | F18: 27390 | G18: 23020 | H18: 18719
A19: 62 | B19: 62 | D19: 56004 | E19: 38955 | F19: 30006 | G19: 25185 | H19: 20492
A20: 63 | B20: 63 | D20: 59541 | E20: 41421 | F20: 31890 | G20: 26794 | H20: 21788
A21: 64 | B21: 64 | D21: 64408 | E21: 44821 | F21: 34503 | G21: 28971 | H21: 23570
A22: 65 | B22: 65 | D22: 84180 | E22: 58449 | F22: 43617 | G22: 38629 | H22: 33235
A23: 66 | B23: 66 | D23: 97789 | E23: 67905 | F23: 50685 | G23: 44894 | H23: 38613
A24: 67 | B24: 67 | D24: 106824 | E24: 74171 | F24: 55353 | G24: 49024 | H24: 42162
A25: 68 | B25: 68 | D25: 118266 | E25: 82118 | F25: 61287 | G25: 54300 | H25: 46695
A26: 69 | B26: 69 | D26: 130139 | E26: 90355 | F26: 67426 | G26: 59734 | H26: 51376
A27: 70 | B27: 70 | D27: 160148 | E27: 110011 | F27: 79380 | G27: 69601 | H27: 60427
A28: 71 | B28: 71 | D28: 166435 | E28: 114335 | F28: 82490 | G28: 72338 | H28: 62792
A29: 72 | B29: 72 | D29: 171153 | E29: 117559 | F29: 84817 | G29: 74381 | H29: 64578
A30: 73 | B30: 73 | D30: 177437 | E30: 121883 | F30: 87940 | G30: 77122 | H30: 66951
A31: 74 | B31: 74 | D31: 180568 | E31: 124031 | F31: 89493 | G31: 78476 | H31: 68138
A32: 75 | B32: 75+ | D32: 188438 | E32: 129431 | F32: 93386 | G32: 81902 | H32: 71100
A33: 1 | B33: 1 Child | D33: 7044 | E33: 5185 | F33: 4132 | G33: 3418 | H33: 2674
A34: 2 | B34: 2 Children | D34: 11188 | E34: 8253 | F34: 6570 | G34: 5440 | H34: 4227
A35: 3 | B35: 3+ Children | D35: 16406 | E35: 12078 | F35: 9632 | G35: 7967 | H35: 6204
A36: 1 | B36: Rider Comp. Maternidad | D36: 0 | E36: 0 | F36: 225 | G36: 225 | H36: 225
A37: 1 | B37: Transplante de organos | D37: 0 | E37: 0 | F37: 0 | G37: 0 | H37: 0
A41: TARIFAS SEMESTRALES
A42: EDAD
D43: DW2 | E43: DW3 | F43: DW4 | G43: DW5 | H43: DW6
A44: 18 | B44: 18-24 | D44: =$G$2*D9 -> 10753.17 | E44: 7112.6 | F44: 4918.93 | G44: 3437.05 | H44: 2707.77
A45: 25 | B45: 25-29 | D45: 11278.93 | E45: 7855.66 | F45: 5446.81 | G45: 3811.23 | H45: 2997.68
A46: 30 | B46: 30-34 | D46: 11728.9 | E46: 8422.23 | F46: 6098.18 | G46: 4561.71 | H46: 3598.7
A47: 35 | B47: 35-39 | D47: 13134.46 | E47: 9429.76 | F47: 6831.7 | G47: 5107.61 | H47: 4029.59
A48: 40 | B48: 40-44 | D48: 15222.13 | E48: 10306.38 | F48: 7579 | G48: 5612.17 | H48: 4426.03
A49: 45 | B49: 45-49 | D49: 17018.3 | E49: 11530.15 | F49: 8464.63 | G49: 6271.49 | H49: 4943.31
A50: 50 | B50: 50-54 | D50: 21776.64 | E50: 15116.66 | F50: 11049.97 | G50: 8855.24 | H50: 6986.99
A51: 55 | B51: 55-59 | D51: 23166.3 | E51: 16086.03 | F51: 11753.81 | G51: 9426.58 | H51: 7439.08
A52: 60 | B52: 60 | D52: 25234.36 | E52: 17549.36 | F52: 13522.42 | G52: 11348.36 | H52: 9237.37
A53: 61 | B53: 61 | D53: 27111.62 | E53: 18859.52 | F53: 14516.7 | G53: 12200.6 | H53: 9921.07
A54: 62 | B54: 62 | D54: 29682.12 | E54: 20646.15 | F54: 15903.18 | G54: 13348.05 | H54: 10860.76
A55: 63 | B55: 63 | D55: 31556.73 | E55: 21953.13 | F55: 16901.7 | G55: 14200.82 | H55: 11547.64
A56: 64 | B56: 64 | D56: 34136.24 | E56: 23755.13 | F56: 18286.59 | G56: 15354.63 | H56: 12492.1
A57: 65 | B57: 65 | D57: 44615.4 | E57: 30977.97 | F57: 23117.01 | G57: 20473.37 | H57: 17614.55
A58: 66 | B58: 66 | D58: 51828.17 | E58: 35989.65 | F58: 26863.05 | G58: 23793.82 | H58: 20464.89
A59: 67 | B59: 67 | D59: 56616.72 | E59: 39310.63 | F59: 29337.09 | G59: 25982.72 | H59: 22345.86
A60: 68 | B60: 68 | D60: =$G$2*D25 -> 62680.98 | E60: 43522.54 | F60: 32482.11 | G60: 28779 | H60: 24748.35
A61: 69 | B61: 69 | D61: 68973.67 | E61: 47888.15 | F61: 35735.78 | G61: 31659.02 | H61: 27229.28
A62: 70 | B62: 70 | D62: 84878.44 | E62: 58305.83 | F62: 42071.4 | G62: 36888.53 | H62: 32026.31
A63: 71 | B63: 71 | D63: 88210.55 | E63: 60597.55 | F63: 43719.7 | G63: 38339.14 | H63: 33279.76
A64: 72 | B64: 72 | D64: 90711.09 | E64: 62306.27 | F64: 44953.01 | G64: 39421.93 | H64: 34226.34
A65: 73 | B65: 73 | D65: 94041.61 | E65: 64597.99 | F65: 46608.2 | G65: 40874.66 | H65: 35484.03
A66: 74 | B66: 74 | D66: 95701.04 | E66: 65736.43 | F66: 47431.29 | G66: 41592.28 | H66: 36113.14
A67: 75 | B67: 75+ | D67: 99872.14 | E67: 68598.43 | F67: 49494.58 | G67: 43408.06 | H67: 37683
A68: 1 | B68: 1 Child | D68: 3733.32 | E68: 2748.05 | F68: 2189.96 | G68: 1811.54 | H68: 1417.22
A69: 2 | B69: 2 Children | D69: 5929.64 | E69: 4374.09 | F69: 3482.1 | G69: 2883.2 | H69: 2240.31
A70: 3 | B70: 3+ Children | D70: 8695.18 | E70: 6401.34 | F70: 5104.96 | G70: 4222.51 | H70: 3288.12
A71: 1 | B71: Rider Comp. Maternidad | D71: =+D36*$G$2 -> 0 | E71: 0 | F71: 119.25 | G71: 119.25 | H71: 119.25
A72: 1 | B72: Transplante de organos | D72: 0 | E72: 0 | F72: 0 | G72: 0 | H72: 0
A78: DIAMOND (LATINAMERICA ONLY)
A79: TARIFAS ANUALES
A80: EDAD
C81: DL1 | D81: DL2 | E81: DL3 | F81: DL4 | G81: DL5 | H81: DL6
A82: 18 | B82: - 24
A83: 25 | B83: - 29
A84: 30 | B84: - 34
A85: 35 | B85: - 39
A86: 40 | B86: - 44
A87: 45 | B87: - 49
A88: 50 | B88: - 54
A89: 55 | B89: - 59
A90: 60
A91: 61
A92: 62
A93: 63
A94: 64
A95: 65
A96: 66
A97: 67
A98: 68
A99: 69
A100: 70
A101: 71
A102: 72
A103: 73
A104: 74
A105: 75 | B105: o más
A106: 1 | B106: Hijo
A107: 2 | B107: Hijos
A108: 3 | B108: Hijos o más
A109: 1 | B109: Rider Comp. Maternidad
A110: 1 | B110: Transplante de organos | C110: 0 | D110: 0 | E110: 0 | F110: 0 | G110: 0 | H110: 0
A112: TARIFAS SEMESTRALES
A113: EDAD
C114: DL1 | D114: DL2 | E114: DL3 | F114: DL4 | G114: DL5 | H114: DL6
A115: 18 | B115: - 24 | C115: =+C82*$G$2 -> 0 | D115: 0 | E115: 0 | F115: 0 | G115: 0 | H115: 0
A116: 25 | B116: - 29 | C116: 0 | D116: 0 | E116: 0 | F116: 0 | G116: 0 | H116: 0
A117: 30 | B117: - 34 | C117: 0 | D117: 0 | E117: 0 | F117: 0 | G117: 0 | H117: 0
A118: 35 | B118: - 39 | C118: 0 | D118: 0 | E118: 0 | F118: 0 | G118: 0 | H118: 0
A119: 40 | B119: - 44 | C119: 0 | D119: 0 | E119: 0 | F119: 0 | G119: 0 | H119: 0
A120: 45 | B120: - 49 | C120: 0 | D120: 0 | E120: 0 | F120: 0 | G120: 0 | H120: 0
A121: 50 | B121: - 54 | C121: 0 | D121: 0 | E121: 0 | F121: 0 | G121: 0 | H121: 0
A122: 55 | B122: - 59 | C122: 0 | D122: 0 | E122: 0 | F122: 0 | G122: 0 | H122: 0
A123: 60 | C123: 0 | D123: 0 | E123: 0 | F123: 0 | G123: 0 | H123: 0
A124: 61 | C124: 0 | D124: 0 | E124: 0 | F124: 0 | G124: 0 | H124: 0
A125: 62 | C125: 0 | D125: 0 | E125: 0 | F125: 0 | G125: 0 | H125: 0
A126: 63 | C126: 0 | D126: 0 | E126: 0 | F126: 0 | G126: 0 | H126: 0
A127: 64 | C127: 0 | D127: 0 | E127: 0 | F127: 0 | G127: 0 | H127: 0
A128: 65 | C128: 0 | D128: 0 | E128: 0 | F128: 0 | G128: 0 | H128: 0
A129: 66 | C129: 0 | D129: 0 | E129: 0 | F129: 0 | G129: 0 | H129: 0
A130: 67 | C130: 0 | D130: 0 | E130: 0 | F130: 0 | G130: 0 | H130: 0
A131: 68 | C131: =+C98*$G$2 -> 0 | D131: 0 | E131: 0 | F131: 0 | G131: 0 | H131: 0
A132: 69 | C132: 0 | D132: 0 | E132: 0 | F132: 0 | G132: 0 | H132: 0
A133: 70 | C133: 0 | D133: 0 | E133: 0 | F133: 0 | G133: 0 | H133: 0
A134: 71 | C134: 0 | D134: 0 | E134: 0 | F134: 0 | G134: 0 | H134: 0
A135: 72 | C135: 0 | D135: 0 | E135: 0 | F135: 0 | G135: 0 | H135: 0
A136: 73 | C136: 0 | D136: 0 | E136: 0 | F136: 0 | G136: 0 | H136: 0
A137: 74 | C137: 0 | D137: 0 | E137: 0 | F137: 0 | G137: 0 | H137: 0
A138: 75 | B138: o más | C138: 0 | D138: 0 | E138: 0 | F138: 0 | G138: 0 | H138: 0
A139: 1 | B139: Hijo | C139: 0 | D139: 0 | E139: 0 | F139: 0 | G139: 0 | H139: 0
A140: 2 | B140: Hijos | C140: 0 | D140: 0 | E140: 0 | F140: 0 | G140: 0 | H140: 0
A141: 3 | B141: Hijos o más | C141: 0 | D141: 0 | E141: 0 | F141: 0 | G141: 0 | H141: 0
A142: 1 | B142: Rider Comp. Maternidad | C142: 0 | D142: 0 | E142: 0 | F142: 0 | G142: 0 | H142: 0
A143: 1 | B143: Transplante de organos | C143: 0 | D143: 0 | E143: 0 | F143: 0 | G143: 0 | H143: 0
A148: BUPA PRIVILEGE CARE
A149: TARIFAS ANUALES
A150: EDAD
C151: CW1 | D151: CW2 | E151: CW3 | F151: CW4 | G151: CW5 | H151: CW6
A152: 18 | B152: 18-24 | D152: 17060 | E152: 11722 | F152: 8058 | G152: 5611 | H152: 4275
A153: 25 | B153: 25-29 | D153: 17903 | E153: 12970 | F153: 8928 | G153: 6217 | H153: 4744
A154: 30 | B154: 30-34 | D154: 18700 | E154: 13901 | F154: 10003 | G154: 7528 | H154: 5742
A155: 35 | B155: 35-39 | D155: 20940 | E155: 15557 | F155: 11210 | G155: 8435 | H155: 6438
A156: 40 | B156: 40-44 | D156: 24234 | E156: 17042 | F156: 12465 | G156: 9298 | H156: 7093
A157: 45 | B157: 45-49 | D157: 27071 | E157: 19044 | F157: 13943 | G157: 10383 | H157: 7938
A158: 50 | B158: 50-54 | D158: 35393 | E158: 25113 | F158: 18296 | G158: 14824 | H158: 11336
A159: 55 | B159: 55-59 | D159: 37654 | E159: 26721 | F159: 19469 | G159: 15774 | H159: 12064
A160: 60 | B160: 60 | D160: 41006 | E160: 29028 | F160: 22153 | G160: 18767 | H160: 15064
A161: 61 | B161: 61 | D161: 44051 | E161: 31173 | F161: 23796 | G161: 20157 | H161: 16183
A162: 62 | B162: 62 | D162: 48222 | E162: 34136 | F162: 26063 | G162: 22070 | H162: 17727
A163: 63 | B163: 63 | D163: 51280 | E163: 36291 | F163: 27703 | G163: 23467 | H163: 18840
A164: 64 | B164: 64 | D164: 55456 | E164: 39256 | F164: 29963 | G164: 25381 | H164: 20397
A165: 65 | B165: 65 | D165: 72492 | E165: 51206 | F165: 37889 | G165: 33838 | H165: 28744
A166: 66 | B166: 66 | D166: 84212 | E166: 59497 | F166: 44018 | G166: 39328 | H166: 33402
A167: 67 | B167: 67 | D167: 91987 | E167: 64985 | F167: 48075 | G167: 42951 | H167: 36473
A168: 68 | B168: 68 | D168: 101862 | E168: 71950 | F168: 53248 | G168: 47573 | H168: 40390
A169: 69 | B169: 69 | D169: 112057 | E169: 79157 | F169: 58574 | G169: 52330 | H169: 44443
A170: 70 | B170: 70 | D170: 137912 | E170: 96373 | F170: 68939 | G170: 60985 | H170: 52269
A171: 71 | B171: 71 | D171: 143317 | E171: 100156 | F171: 71656 | G171: 63372 | H171: 54323
A172: 72 | B172: 72 | D172: 147367 | E172: 103000 | F172: 73677 | G172: 65166 | H172: 55862
A173: 73 | B173: 73 | D173: 152804 | E173: 106778 | F173: 76389 | G173: 67555 | H173: 57916
A174: 74 | B174: 74 | D174: 155501 | E174: 108674 | F174: 77735 | G174: 68754 | H174: 58935
A175: 75 | B175: 75+ | D175: 162267 | E175: 113392 | F175: 81121 | G175: 71751 | H175: 61500
A176: 1 | B176: 1 Child | D176: 5924 | E176: 4329 | F176: 3271 | G176: 2710 | H176: 2003
A177: 2 | B177: 2 Children | D177: 9419 | E177: 6888 | F177: 5211 | G177: 4316 | H177: 3193
A178: 3 | B178: 3+ Children | D178: 13790 | E178: 10086 | F178: 7631 | G178: 6319 | H178: 4681
A179: 1 | B179: Rider Comp. Maternidad | D179: 0 | E179: 0 | F179: 225 | G179: 225 | H179: 225
A180: 1 | B180: Transplante de organos | D180: 0 | E180: 0 | F180: 0 | G180: 0 | H180: 0
A184: TARIFAS SEMESTRALES
A185: EDAD
D186: CW2 | E186: CW3 | F186: CW4 | G186: CW5 | H186: CW6
A187: 18 | B187: 18-24 | D187: =$G$2*D152 -> 9041.8 | E187: 6212.66 | F187: 4270.74 | G187: 2973.83 | H187: 2265.75
A188: 25 | B188: 25-29 | D188: 9488.59 | E188: 6874.1 | F188: 4731.84 | G188: 3295.01 | H188: 2514.32
A189: 30 | B189: 30-34 | D189: 9911 | E189: 7367.53 | F189: 5301.59 | G189: 3989.84 | H189: 3043.26
A190: 35 | B190: 35-39 | D190: 11098.2 | E190: 8245.21 | F190: 5941.3 | G190: 4470.55 | H190: 3412.14
A191: 40 | B191: 40-44 | D191: 12844.02 | E191: 9032.26 | F191: 6606.45 | G191: 4927.94 | H191: 3759.29
A192: 45 | B192: 45-49 | D192: 14347.63 | E192: 10093.32 | F192: 7389.79 | G192: 5502.99 | H192: 4207.14
A193: 50 | B193: 50-54 | D193: 18758.29 | E193: 13309.89 | F193: 9696.88 | G193: 7856.72 | H193: 6008.08
A194: 55 | B194: 55-59 | D194: 19956.62 | E194: 14162.13 | F194: 10318.57 | G194: 8360.22 | H194: 6393.92
A195: 60 | B195: 60 | D195: 21733.18 | E195: 15384.84 | F195: 11741.09 | G195: 9946.51 | H195: 7983.92
A196: 61 | B196: 61 | D196: 23347.03 | E196: 16521.69 | F196: 12611.88 | G196: 10683.21 | H196: 8576.99
A197: 62 | B197: 62 | D197: 25557.66 | E197: 18092.08 | F197: 13813.39 | G197: 11697.1 | H197: 9395.31
A198: 63 | B198: 63 | D198: 27178.4 | E198: 19234.23 | F198: 14682.59 | G198: 12437.51 | H198: 9985.2
A199: 64 | B199: 64 | D199: 29391.68 | E199: 20805.68 | F199: 15880.39 | G199: 13451.93 | H199: 10810.41
A200: 65 | B200: 65 | D200: 38420.76 | E200: 27139.18 | F200: 20081.17 | G200: 17934.14 | H200: 15234.32
A201: 66 | B201: 66 | D201: 44632.36 | E201: 31533.41 | F201: 23329.54 | G201: 20843.84 | H201: 17703.06
A202: 67 | B202: 67 | D202: 48753.11 | E202: 34442.05 | F202: 25479.75 | G202: 22764.03 | H202: 19330.69
A203: 68 | B203: 68 | D203: =$G$2*D168 -> 53986.86 | E203: 38133.5 | F203: 28221.44 | G203: 25213.69 | H203: 21406.7
A204: 69 | B204: 69 | D204: 59390.21 | E204: 41953.21 | F204: 31044.22 | G204: 27734.9 | H204: 23554.79
A205: 70 | B205: 70 | D205: 73093.36 | E205: 51077.69 | F205: 36537.67 | G205: 32322.05 | H205: 27702.57
A206: 71 | B206: 71 | D206: 75958.01 | E206: 53082.68 | F206: 37977.68 | G206: 33587.16 | H206: 28791.19
A207: 72 | B207: 72 | D207: 78104.51 | E207: 54590 | F207: 39048.81 | G207: 34537.98 | H207: 29606.86
A208: 73 | B208: 73 | D208: 80986.12 | E208: 56592.34 | F208: 40486.17 | G208: 35804.15 | H208: 30695.48
A209: 74 | B209: 74 | D209: 82415.53 | E209: 57597.22 | F209: 41199.55 | G209: 36439.62 | H209: 31235.55
A210: 75 | B210: 75+ | D210: 86001.51 | E210: 60097.76 | F210: 42994.13 | G210: 38028.03 | H210: 32595
A211: 1 | B211: 1 Child | D211: 3139.72 | E211: 2294.37 | F211: 1733.63 | G211: 1436.3 | H211: 1061.59
A212: 2 | B212: 2 Children | D212: 4992.07 | E212: 3650.64 | F212: 2761.83 | G212: 2287.48 | H212: 1692.29
A213: 3 | B213: 3+ Children | D213: 7308.7 | E213: 5345.58 | F213: 4044.43 | G213: 3349.07 | H213: 2480.93
A214: 1 | B214: Rider Comp. Maternidad | D214: =+D179*$G$2 -> 0 | E214: 0 | F214: 119.25 | G214: 119.25 | H214: 119.25
A215: 1 | B215: Transplante de organos | D215: 0 | E215: 0 | F215: 0 | G215: 0 | H215: 0
A220: COMPLETE (LATINAMERICA ONLY)
A221: TARIFAS ANUALES
A222: EDAD
... 335 more rows

Sheet PERU2020 (hidden)
K1: D1 | L1: D2 | M1: D3 | N1: D4 | O1: D5 | P1: D6
B2: REGIÓN | C2: ='INGRESO DE DATOS'!W14 -> 5 | E2: FACTOR SEMESTRAL : | G2: 0.53 | I2: NEW BUSINESS DISCUOUNTS | K2: ='INGRESO DE DATOS'!O42 -> 1 | L2: ='INGRESO DE DATOS'!P42 -> 0.7 | M2: ='INGRESO DE DATOS'!Q42 -> 0.7 | N2: ='INGRESO DE DATOS'!R42 -> 0.7 | O2: ='INGRESO DE DATOS'!S42 -> 0.7 | P2: ='INGRESO DE DATOS'!T42 -> 0.9
A5: BUPA EXCLUSIVE CARE
A6: TARIFAS ANUALES
A7: EDAD | K7: Usar tarifas de la Zona 4
C8: DW1 | D8: DW2 | E8: DW3 | F8: DW4 | G8: DW5 | H8: DW6
A9: 18 | B9: 18-24 | D9: 19979 | E9: 13201 | F9: 8654 | G9: 5923 | H9: 4662
A10: 25 | B10: 25-29 | D10: 20959 | E10: 14590 | F10: 9589 | G10: 6569 | H10: 5163
A11: 30 | B11: 30-34 | D11: 21802 | E11: 15646 | F11: 10734 | G11: 7876 | H11: 6210
A12: 35 | B12: 35-39 | D12: 24418 | E12: 17516 | F12: 12036 | G12: 8827 | H12: 6954
A13: 40 | B13: 40-44 | D13: 28320 | E13: 19161 | F13: 13361 | G13: 9708 | H13: 7646
A14: 45 | B14: 45-49 | D14: 31660 | E14: 21430 | F14: 14933 | G14: 10844 | H14: 8548
A15: 50 | B15: 50-54 | D15: 40512 | E15: 28118 | F15: 19485 | G15: 15332 | H15: 12085
A16: 55 | B16: 55-59 | D16: 43104 | E16: 29922 | F16: 20726 | G16: 16311 | H16: 12864
A17: 60 | B17: 60 | D17: 46956 | E17: 32642 | F17: 23858 | G17: 19649 | H17: 15984
A18: 61 | B18: 61 | D18: 50446 | E18: 35078 | F18: 25621 | G18: 21126 | H18: 17174
A19: 62 | B19: 62 | D19: 55231 | E19: 38417 | F19: 28065 | G19: 23118 | H19: 18806
A20: 63 | B20: 63 | D20: 58728 | E20: 40848 | F20: 29827 | G20: 24597 | H20: 19990
A21: 64 | B21: 64 | D21: 63524 | E21: 44197 | F21: 32283 | G21: 26600 | H21: 21644
A22: 65 | B22: 65 | D22: 83050 | E22: 57652 | F22: 40817 | G22: 35481 | H22: 30520
A23: 66 | B23: 66 | D23: 96481 | E23: 66992 | F23: 47426 | G23: 41248 | H23: 35459
A24: 67 | B24: 67 | D24: 105388 | E24: 73169 | F24: 51804 | G24: 45040 | H24: 38737
A25: 68 | B25: 68 | D25: 116696 | E25: 81011 | F25: 57365 | G25: 49883 | H25: 42892
A26: 69 | B26: 69 | D26: 128397 | E26: 89128 | F26: 63119 | G26: 54880 | H26: 47201
A27: 70 | B27: 70 | D27: 158015 | E27: 108535 | F27: 74302 | G27: 63945 | H27: 55525
A28: 71 | B28: 71 | D28: 164228 | E28: 112792 | F28: 77226 | G28: 66466 | H28: 57706
A29: 72 | B29: 72 | D29: 168880 | E29: 115987 | F29: 79396 | G29: 68348 | H29: 59339
A30: 73 | B30: 73 | D30: 175080 | E30: 120254 | F30: 82318 | G30: 70863 | H30: 61507
A31: 74 | B31: 74 | D31: 178181 | E31: 122381 | F31: 83791 | G31: 72116 | H31: 62608
A32: 75 | B32: 75+ | D32: 185937 | E32: 127704 | F32: 87423 | G32: 75257 | H32: 65343
A33: 1 | B33: 1 Child | D33: 6942 | E33: 5114 | F33: 3871 | G33: 3150 | H33: 2450
A34: 2 | B34: 2 Children | D34: 11042 | E34: 8146 | F34: 6160 | G34: 4999 | H34: 3899
A35: 3 | B35: 3+ Children | D35: 16192 | E35: 11930 | F35: 9019 | G35: 7326 | H35: 5705
A36: 1 | B36: Rider Comp. Maternidad | D36: 0 | E36: 0 | F36: 225 | G36: 225 | H36: 225
A37: 1 | B37: Transplante de organos | D37: 0 | E37: 0 | F37: 0 | G37: 0 | H37: 0
A41: TARIFAS SEMESTRALES
A42: EDAD
D43: DW2 | E43: DW3 | F43: DW4 | G43: DW5 | H43: DW6
A44: 18 | B44: 18-24 | D44: =$G$2*D9 -> 10588.87 | E44: 6996.53 | F44: 4586.62 | G44: 3139.19 | H44: 2470.86
A45: 25 | B45: 25-29 | D45: 11108.27 | E45: 7732.7 | F45: 5082.17 | G45: 3481.57 | H45: 2736.39
A46: 30 | B46: 30-34 | D46: 11555.06 | E46: 8292.38 | F46: 5689.02 | G46: 4174.28 | H46: 3291.3
A47: 35 | B47: 35-39 | D47: 12941.54 | E47: 9283.48 | F47: 6379.08 | G47: 4678.31 | H47: 3685.62
A48: 40 | B48: 40-44 | D48: 15009.6 | E48: 10155.33 | F48: 7081.33 | G48: 5145.24 | H48: 4052.38
A49: 45 | B49: 45-49 | D49: 16779.8 | E49: 11357.9 | F49: 7914.49 | G49: 5747.32 | H49: 4530.44
A50: 50 | B50: 50-54 | D50: 21471.36 | E50: 14902.54 | F50: 10327.05 | G50: 8125.96 | H50: 6405.05
A51: 55 | B51: 55-59 | D51: 22845.12 | E51: 15858.66 | F51: 10984.78 | G51: 8644.83 | H51: 6817.92
A52: 60 | B52: 60 | D52: 24886.68 | E52: 17300.26 | F52: 12644.74 | G52: 10413.97 | H52: 8471.52
A53: 61 | B53: 61 | D53: 26736.38 | E53: 18591.34 | F53: 13579.13 | G53: 11196.78 | H53: 9102.22
A54: 62 | B54: 62 | D54: 29272.43 | E54: 20361.01 | F54: 14874.45 | G54: 12252.54 | H54: 9967.18
A55: 63 | B55: 63 | D55: 31125.84 | E55: 21649.44 | F55: 15808.31 | G55: 13036.41 | H55: 10594.7
A56: 64 | B56: 64 | D56: 33667.72 | E56: 23424.41 | F56: 17109.99 | G56: 14098 | H56: 11471.32
A57: 65 | B57: 65 | D57: 44016.5 | E57: 30555.56 | F57: 21633.01 | G57: 18804.93 | H57: 16175.6
A58: 66 | B58: 66 | D58: 51134.93 | E58: 35505.76 | F58: 25135.78 | G58: 21861.44 | H58: 18793.27
A59: 67 | B59: 67 | D59: 55855.64 | E59: 38779.57 | F59: 27456.12 | G59: 23871.2 | H59: 20530.61
A60: 68 | B60: 68 | D60: =$G$2*D25 -> 61848.88 | E60: 42935.83 | F60: 30403.45 | G60: 26437.99 | H60: 22732.76
A61: 69 | B61: 69 | D61: 68050.41 | E61: 47237.84 | F61: 33453.07 | G61: 29086.4 | H61: 25016.53
A62: 70 | B62: 70 | D62: 83747.95 | E62: 57523.55 | F62: 39380.06 | G62: 33890.85 | H62: 29428.25
A63: 71 | B63: 71 | D63: 87040.84 | E63: 59779.76 | F63: 40929.78 | G63: 35226.98 | H63: 30584.18
A64: 72 | B64: 72 | D64: 89506.4 | E64: 61473.11 | F64: 42079.88 | G64: 36224.44 | H64: 31449.67
A65: 73 | B65: 73 | D65: 92792.4 | E65: 63734.62 | F65: 43628.54 | G65: 37557.39 | H65: 32598.71
A66: 74 | B66: 74 | D66: 94435.93 | E66: 64861.93 | F66: 44409.23 | G66: 38221.48 | H66: 33182.24
A67: 75 | B67: 75+ | D67: 98546.61 | E67: 67683.12 | F67: 46334.19 | G67: 39886.21 | H67: 34631.79
A68: 1 | B68: 1 Child | D68: 3679.26 | E68: 2710.42 | F68: 2051.63 | G68: 1669.5 | H68: 1298.5
A69: 2 | B69: 2 Children | D69: 5852.26 | E69: 4317.38 | F69: 3264.8 | G69: 2649.47 | H69: 2066.47
A70: 3 | B70: 3+ Children | D70: 8581.76 | E70: 6322.9 | F70: 4780.07 | G70: 3882.78 | H70: 3023.65
A71: 1 | B71: Rider Comp. Maternidad | D71: =+D36*$G$2 -> 0 | E71: 0 | F71: 119.25 | G71: 119.25 | H71: 119.25
A72: 1 | B72: Transplante de organos | D72: 0 | E72: 0 | F72: 0 | G72: 0 | H72: 0
A78: DIAMOND (LATINAMERICA ONLY)
A79: TARIFAS ANUALES
A80: EDAD
C81: DL1 | D81: DL2 | E81: DL3 | F81: DL4 | G81: DL5 | H81: DL6
A82: 18 | B82: - 24
A83: 25 | B83: - 29
A84: 30 | B84: - 34
A85: 35 | B85: - 39
A86: 40 | B86: - 44
A87: 45 | B87: - 49
A88: 50 | B88: - 54
A89: 55 | B89: - 59
A90: 60
A91: 61
A92: 62
A93: 63
A94: 64
A95: 65
A96: 66
A97: 67
A98: 68
A99: 69
A100: 70
A101: 71
A102: 72
A103: 73
A104: 74
A105: 75 | B105: o más
A106: 1 | B106: Hijo
A107: 2 | B107: Hijos
A108: 3 | B108: Hijos o más
A109: 1 | B109: Rider Comp. Maternidad
A110: 1 | B110: Transplante de organos | C110: 0 | D110: 0 | E110: 0 | F110: 0 | G110: 0 | H110: 0
A112: TARIFAS SEMESTRALES
A113: EDAD
C114: DL1 | D114: DL2 | E114: DL3 | F114: DL4 | G114: DL5 | H114: DL6
A115: 18 | B115: - 24 | C115: =+C82*$G$2 -> 0 | D115: 0 | E115: 0 | F115: 0 | G115: 0 | H115: 0
A116: 25 | B116: - 29 | C116: 0 | D116: 0 | E116: 0 | F116: 0 | G116: 0 | H116: 0
A117: 30 | B117: - 34 | C117: 0 | D117: 0 | E117: 0 | F117: 0 | G117: 0 | H117: 0
A118: 35 | B118: - 39 | C118: 0 | D118: 0 | E118: 0 | F118: 0 | G118: 0 | H118: 0
A119: 40 | B119: - 44 | C119: 0 | D119: 0 | E119: 0 | F119: 0 | G119: 0 | H119: 0
A120: 45 | B120: - 49 | C120: 0 | D120: 0 | E120: 0 | F120: 0 | G120: 0 | H120: 0
A121: 50 | B121: - 54 | C121: 0 | D121: 0 | E121: 0 | F121: 0 | G121: 0 | H121: 0
A122: 55 | B122: - 59 | C122: 0 | D122: 0 | E122: 0 | F122: 0 | G122: 0 | H122: 0
A123: 60 | C123: 0 | D123: 0 | E123: 0 | F123: 0 | G123: 0 | H123: 0
A124: 61 | C124: 0 | D124: 0 | E124: 0 | F124: 0 | G124: 0 | H124: 0
A125: 62 | C125: 0 | D125: 0 | E125: 0 | F125: 0 | G125: 0 | H125: 0
A126: 63 | C126: 0 | D126: 0 | E126: 0 | F126: 0 | G126: 0 | H126: 0
A127: 64 | C127: 0 | D127: 0 | E127: 0 | F127: 0 | G127: 0 | H127: 0
A128: 65 | C128: 0 | D128: 0 | E128: 0 | F128: 0 | G128: 0 | H128: 0
A129: 66 | C129: 0 | D129: 0 | E129: 0 | F129: 0 | G129: 0 | H129: 0
A130: 67 | C130: 0 | D130: 0 | E130: 0 | F130: 0 | G130: 0 | H130: 0
A131: 68 | C131: =+C98*$G$2 -> 0 | D131: 0 | E131: 0 | F131: 0 | G131: 0 | H131: 0
A132: 69 | C132: 0 | D132: 0 | E132: 0 | F132: 0 | G132: 0 | H132: 0
A133: 70 | C133: 0 | D133: 0 | E133: 0 | F133: 0 | G133: 0 | H133: 0
A134: 71 | C134: 0 | D134: 0 | E134: 0 | F134: 0 | G134: 0 | H134: 0
A135: 72 | C135: 0 | D135: 0 | E135: 0 | F135: 0 | G135: 0 | H135: 0
A136: 73 | C136: 0 | D136: 0 | E136: 0 | F136: 0 | G136: 0 | H136: 0
A137: 74 | C137: 0 | D137: 0 | E137: 0 | F137: 0 | G137: 0 | H137: 0
A138: 75 | B138: o más | C138: 0 | D138: 0 | E138: 0 | F138: 0 | G138: 0 | H138: 0
A139: 1 | B139: Hijo | C139: 0 | D139: 0 | E139: 0 | F139: 0 | G139: 0 | H139: 0
A140: 2 | B140: Hijos | C140: 0 | D140: 0 | E140: 0 | F140: 0 | G140: 0 | H140: 0
A141: 3 | B141: Hijos o más | C141: 0 | D141: 0 | E141: 0 | F141: 0 | G141: 0 | H141: 0
A142: 1 | B142: Rider Comp. Maternidad | C142: 0 | D142: 0 | E142: 0 | F142: 0 | G142: 0 | H142: 0
A143: 1 | B143: Transplante de organos | C143: 0 | D143: 0 | E143: 0 | F143: 0 | G143: 0 | H143: 0
A148: BUPA PRIVILEGE CARE
A149: TARIFAS ANUALES
A150: EDAD
C151: CW1 | D151: CW2 | E151: CW3 | F151: CW4 | G151: CW5 | H151: CW6
A152: 18 | B152: 18-24 | D152: 16807 | E152: 11553 | F152: 7523 | G152: 5153 | H152: 3919
A153: 25 | B153: 25-29 | D153: 17628 | E153: 12782 | F153: 8331 | G153: 5704 | H153: 4342
A154: 30 | B154: 30-34 | D154: 18417 | E154: 13671 | F154: 9351 | G154: 6892 | H154: 5273
A155: 35 | B155: 35-39 | D155: 20616 | E155: 15304 | F155: 10479 | G155: 7731 | H155: 5903
A156: 40 | B156: 40-44 | D156: 23869 | E156: 16785 | F156: 11649 | G156: 8526 | H156: 6517
A157: 45 | B157: 45-49 | D157: 26667 | E157: 18755 | F157: 13014 | G157: 9530 | H157: 7278
A158: 50 | B158: 50-54 | D158: 34855 | E158: 24739 | F158: 17089 | G158: 13587 | H158: 10391
A159: 55 | B159: 55-59 | D159: 37077 | E159: 26316 | F159: 18184 | G159: 14464 | H159: 11056
A160: 60 | B160: 60 | D160: 40378 | E160: 28572 | F160: 20695 | G160: 17198 | H160: 13826
A161: 61 | B161: 61 | D161: 43379 | E161: 30693 | F161: 22232 | G161: 18485 | H161: 14848
A162: 62 | B162: 62 | D162: 47484 | E162: 33618 | F162: 24345 | G162: 20239 | H162: 16258
A163: 63 | B163: 63 | D163: 50495 | E163: 35740 | F163: 25882 | G163: 21529 | H163: 17283
A164: 64 | B164: 64 | D164: 54611 | E164: 38672 | F164: 28004 | G164: 23288 | H164: 18702
A165: 65 | B165: 65 | D165: 71403 | E165: 50431 | F165: 35402 | G165: 31048 | H165: 26366
A166: 66 | B166: 66 | D166: 82942 | E166: 58598 | F166: 41135 | G166: 36085 | H166: 30634
A167: 67 | B167: 67 | D167: 90584 | E167: 63998 | F167: 44928 | G167: 39396 | H167: 33461
A168: 68 | B168: 68 | D168: 100305 | E168: 70855 | F168: 49754 | G168: 43630 | H168: 37051
A169: 69 | B169: 69 | D169: 110353 | E169: 77953 | F169: 54729 | G169: 47998 | H169: 40770
A170: 70 | B170: 70 | D170: 135813 | E170: 94922 | F170: 64427 | G170: 55943 | H170: 47941
A171: 71 | B171: 71 | D171: 141147 | E171: 98635 | F171: 66947 | G171: 58133 | H171: 49835
A172: 72 | B172: 72 | D172: 145148 | E172: 101426 | F172: 68852 | G172: 59779 | H172: 51239
A173: 73 | B173: 73 | D173: 150470 | E173: 105160 | F173: 71375 | G173: 61978 | H173: 53137
A174: 74 | B174: 74 | D174: 153134 | E174: 107015 | F174: 72639 | G174: 63083 | H174: 54064
A175: 75 | B175: 75+ | D175: 159803 | E175: 111677 | F175: 75799 | G175: 65822 | H175: 56417
A176: 1 | B176: 1 Child | D176: 5826 | E176: 4251 | F176: 3056 | G176: 2487 | H176: 1845
A177: 2 | B177: 2 Children | D177: 9259 | E177: 6775 | F177: 4872 | G177: 3960 | H177: 2931
A178: 3 | B178: 3+ Children | D178: 13581 | E178: 9925 | F178: 7132 | G178: 5802 | H178: 4297
A179: 1 | B179: Rider Comp. Maternidad | D179: 0 | E179: 0 | F179: 225 | G179: 225 | H179: 225
A180: 1 | B180: Transplante de organos | D180: 0 | E180: 0 | F180: 0 | G180: 0 | H180: 0
A184: TARIFAS SEMESTRALES
A185: EDAD
D186: CW2 | E186: CW3 | F186: CW4 | G186: CW5 | H186: CW6
A187: 18 | B187: 18-24 | D187: =$G$2*D152 -> 8907.71 | E187: 6123.09 | F187: 3987.19 | G187: 2731.09 | H187: 2077.07
A188: 25 | B188: 25-29 | D188: 9342.84 | E188: 6774.46 | F188: 4415.43 | G188: 3023.12 | H188: 2301.26
A189: 30 | B189: 30-34 | D189: 9761.01 | E189: 7245.63 | F189: 4956.03 | G189: 3652.76 | H189: 2794.69
A190: 35 | B190: 35-39 | D190: 10926.48 | E190: 8111.12 | F190: 5553.87 | G190: 4097.43 | H190: 3128.59
A191: 40 | B191: 40-44 | D191: 12650.57 | E191: 8896.05 | F191: 6173.97 | G191: 4518.78 | H191: 3454.01
A192: 45 | B192: 45-49 | D192: 14133.51 | E192: 9940.15 | F192: 6897.42 | G192: 5050.9 | H192: 3857.34
A193: 50 | B193: 50-54 | D193: 18473.15 | E193: 13111.67 | F193: 9057.17 | G193: 7201.11 | H193: 5507.23
A194: 55 | B194: 55-59 | D194: 19650.81 | E194: 13947.48 | F194: 9637.52 | G194: 7665.92 | H194: 5859.68
A195: 60 | B195: 60 | D195: 21400.34 | E195: 15143.16 | F195: 10968.35 | G195: 9114.94 | H195: 7327.78
A196: 61 | B196: 61 | D196: 22990.87 | E196: 16267.29 | F196: 11782.96 | G196: 9797.05 | H196: 7869.44
A197: 62 | B197: 62 | D197: 25166.52 | E197: 17817.54 | F197: 12902.85 | G197: 10726.67 | H197: 8616.74
A198: 63 | B198: 63 | D198: 26762.35 | E198: 18942.2 | F198: 13717.46 | G198: 11410.37 | H198: 9159.99
A199: 64 | B199: 64 | D199: 28943.83 | E199: 20496.16 | F199: 14842.12 | G199: 12342.64 | H199: 9912.06
A200: 65 | B200: 65 | D200: 37843.59 | E200: 26728.43 | F200: 18763.06 | G200: 16455.44 | H200: 13973.98
A201: 66 | B201: 66 | D201: 43959.26 | E201: 31056.94 | F201: 21801.55 | G201: 19125.05 | H201: 16236.02
A202: 67 | B202: 67 | D202: 48009.52 | E202: 33918.94 | F202: 23811.84 | G202: 20879.88 | H202: 17734.33
A203: 68 | B203: 68 | D203: =$G$2*D168 -> 53161.65 | E203: 37553.15 | F203: 26369.62 | G203: 23123.9 | H203: 19637.03
A204: 69 | B204: 69 | D204: 58487.09 | E204: 41315.09 | F204: 29006.37 | G204: 25438.94 | H204: 21608.1
A205: 70 | B205: 70 | D205: 71980.89 | E205: 50308.66 | F205: 34146.31 | G205: 29649.79 | H205: 25408.73
A206: 71 | B206: 71 | D206: 74807.91 | E206: 52276.55 | F206: 35481.91 | G206: 30810.49 | H206: 26412.55
A207: 72 | B207: 72 | D207: 76928.44 | E207: 53755.78 | F207: 36491.56 | G207: 31682.87 | H207: 27156.67
A208: 73 | B208: 73 | D208: 79749.1 | E208: 55734.8 | F208: 37828.75 | G208: 32848.34 | H208: 28162.61
A209: 74 | B209: 74 | D209: 81161.02 | E209: 56717.95 | F209: 38498.67 | G209: 33433.99 | H209: 28653.92
A210: 75 | B210: 75+ | D210: 84695.59 | E210: 59188.81 | F210: 40173.47 | G210: 34885.66 | H210: 29901.01
A211: 1 | B211: 1 Child | D211: 3087.78 | E211: 2253.03 | F211: 1619.68 | G211: 1318.11 | H211: 977.85
A212: 2 | B212: 2 Children | D212: 4907.27 | E212: 3590.75 | F212: 2582.16 | G212: 2098.8 | H212: 1553.43
A213: 3 | B213: 3+ Children | D213: 7197.93 | E213: 5260.25 | F213: 3779.96 | G213: 3075.06 | H213: 2277.41
A214: 1 | B214: Rider Comp. Maternidad | D214: =+D179*$G$2 -> 0 | E214: 0 | F214: 119.25 | G214: 119.25 | H214: 119.25
A215: 1 | B215: Transplante de organos | D215: 0 | E215: 0 | F215: 0 | G215: 0 | H215: 0
A220: COMPLETE (LATINAMERICA ONLY)
A221: TARIFAS ANUALES
A222: EDAD
... 335 more rows
